{"text_format":"1","workbook":"xlsx","n_sheets":5,"sheets":["Test","CodeLists","Map","Others","TDS"],"not_rendered":{"charts":0,"images":0,"macros":0,"external_links":3,"defined_names":9,"comments":0,"pivot_tables":0},"unopened":[],"bounds":{"document_bytes":16777216,"sheet_cells":100000,"rows_first":2000,"rows_last":500,"rows_between":2000,"halvings":0,"cell_chars":16384,"cell_head_chars":4096},"cells_cut":0,"cells_raw":0,"read":"whole","date_system":"1900"}

{"sheet":"Test","index":0,"n_rows":1,"n_cols":5,"rows_kept":1,"cut":false,"hidden":false,"merged":[[0,4,0,5],[0,6,0,7],[0,10,0,11],[0,12,0,14]]}
["ABD","HKG",{"$f":"IF(ISERROR(VLOOKUP(A1,AirportCode,2,FALSE)),\"\",VLOOKUP(B1,AirportCode,2,FALSE))","v":"Hong Kong International"},null,{"$f":"IF(ISERROR(VLOOKUP(B1,AirportCode,2,FALSE)),\"\",VLOOKUP(A1,AirportCode,2,FALSE))","v":null}]

{"sheet":"CodeLists","index":1,"n_rows":2439,"n_cols":2,"rows_kept":2439,"cut":false,"hidden":false,"merged":[]}
["Code","Code name"]
["AAB","Arrabury"]
["AAE","Annaba Les Salines"]
["AAK","Aranuka"]
["AAL","Aalborg"]
["AAO","Anaco"]
["AAQ","Anapa"]
["AAR","Aarhus Tirstrup"]
["AAT","Altay"]
["AAY","Al Ghaydah"]
["ABA","Abakan"]
["ABD","Abadan"]
["ABE","Allentown Lehigh Valley International"]
["ABI","Abilene"]
["ABJ","Abidjan Felix Houphouet Boigny"]
["ABK","Kabri Dar"]
["ABL","Ambler"]
["ABM","Bamaga"]
["ABQ","Albuquerque International"]
["ABR","Aberdeen"]
["ABS","Abu Simbel"]
["ABT","Al-Baha Al-Aqiq"]
["ABU","Atambua"]
["ABV","Abuja International"]
["ABY","Albany Dougherty County"]
["ABZ","Aberdeen Dyce"]
["ACA","Acapulco Alvarez International"]
["ACC","Accra Kotoka"]
["ACD","Acandi"]
["ACE","Lanzarote"]
["ACI","Alderney The Blaye"]
["ACK","Nantucket Memorial"]
["ACR","Araracuara"]
["ACT","Waco"]
["ACV","Arcata"]
["ACY","Atlantic City Intl"]
["ADA","Adana"]
["ADB","Izmir Adnan Menderes"]
["ADD","Addis Ababa Bole"]
["ADK","Adak Island NS"]
["ADL","Adelaide"]
["ADQ","Kodiak"]
["ADY","Alldays"]
["ADZ","San Andres Island"]
["AEA","Abemama Atoll"]
["AEO","Aioun El Atrouss"]
["AEP","Buenos Aires Arpt. Jorge Newbery"]
["AER","Adler/Sochi"]
["AES","Aalesund Vigra"]
["AET","Allakaket"]
["AEY","Akureyri"]
["AFA","San Rafael"]
["AGA","Agadir Almassira"]
["AGB","Munich Augsburg - Muehlhausen"]
["AGE","Wangerooge Flugplatz"]
["AGF","Agen La Garenne"]
["AGH","Angelholm/Helsingborg Angelholm"]
["AGJ","Aguni"]
["AGL","Wanigela"]
["AGN","Angoon"]
["AGP","Malaga"]
["AGR","Agra Kheria"]
["AGS","Augusta Bush Field"]
["AGU","Aguascalientes Aguascalients"]
["AGV","Acarigua"]
["AGX","Agatti Island"]
["AGZ","Aggeneys"]
["AHB","Abha"]
["AHN","Athens"]
["AHO","Alghero Fertilia"]
["AHU","Al Hoceima Charif Al Idrissi"]
["AIA","Alliance"]
["AIC","Airok"]
["AIM","Ailuk Island"]
["AIS","Arorae Island"]
["AIT","Aitutaki"]
["AIU","Atiu Island"]
["AIY","Atlantic City Bader Field"]
["AJA","Ajaccio Campo Dell Oro"]
["AJF","Jouf"]
["AJL","Aizawl"]
["AJN","Anjouan Ouani"]
["AJR","Arvidsjaur"]
["AJU","Aracaju"]
["AKB","Atka"]
["AKF","Kufrah"]
["AKG","Anguganak"]
["AKI","Akiak"]
["AKJ","Asahikawa"]
["AKK","Akhiok SPB"]
["AKL","Auckland International"]
["AKN","King Salmon"]
["AKP","Anaktuvuk"]
["AKS","Auki Gwaunaru'u"]
["AKU","Aksu"]
["AKV","Akulivik"]
["AKX","Aktyubinsk"]
["ALA","Almaty"]
["ALB","Albany International"]
["ALC","Alicante"]
["ALF","Alta"]
["ALG","Algiers Houari Boumediene"]
["ALH","Albany"]
["ALJ","Alexander Bay Kortdoorn"]
["ALM","Alamogordo"]
["ALO","Waterloo"]
["ALP","Aleppo Nejrab"]
["ALR","Alexandra"]
["ALS","Alamosa"]
["ALT","Alenquer"]
["ALW","Walla Walla"]
["ALY","Alexandria El Nohza"]
["ALZ","Alitak SPB"]
["AMA","Amarillo International"]
["AMD","Ahmedabad"]
["AMH","Arba Mintch"]
["AMI","Mataram Selaparang"]
["AMM","Amman Queen Alia Intl"]
["AMP","Ampanihy"]
["AMQ","Ambon Pattimura"]
["AMS","Amsterdam-Schiphol"]
["AMU","Amanab"]
["AMY","Ambatomainty"]
["ANB","Anniston County"]
["ANC","Anchorage International"]
["ANF","Antofagasta Cerro Moreno"]
["ANG","Angouleme Brie-Champniers"]
["ANI","Aniak"]
["ANJ","Zanaga"]
["ANK","Ankara Etimesgut"]
["ANM","Antalaha Antsirabato"]
["ANR","Antwerp Deurne"]
["ANS","Andahuaylas"]
["ANU","Antigua V.C. Bird Intl"]
["ANV","Anvik"]
["ANX","Andenes"]
["AOI","Ancona Falconara"]
["AOJ","Aomori"]
["AOK","Karpathos"]
["AOL","Paso De Los Libres"]
["AOO","Altoona Martinsburg"]
["AOR","Alor Setar"]
["AOS","Amook"]
["APF","Naples"]
["API","Apiay"]
["APK","Apataki"]
["APL","Nampula"]
["APN","Alpena County Regional"]
["APO","Apartado"]
["APP","Asapa"]
["APQ","Arapiraca"]
["APW","Apia Faleolo"]
["APZ","Zapala"]
["AQI","Qaisumah"]
["AQJ","Aqaba King Hussein Intl"]
["AQP","Arequipa Rodriguez Ballon"]
["ARC","Arctic Village"]
["ARD","Alor Island"]
["ARF","Acaricuara"]
["ARH","Arkhangelsk"]
["ARI","Arica Chacalluta"]
["ARM","Armidale"]
["ARN","Stockholm Arlanda"]
["ARP","Aragip"]
["ARR","Alto Rio Senguerr"]
["ARU","Aracatuba"]
["ARV","Minocqua Noble F. Lee"]
["ARW","Arad"]
["ARZ","N'Zeto"]
["ASA","Assab"]
["ASB","Ashgabat"]
["ASE","Aspen"]
["ASF","Astrakhan"]
["ASJ","Amami O Shima"]
["ASM","Asmara International"]
["ASP","Alice Springs"]
["ASR","Kayseri"]
["ASU","Asuncion Silvio Pettirossi"]
["ASV","Amboseli"]
["ASW","Aswan"]
["ASX","Ashland"]
["ATB","Atbara"]
["ATC","Arthur's Town"]
["ATH","Athens Eleftherios Venizelos"]
["ATI","Artigas"]
["ATK","Atqasuk"]
["ATL","Atlanta Hartsfield-Jackson ATL"]
["ATM","Altamira"]
["ATP","Aitape Airstrip"]
["ATQ","Amritsar Raja Sansi"]
["ATR","Atar Mouakchott"]
["ATT","Atmautluak"]
["ATW","Appleton Outagamie County"]
["AUA","Aruba Reina Beatrix"]
["AUC","Arauca"]
["AUG","Augusta"]
["AUH","Abu Dhabi Intl"]
["AUJ","Ambunti"]
["AUK","Alakanuk"]
["AUP","Agaun"]
["AUQ","Atuona"]
["AUR","Aurillac"]
["AUS","Austin-Bergstrom International"]
["AUU","Aurukun Mission"]
["AUW","Wausau"]
["AUX","Araguaina"]
["AUY","Aneityum"]
["AVB","Aviano"]
["AVL","Asheville Regional"]
["AVN","Avignon-Caum"]
["AVP","Wilkes-Barre International"]
["AVU","Avu Avu"]
["AVX","Catalina Island Avalon Bay"]
["AWD","Aniwa"]
["AWH","Awareh"]
["AWN","Alton Downs"]
["AWZ","Ahwaz"]
["AXA","Anguilla Wallblake"]
["AXK","Ataq"]
["AXT","Akita"]
["AZO","Kalamazoo Battle Creek Intl"]
["BAA","Bialla"]
["BAG","Baguio Loakan"]
["BAH","Bahrain International"]
["BAK","Baku"]
["BAL","Batman"]
["BAQ","Barranquilla E Cortissoz"]
["BAS","Balalae"]
["BAU","Bauru"]
["BAV","Baotou"]
["BAX","Barnaul"]
["BAY","Baia Mare"]
["BBA","Balmaceda Teniente Vidal"]
["BBF","Burlington"]
["BBG","Butaritari"]
["BBI","Bhubaneswar"]
["BBK","Kasane"]
["BBN","Bario"]
["BBQ","Barbuda"]
["BBU","Bucharest Baneasa"]
["BBX","Blue Bell Wings Field"]
["BCD","Bacolod"]
["BCE","Bryce"]
["BCI","Barcaldine"]
["BCM","Bacau"]
["BCN","Barcelona"]
["BCO","Jinka"]
["BCZ","Bickerton Island"]
["BDA","Bermuda International"]
["BDB","Bundaberg"]
["BDD","Badu Island"]
["BDH","Bandar Lengeh"]
["BDJ","Banjarmasin Sjamsudin Noor"]
["BDL","Windsor Locks Bradley International"]
["BDO","Bandung Husein Sastranegara"]
["BDQ","Vadodara"]
["BDR","Bridgeport Igor I. Sikorsky Mem."]
["BDS","Brindisi Papola Casale"]
["BDT","Gbadolite"]
["BDU","Bardufoss"]
["BEG","Belgrade Beograd"]
["BEI","Beica"]
["BEJ","Berau"]
["BEK","Bareli"]
["BEL","Belem Val De Cans"]
["BEN","Benghazi Benina Intl"]
["BEO","Newcastle Belmont"]
["BEP","Bellary"]
["BER","Berlin"]
["BES","Brest Guipavas"]
["BET","Bethel Airport"]
["BEU","Bedourie"]
["BEW","Beira"]
["BEY","Beirut International"]
["BEZ","Beru"]
["BFD","Bradford"]
["BFF","Scottsbluff Scotts Bluff County"]
["BFL","Bakersfield Meadows Field"]
["BFN","Bloemfontein International"]
["BFO","Buffalo Range"]
["BFS","Belfast International"]
["BGA","Bucaramanga Palo Negro"]
["BGC","Braganca"]
["BGF","Bangui"]
["BGI","Bridgetown Grantley Adams Intl"]
["BGJ","Borgarfjordur Eystri"]
["BGK","Big Creek"]
["BGM","Endicott"]
["BGO","Bergen Flesland"]
["BGR","Bangor International"]
["BGW","Baghdad Al Muthana"]
["BGY","Milan Orio Al Serio"]
["BHB","Bar Harbor"]
["BHD","Belfast City"]
["BHE","Blenheim"]
["BHG","Brus Laguna"]
["BHK","Bukhara"]
["BHM","Birmingham"]
["BHN","Beihan"]
["BHO","Bhopal"]
["BHQ","Broken Hill"]
["BHS","Bathurst Raglan"]
["BHU","Bhavnagar"]
["BHV","Bahawalpur"]
["BHX","Birmingham International"]
["BHY","Beihai"]
["BHZ","Belo Horizonte"]
["BIA","Bastia Poretta"]
["BIC","Big Creek"]
["BID","Block Island"]
["BIH","Bishop"]
["BII","Bikini Atoll Enyu Airfield"]
["BIK","Biak Mokmer"]
["BIL","Billings"]
["BIM","Bimini International"]
["BIO","Bilbao"]
["BIQ","Biarritz Parme"]
["BIS","Bismarck"]
["BIU","Bildudalur"]
["BJA","Bejaia"]
["BJD","Bakkafjordur"]
["BJF","Batsfjord"]
["BJI","Bemidji"]
["BJL","Banjul Yundum International"]
["BJM","Bujumbura International"]
["BJO","Bermejo"]
["BJR","Bahar Dar"]
["BJS","Beijing"]
["BJW","Bajawa"]
["BJX","Leon/Guanajuato Del Bajio"]
["BKI","Kota Kinabalu"]
["BKK","Bangkok International"]
["BKO","Bamako"]
["BKW","Beckley"]
["BKX","Brookings"]
["BKY","Bukavu Kamenbe"]
["BKZ","Bukoba"]
["BLA","Barcelona Gen J A Anzoategui"]
["BLC","Bali"]
["BLE","Borlange/Falun Dala"]
["BLF","Princeton"]
["BLG","Belaga"]
["BLI","Bellingham"]
["BLL","Billund"]
["BLO","Blonduos"]
["BLQ","Bologna Guglielmo Marconi"]
["BLR","Bangalore Hindustan"]
["BLT","Blackwater"]
["BLZ","Blantyre Chileka"]
["BMB","Bumba"]
["BMD","Belo"]
["BME","Broome"]
["BMG","Bloomington"]
["BMI","Bloomington-Normal"]
["BMK","Borkum"]
["BMM","Bitam"]
["BMO","Bhamo"]
["BMP","Brampton Island"]
["BMS","Brumado"]
["BMU","Bima"]
["BMW","Bordj Badji Mokhtar"]
["BMY","Belep Island"]
["BNA","Nashville Metropolitan"]
["BNB","Boende"]
["BNC","Beni"]
["BND","Bandar Abbas"]
["BNE","Brisbane International"]
["BNI","Benin City"]
["BNJ","Cologne Bonn - Off-line Point"]
["BNK","Ballina Byron Gateway"]
["BNN","Bronnoysund Bronnoy"]
["BNP","Bannu"]
["BNU","Blumenau"]
["BNY","Bellona"]
["BOA","Boma"]
["BOB","Bora Bora Motu-mute"]
["BOC","Bocas Del Toro"]
["BOD","Bordeaux Airport"]
["BOG","Bogota Eldorado"]
["BOI","Boise Air Term. (Gowen Fld)"]
["BOJ","Bourgas"]
["BOM","Mumbai Chhatrapati Shivaji"]
["BON","Bonaire Flamingo International"]
["BOO","Bodo"]
["BOS","Boston Logan International"]
["BOX","Borroloola"]
["BOY","Bobo Dioulasso Borgo"]
["BPG","Barra Do Garcas"]
["BPN","Balikpapan Sepingan"]
["BPS","Porto Seguro"]
["BPT","Beaumont Jefferson County"]
["BPY","Besalampy"]
["BQE","Bubaque"]
["BQK","Brunswick Glynco Jetport"]
["BQL","Boulia"]
["BQN","Aguadilla Borinquen"]
["BQS","Blagoveschensk"]
["BQT","Brest"]
["BRC","San Carlos DeBariloche International"]
["BRD","Brainerd Crow Wing County"]
["BRE","Bremen"]
["BRI","Bari Palese"]
["BRK","Bourke"]
["BRL","Burlington"]
["BRM","Barquisimeto"]
["BRN","Berne Belp"]
["BRQ","Brno Turany"]
["BRR","Barra North Bay"]
["BRS","Bristol"]
["BRT","Bathurst Island"]
["BRU","Brussels National"]
["BRV","Bremerhaven"]
["BRW","Barrow Wiley Post/W.Rogers M"]
["BSB","Brasilia International"]
["BSC","Bahia Solano"]
["BSD","Baoshan"]
["BSJ","Bairnsdale"]
["BSK","Biskra"]
["BSL","Mulhouse/Basel EuroAirport Swiss CH"]
["BSP","Bensbach"]
["BSR","Basra International"]
["BSU","Basankusu"]
["BSV","Besakoa"]
["BTH","Batam Hang Nadim"]
["BTI","Barter Island"]
["BTJ","Banda Aceh Blang Bintang"]
["BTK","Bratsk"]
["BTM","Butte"]
["BTN","Bennettsville"]
["BTR","Baton Rouge Ryan"]
["BTS","Bratislava Ivanka"]
["BTT","Bettles"]
["BTU","Bintulu"]
["BTV","Burlington International"]
["BUA","Buka"]
["BUC","Burketown"]
["BUD","Budapest Ferihegy"]
["BUE","Buenos Aires"]
["BUF","Buffalo Niagara International"]
["BUG","Benguela Gen V Deslandes"]
["BUH","Bucharest"]
["BUI","Bokondini"]
["BUK","Albuq"]
["BUL","Bulolo"]
["BUP","Bhatinda"]
["BUQ","Bulawayo"]
["BUR","Burbank Bob Hope"]
["BUS","Batumi"]
["BUX","Bunia"]
["BUZ","Bushehr"]
["BVA","Paris Beauvais-Tille Airport"]
["BVB","Boa Vista"]
["BVC","Boa Vista Rabil"]
["BVE","Brive-La-Gaillarde Laroche"]
["BVG","Berlevag"]
["BVH","Vilhena"]
["BVI","Birdsville"]
["BVM","Belmonte"]
["BWD","Brownwood"]
["BWE","Braunschweig"]
["BWI","Baltimore Balt/Wash Intl"]
["BWN","Bandar Seri Begawan Brunei International"]
["BWQ","Brewarrina"]
["BWT","Burnie Wynyard"]
["BXB","Babo"]
["BXC","Boxborough"]
["BXD","Bade"]
["BXM","Batom"]
["BXO","Buochs"]
["BXV","Breiddalsvik"]
["BYB","Dibaa"]
["BYC","Yacuiba"]
["BZE","Belize City Philip S.W.Goldson Int"]
["BZN","Bozeman Gallatin Field"]
["BZR","Beziers Vias"]
["BZV","Brazzaville Maya Maya"]
["CAB","Cabinda"]
["CAC","Cascavel"]
["CAE","Columbia Metropolitan Airport"]
["CAG","Cagliari Elmas"]
["CAI","Cairo International"]
["CAJ","Canaima"]
["CAK","Akron/Canton Regional"]
["CAL","Campbeltown Machrihanish"]
["CAM","Camiri"]
["CAN","Guangzhou Baiyun"]
["CAP","Cap Haitien"]
["CAQ","Caucasia"]
["CAS","Casablanca Anfa"]
["CAW","Campos Bartolomeu Lisandro"]
["CAY","Cayenne Rochambeau"]
["CAZ","Cobar"]
["CBB","Cochabamba J Wilsterman"]
["CBD","Car Nicobar"]
["CBH","Bechar Leger"]
["CBL","Ciudad Bolivar"]
["CBN","Cirebon Penggung"]
["CBO","Cotabato Awang"]
["CBQ","Calabar"]
["CBR","Canberra"]
["CBX","Condobolin"]
["CBZ","Cabin Creek"]
["CCJ","Kozhikode"]
["CCM","Criciuma"]
["CCO","Carimagua"]
["CCP","Concepcion Carriel Sur"]
["CCR","Concord Buchanan Fld"]
["CCS","Caracas Simon Bolivar"]
["CCT","Colonia Catriel"]
["CCU","Kolkata Netaji Subhas Chandra"]
["CCV","Craig Cove"]
["CCZ","Chub Cay"]
["CDB","Cold Bay"]
["CDC","Cedar City"]
["CDE","Caledonia"]
["CDG","Paris Ch. De Gaulle"]
["CDH","Camden Harrell Fld"]
["CDI","Cachoeiro Itapemirim"]
["CDJ","Conceicao Do Araguaia"]
["CDL","Candle"]
["CDP","Cuddapah"]
["CDR","Chadron"]
["CDV","Cordova Mudhole Smith"]
["CEB","Cebu Mactan International"]
["CEC","Crescent City Mc Namara Fld"]
["CED","Ceduna"]
["CEF","Chicopee Westover Metro Arpt"]
["CEI","Chiang Rai"]
["CEK","Chelyabinsk"]
["CEM","Central"]
["CEN","Ciudad Obregon"]
["CEO","Waco Kungo"]
["CEQ","Cannes Mandelieu"]
["CER","Cherbourg Maupertus"]
["CES","Cessnock"]
["CEZ","Cortez Montezuma County"]
["CFE","Clermont-Ferrand Aulnat"]
["CFH","Clifton Hills"]
["CFN","Donegal"]
["CFO","Confreza"]
["CFR","Caen Carpiquet"]
["CFS","Coffs Harbour"]
["CFU","Kerkyra I. Kapodistrias"]
["CGA","Craig SPB"]
["CGB","Cuiaba M. Rondon"]
["CGH","Sao Paulo Congonhas"]
["CGI","Cape Girardeau"]
["CGK","Jakarta Soekarno-Hatta Intl"]
["CGN","Cologne/Bonn"]
["CGO","Zhengzhou"]
["CGP","Chittagong Patenga"]
["CGQ","Changchun"]
["CGR","Campo Grande Internacional"]
["CGX","Chicago Merrill C Meigs"]
["CGY","Cagayan De Oro Lumbia"]
["CHA","Chattanooga Lovell Field"]
["CHC","Christchurch International"]
["CHG","Chaoyang Airport"]
["CHH","Chachapoyas"]
["CHI","Chicago FSS"]
["CHO","Charlottesville Albemarle"]
["CHQ","Chania Souda"]
["CHS","Charleston AFB Municipal"]
["CHT","Chatham Island Karewa"]
["CHU","Chuathbaluk"]
["CHX","Changuinola"]
["CHY","Choiseul Bay"]
["CIA","Rome Ciampino"]
["CIB","Catalina Island Ap In The Sky"]
["CIC","Chico"]
["CID","Cedar Rapids"]
["CIF","Chifeng"]
["CIJ","Cobija E. Beltram"]
["CIK","Chalkyitsik"]
["CIL","Council Melsing Creek"]
["CIP","Chipata"]
["CIT","Shimkent"]
["CIU","Sault Ste Marie Chippewa County"]
["CIW","Canouan Island"]
["CIX","Chiclayo Cornel Ruiz"]
["CJA","Cajamarca"]
["CJB","Coimbatore Peelamedu"]
["CJC","Calama El Loa"]
["CJD","Candilejas"]
["CJJ","Cheongju"]
["CJL","Chitral"]
["CJS","Ciudad Juarez Intl Abraham Gonzalez"]
["CJU","Jeju Airport"]
["CKB","Clarksburg Benedum"]
["CKD","Crooked Creek"]
["CKG","Chongqing"]
["CKS","Carajas"]
["CKY","Conakry"]
["CLD","San Diego Carlsbad"]
["CLE","Cleveland Hopkins International"]
["CLJ","Cluj Napoca"]
["CLL","College Station Easterwood Field"]
["CLM","Port Angeles Fairchild Intl"]
["CLO","Cali Alfonso B. Aragon"]
["CLQ","Colima"]
["CLT","Charlotte Douglas"]
["CLY","Calvi Ste Catherine"]
["CLZ","Calabozo"]
["CMB","Colombo Bandaranayake International"]
["CMD","Cootamundra"]
["CMF","Chambery"]
["CMG","Corumba Internacional"]
["CMH","Columbus"]
["CMI","Champaign Willard University"]
["CMN","Casablanca Mohamed V"]
["CMP","Santana Do Araguaia Campo Alegre"]
["CMQ","Clermont"]
["CMU","Kundiawa Chimbu"]
["CMX","Hancock Houghton County"]
["CNB","Coonamble"]
["CNC","Coconut Island"]
["CND","Constanta Kogalniceanu"]
["CNE","Canon City"]
["CNF","Belo Horizonte Tancredo Neves International."]
["CNJ","Cloncurry"]
["CNM","Carlsbad"]
["CNQ","Corrientes Camba Punta"]
["CNS","Cairns"]
["CNX","Chiang Mai International"]
["CNY","Moab Canyonlands Field"]
["CNZ","Cangamba"]
["COC","Concordia"]
["COD","Cody/Yellowstone Yellowstone Regional"]
["COE","Coeur D'Alene"]
["COG","Condoto Mandinga"]
["COH","Cooch Behar"]
["COJ","Coonabarabran"]
["COK","Kochi"]
["COO","Cotonou"]
["COR","Cordoba Pajas Blancas"]
["COS","Colorado Springs Peterson Field"]
["COU","Columbia Regional"]
["COW","Coquimbo"]
["CPB","Capurgana"]
["CPC","San Martin DeLos Andes Chapelco"]
["CPD","Coober Pedy"]
["CPE","Campeche International"]
["CPH","Copenhagen Airport"]
["CPN","Cape Rodney"]
["CPO","Copiapo Desierto De Atacama"]
["CPQ","Campinas International"]
["CPR","Casper"]
["CPT","Cape Town Internationa"]
["CPV","Campina Grande Joao Suassuna"]
["CPX","Culebra"]
["CQF","Calais"]
["CQT","Caquetania"]
["CRD","Comodoro Rivadavia"]
["CRP","Corpus Christi International"]
["CRQ","Caravelas"]
["CRT","Crossett"]
["CRU","Carriacou Is"]
["CRV","Crotone"]
["CRW","Charleston Yeager"]
["CSB","Caransebes"]
["CSG","Columbus"]
["CSI","Casino"]
["CSK","Cap Skirring"]
["CST","Castaway"]
["CSX","Changsha"]
["CTA","Catania Fontanarossa"]
["CTL","Charleville"]
["CTM","Chetumal"]
["CTN","Cooktown"]
["CTS","Sapporo Chitose"]
["CTU","Chengdu"]
["CUC","Cucuta Camilo Dazo"]
["CUE","Cuenca"]
["CUG","Cudal"]
["CUJ","Culion"]
["CUL","Culiacan Fedl De Bachigualato"]
["CUM","Cumana"]
["CUP","Carupano"]
["CUQ","Coen"]
["CUR","Curacao Aeropuerto Hato"]
["CUT","Cutral"]
["CUU","Chihuahua Gen Fierro Villalobos"]
["CUY","Cue"]
["CUZ","Cuzco Velazco Astete"]
["CVG","Cincinnati Cinci./Nrthrn Kentucky"]
["CVL","Cape Vogel"]
["CVM","Ciudad Victoria"]
["CVN","Clovis"]
["CVQ","Carnarvon"]
["CVR","Culver City Hughes"]
["CVT","Coventry Baginton"]
["CWA","Wausau Central Wisconsin"]
["CWB","Curitiba Afonso Pena"]
["CWR","Cowarie"]
["CWS","Center Island"]
["CWT","Cowra"]
["CXA","Caicara De Oro"]
["CXB","Cox's Bazar"]
["CXH","Vancouver Coal Harbour"]
["CXI","Christmas Island"]
["CXJ","Caxias Do Sul Campo Dos Bugres"]
["CXP","Cilacap Tunggul Wulung"]
["CXT","Charters Towers"]
["CXY","Cat Cays"]
["CYB","Cayman Brac Is Gerrard-Smith"]
["CYC","Caye Chapel"]
["CYF","Chefornak SPB"]
["CYS","Cheyenne"]
["CZE","Coro"]
["CZH","Corozal"]
["CZL","Constantine Ain El Bey"]
["CZM","Cozumel"]
["CZS","Cruzeiro Do Sul Campo Internacional"]
["CZU","Corozal"]
["CZX","Changzhou"]
["DAB","Daytona Beach Regional"]
["DAC","Dhaka Zia International"]
["DAD","Da Nang"]
["DAE","Daparizo"]
["DAL","Dallas Love Field"]
["DAM","Damascus International"]
["DAN","Danville"]
["DAR","Dar Es Salaam International"]
["DAV","David Enrique Malek"]
["DAY","James Cox Dayton Intl"]
["DBA","Dalbandin"]
["DBD","Dhanbad"]
["DBM","Debra Marcos"]
["DBO","Dubbo"]
["DBP","Debepare"]
["DBQ","Dubuque"]
["DBV","Dubrovnik"]
["DCA","Washington Ronald Reagan National"]
["DCF","Dominica Cane Field"]
["DDC","Dodge City Municipal"]
["DDG","Dandong"]
["DDI","Daydream Is"]
["DDM","Dodoima"]
["DEC","Decatur Arpt"]
["DED","Dehra Dun"]
["DEL","Delhi Indira Gandhi Intl"]
["DEM","Dembidollo"]
["DEN","Denver International"]
["DER","Derim"]
["DET","Detroit City"]
["DEZ","Deirezzor Al Jafrah"]
["DFW","Dallas/Ft Worth Intl"]
["DGA","Dangriga"]
["DGE","Mudgee"]
["DGO","Durango Guadalupe Victoria"]
["DGT","Dumaguete"]
["DHA","Dhahran"]
["DHD","Durham Downs"]
["DHN","Dothan Arpt"]
["DIB","Dibrugarh Chabua"]
["DIE","Antsiranana/Arrachart"]
["DIJ","Dijon"]
["DIL","Dili Comoro"]
["DIO","Diomede Island"]
["DIR","Dire Dawa Aba Tenna D Yilma"]
["DIS","Loubomo"]
["DIY","Diyarbakir"]
["DJE","Djerba Melita"]
["DJG","Djanet Inedbirenne"]
["DJJ","Jayapura Sentani"]
["DJN","Delta Junction"]
["DKI","Dunk Island"]
["DKR","Dakar Yoff"]
["DLA","Douala"]
["DLC","Dalian"]
["DLG","Dillingham"]
["DLH","Duluth International"]
["DLK","Dulkaninna"]
["DLM","Dalaman"]
["DLO","Dolomi"]
["DLY","Dillons Bay"]
["DMB","Zhambyl"]
["DMD","Doomadgee"]
["DME","Moscow Domodedovo"]
["DMM","Dammam King Fahad International"]
["DMU","Dimapur"]
["DND","Dundee"]
["DNH","Dunhuang"]
["DNK","Dnepropetrovsk"]
["DNM","Denham"]
["DNQ","Deniliquin"]
["DNR","Dinard Pleurtuit"]
["DOA","Doany"]
["DOD","Dodoma"]
["DOF","Dora Bay"]
["DOG","Dongola"]
["DOH","Doha"]
["DOK","Donetsk"]
["DOL","Deauville St Gatien"]
["DOM","Dominica Melville Hall"]
["DOU","Dourados"]
["DPO","Devonport"]
["DPS","Denpasar Bali Ngurah Rai"]
["DRB","Derby"]
["DRG","Deering"]
["DRO","Durango La Plata"]
["DRR","Durrie"]
["DRS","Dresden Arpt"]
["DRW","Darwin"]
["DSD","La Desirade"]
["DSE","Dessie Combolcha"]
["DSK","Dera Ismail Khan"]
["DSM","Des Moines"]
["DTD","Datadawai"]
["DTM","Dortmund"]
["DTT","Detroit"]
["DTW","Detroit Wayne County"]
["DUB","Dublin"]
["DUD","Dunedin"]
["DUE","Dundo"]
["DUJ","Dubois Jefferson County"]
["DUM","Dumai Pinang Kampai"]
["DUS","Dusseldorf International"]
["DUT","Dutch Harbor Emergency Field"]
["DVL","Devils Lake"]
["DVO","Davao Mati"]
["DWB","Soalala"]
["DXB","Dubai"]
["DYA","Dysart"]
["DYU","Dushanbe dyu"]
["DZA","Dzaoudzi"]
["EAA","Eagle"]
["EAE","Emae"]
["EAM","Nejran"]
["EAR","Kearney"]
["EAS","San Sebastian"]
["EAT","Wenatchee Pangborn Field"]
["EAU","Eau Claire"]
["EBA","Elba Island Marina Di Campo"]
["EBB","Entebbe"]
["EBD","El Obeid"]
["EBG","El Bagre"]
["EBU","St Etienne Boutheon"]
["ECN","Ercan"]
["EDA","Edna Bay"]
["EDB","Eldebba"]
["EDF","Anchorage Elmendorf AFB"]
["EDI","Edinburgh"]
["EDL","Eldoret"]
["EEK","Eek"]
["EFD","Houston Ellington Field"]
["EFL","Kefallinia Argostolion"]
["EGC","Bergerac Roumanieres"]
["EGM","Sege"]
["EGN","Geneina"]
["EGS","Egilsstadir"]
["EGV","Eagle River"]
["EGX","Egegik"]
["EHL","El Bolson"]
["EIA","Eia Popondetta"]
["EIN","Eindhoven"]
["EIS","Beef Island"]
["EJA","Barrancabermeja Variguies"]
["EJH","Wedjh"]
["EKN","Elkins"]
["EKO","Elko"]
["ELB","El Banco San Bernado"]
["ELC","Elcho Island"]
["ELD","El Dorado Goodwin Field"]
["ELF","El Fasher"]
["ELG","El Golea"]
["ELH","North Eleuthera International"]
["ELI","Elim"]
["ELL","Ellisras"]
["ELM","Corning"]
["ELP","El Paso International"]
["ELQ","Gassim"]
["ELS","East London"]
["ELT","Tour Sinai City"]
["ELU","El Oued Guemar"]
["ELV","Elfin Cove SPB"]
["ELY","Ely Yelland"]
["EMA","Nottingham E. Midlands"]
["EMD","Emerald"]
["EME","Emden"]
["EMK","Emmonak"]
["EMN","Nema"]
["EMO","Emo"]
["EMS","Embessa"]
["EMX","El Maiten"]
["ENA","Kenai"]
["ENB","Eneabba West"]
["ENC","Nancy Essey"]
["ENE","Ende"]
["ENF","Enontekio"]
["ENS","Enschede Twente"]
["ENT","Enewetak Island"]
["ENU","Enugu"]
["ENY","Yan'an"]
["EOI","Eday"]
["EPL","Epinal Mirecourt"]
["EPR","Esperance"]
["EQS","Esquel"]
["ERA","Erigavo"]
["ERF","Erfurt"]
["ERH","Errachidia"]
["ERI","Erie International"]
["ERS","Windhoek Eros"]
["ERZ","Erzurum"]
["ESA","Esa'Ala"]
["ESB","Ankara Esenboga"]
["ESC","Escanaba Delta County Arpt"]
["ESD","Eastsound Orcas Island"]
["ESF","Alexandria Esler Field"]
["ESM","Esmeraldas"]
["ESR","El Salvador"]
["ETD","Etadunna"]
["ETH","Elat"]
["EUA","Eua Kaufana"]
["EUG","Eugene"]
["EUN","Laayoune Hassan I"]
["EUX","St Eustatius F D Roosevelt"]
["EVE","Harstad-Narvik Evenes"]
["EVG","Sveg"]
["EVN","Yerevan"]
["EWI","Enarotali"]
["EWO","Ewo"]
["EWR","Newark Liberty International"]
["EZE","Buenos Aires Ministro Pistarini"]
["FAE","Faroe Islands Vagar"]
["FAJ","Fajardo"]
["FAO","Faro"]
["FAV","Fakarava"]
["FBM","Lubumbashi Luano"]
["FCO","Rome Fiumicino"]
["FDE","Forde Bringeland"]
["FDF","Fort De France Lamentin"]
["FDH","Friedrichshafen"]
["FDR","Frederick"]
["FDU","Bandundu"]
["FEG","Fergana"]
["FEZ","Fez Sais"]
["FFO","Dayton Patterson AFB"]
["FHZ","Fakahina"]
["FIH","Kinshasa N'Djili"]
["FIN","Finschhafen"]
["FJR","Al-Fujairah Fujairah Intl Arpt"]
["FKI","Kisangani"]
["FKQ","Fak Fak"]
["FKS","Fukushima Airport"]
["FLA","Florencia Capitolio"]
["FLI","Flateyri"]
["FLN","Florianopolis Hercilio Luz"]
["FLR","Florence Peretola"]
["FLS","Flinders Island"]
["FLW","Flores Island Santa Cruz"]
["FMA","Formosa El Pucu"]
["FMI","Kalemie"]
["FNA","Freetown Lungi International"]
["FNC","Madeira"]
["FNI","Nimes Garons"]
["FNJ","Pyongyang Sunan"]
["FOC","Fuzhou"]
["FOO","Numfoor"]
["FOR","Fortaleza Pinto Martins"]
["FPO","Freeport Grand Bahama International"]
["FRA","Frankfurt International"]
["FRB","Forbes"]
["FRC","Franca"]
["FRS","Flores Santa Elena"]
["FRU","Bishkek"]
["FRW","Francistown"]
["FSC","Figari Sud Corse"]
["FSP","St Pierre"]
["FTA","Futuna Island Futuna Airport"]
["FTU","Fort Dauphin Marillac"]
["FTX","Owando"]
["FUE","Fuerteventura ."]
["FUG","Fuyang"]
["FUK","Fukuoka"]
["FUN","Funafuti Atol International"]
["FUT","Futuna Island"]
["FYN","Fuyun"]
["GAJ","Yamagata Junmachi"]
["GAS","Garissa"]
["GAU","Gawahati Borjhar"]
["GAX","Gamba"]
["GAY","Gaya"]
["GBC","Gasuke"]
["GBE","Gaborone Sir Seretse Khama Int"]
["GBJ","Marie Galante Les Bases"]
["GBZ","Great Barrier Island"]
["GCA","Guacamaya"]
["GCI","Guernsey"]
["GCM","Grand Cayman Island Owen Roberts Intl"]
["GDE","Gode/Iddidole"]
["GDL","Guadalajara Miguel Hidal"]
["GDQ","Gondar"]
["GDT","Grand Turk Is"]
["GDX","Magadan"]
["GEA","Noumea Magenta"]
["GEO","Georgetown Cheddi Jagan International"]
["GHT","Ghat"]
["GIB","Gibraltar North Front"]
["GIC","Boigu Island"]
["GIG","Rio De Janeiro Internacional"]
["GIS","Gisborne"]
["GJA","Guanaja"]
["GJL","Jijel"]
["GJR","Gjogur"]
["GKL","Great Keppel Island"]
["GLA","Glasgow International"]
["GLF","Golfito"]
["GLG","Glengyle"]
["GLI","Glen Innes"]
["GLT","Gladstone"]
["GLW","Glasgow"]
["GLX","Galela"]
["GMA","Gemena"]
["GMB","Gambela"]
["GME","Gomel"]
["GMP","Seoul Gimpo International"]
["GMR","Gambier Is"]
["GMU","Greenville Downtown"]
["GNB","Lyon Saint Geoirs"]
["GND","Grenada Point Saline Intl"]
["GNE","Ghent"]
["GNI","Green Island"]
["GNM","Guanambi"]
["GNR","General Roca"]
["GOA","Genoa Cristoforo Colombo"]
["GOB","Goba"]
["GOC","Gora"]
["GOI","Goa Dabolim"]
["GOJ","Nizhniy Novgorod"]
["GOM","Goma"]
["GOR","Gore"]
["GOT","Gothenburg Landvetter"]
["GPN","Garden Point"]
["GPO","General Pico"]
["GPS","Galapagos Is Baltra"]
["GRJ","George"]
["GRP","Gurupi"]
["GRU","Sao Paulo Guarulhos Intl"]
["GRV","Groznyj"]
["GRW","Graciosa Island"]
["GRX","Granada"]
["GRY","Grimsey"]
["GTO","Gorontalo Tolotio"]
["GUA","Guatemala City La Aurora"]
["GUI","Guiria"]
["GUL","Goulburn"]
["GUM","Guam A.B. Won Pat International"]
["GUR","Alotau Gurney"]
["GUU","Grundarfjordur"]
["GUV","Mougulu"]
["GUW","Atyrau"]
["GUX","Guna"]
["GVA","Geneva Geneve-Cointrin"]
["GVI","Green River"]
["GVX","Gavle Sandviken"]
["GWD","Gwadar"]
["GWE","Gweru"]
["GWT","Westerland - Sylt"]
["GXF","Seiyun"]
["GXQ","Coyhaique Ten. Vidal"]
["GYA","Guayaramerin"]
["GYE","Guayaquil Simon Bolivar"]
["GYI","Gisenyi"]
["GYM","Guaymas Gen Jose M Yanez"]
["GYN","Goiania Santa Genoveva"]
["GZO","Gizo"]
["GZT","Gaziantep"]
["HAA","Hasvik"]
["HAC","Hachijo Jima"]
["HAD","Halmstad"]
["HAH","Moroni Prince Said Ibrahim In"]
["HAJ","Hanover"]
["HAK","Haikou"]
["HAM","Hamburg"]
["HAN","Hanoi Noibai"]
["HAP","Long Island"]
["HAS","Hail"]
["HAU","Haugesund"]
["HAV","Havana Jose Marti Intl"]
["HBA","Hobart"]
["HDB","Heidelberg"]
["HDD","Hyderabad"]
["HDY","Hat Yai"]
["HEH","Heho"]
["HEI","Heide-Buesum"]
["HEK","Heihe"]
["HEL","Helsinki-Vantaa"]
["HER","Heraklion N. Kazantzakis Apt."]
["HET","Hohhot"]
["HFA","Haifa"]
["HFE","Hefei"]
["HFN","Hornafjordur"]
["HFT","Hammerfest"]
["HGD","Hughenden"]
["HGH","Hangzhou"]
["HGL","Helgoland"]
["HGN","Mae Hong Son"]
["HGO","Korhogo"]
["HGU","Mount Hagen Kagamuga"]
["HID","Horn Island"]
["HIJ","Hiroshima International"]
["HIN","Jinju Sacheon"]
["HIR","Honiara Henderson Intl"]
["HJR","Khajuraho"]
["HKD","Hakodate"]
["HKG","Hong Kong International"]
["HKK","Hokitika Arpt"]
["HKN","Hoskins"]
["HKT","Phuket International"]
["HLA","Lanseria"]
["HLD","Hailar"]
["HLF","Hultsfred"]
["HLH","Ulanhot"]
["HLP","Jakarta Halim Perdana Kusuma"]
["HLT","Hamilton"]
["HLZ","Hamilton"]
["HMA","Khanty-Mansiysk"]
["HME","Hassi Messaoud Oued Irara Apt"]
["HMJ","Khmelnitskiy"]
["HMO","Hermosillo Gen Pesqueira Garcia"]
["HNA","Hanamaki"]
["HND","Tokyo Haneda"]
["HNL","Honolulu International"]
["HNY","Hengyang"]
["HOD","Hodeidah Arpt"]
["HOE","Houeisay"]
["HOF","Alahsa"]
["HOK","Hooker Creek"]
["HOP","Hopkinsville Campbell AAF"]
["HOQ","Hof"]
["HOR","Horta"]
["HOU","Houston Hobby"]
["HOV","Orsta-Volda Hovden"]
["HPA","Ha'Apai Salote Pilolevu"]
["HPE","Hope Vale"]
["HRB","Harbin"]
["HRE","Harare"]
["HTI","Hamilton Island"]
["HWN","Hwange Nat Park"]
["HXX","Hay"]
["HYD","Hyderabad Begumpet"]
["HYN","Huangyan"]
["HZG","Hanzhong"]
["HZK","Husavik"]
["IAA","Igarka"]
["IAM","In Amenas"]
["ICN","Seoul Incheon International"]
["IEV","Kiev Zhulhany"]
["IFJ","Isafjordur"]
["IGO","Chigorodo"]
["IGU","Iguassu Falls Cataratas"]
["IKA","Tehran Imam Khomeini International"]
["IKI","Iki"]
["IKT","Irkutsk"]
["IND","Indianapolis International"]
["INN","Innsbruck Kranebitten"]
["IPH","Ipoh"]
["IQQ","Iquique Cavancha"]
["ISB","Islamabad Intl"]
["IST","Istanbul Ataturk"]
["ITM","Osaka Itami"]
["IUL","Ilu"]
["IVC","Invercargill"]
["IVL","Ivalo"]
["IVR","Inverell"]
["IWJ","Iwami"]
["IXA","Agartala Singerbhil"]
["IXB","Bagdogra"]
["IXC","Chandigarh"]
["IXH","Kailashahar"]
["IXI","Lilabari"]
["IXM","Madurai"]
["IXQ","Kamalpur"]
["IZM","Izmir"]
["IZO","Izumo"]
["JAI","Jaipur Sanganeer"]
["JAK","Jacmel"]
["JDF","Juiz De Fora Francisco De Assis"]
["JED","Jeddah King Abdulaziz Intl"]
["JFK","New York John F Kennedy Intl"]
["JHB","Johor Bahru Sultan Ismail Intl"]
["JIB","Djibouti Ambouli"]
["JKG","Jonkoping Axamo"]
["JKT","Jakarta"]
["JNB","Johannesburg International"]
["JOI","Joinville Cubatao"]
["JPA","Joao Pessoa Castro Pinto"]
["JRS","Jerusalem"]
["JUL","Juliaca"]
["JUV","Upernavik Heliport"]
["JYV","Jyvaskyla"]
["KAC","Kameshli"]
["KAG","Gangneung"]
["KAN","Aminu Kano Intl Apt"]
["KAT","Kaitaia"]
["KBL","Kabul Khwaja Rawash"]
["KBR","Kota Bharu Pengkalan Chepa"]
["KBY","Streaky Bay"]
["KCH","Kuching"]
["KCZ","Kochi"]
["KDA","Kolda"]
["KEA","Keisah"]
["KEI","Kepi"]
["KGL","Kigali Gregoire Kayibanda"]
["KHH","Kaohsiung International"]
["KHI","Karachi Quaid-E-Azam Intl"]
["KHV","Khabarovsk Novyy"]
["KIH","Kish Island"]
["KIJ","Niigata"]
["KIN","Kingston Norman Manley"]
["KIV","Chisinau"]
["KIX","Osaka Kansai International"]
["KJA","Krasnojarsk"]
["KLD","Kalinin Migalovo"]
["KLO","Kalibo"]
["KLR","Kalmar"]
["KLU","Klagenfurt"]
["KLX","Kalamata"]
["KMG","Kunming"]
["KMI","Miyazaki"]
["KMJ","Kumamoto"]
["KMM","Kimam"]
["KMQ","Komatsu"]
["KNU","Kanpur"]
["KNX","Kununurra"]
["KOE","Kupang Eltari"]
["KOJ","Kagoshima"]
["KOK","Kokkola/Pietarsaari Kruunupyy"]
["KOO","Kongolo"]
["KOW","Ganzhou"]
["KPI","Kapit"]
["KPO","Pohang"]
["KPS","Kempsey"]
["KRA","Kerang"]
["KRE","Kirundo"]
["KRF","Kramfors"]
["KRK","Krakow J. Paul II Balice Intl"]
["KRL","Korla"]
["KRN","Kiruna"]
["KRP","Karup"]
["KRT","Khartoum Civil"]
["KRW","Turkmenbashi Turkmanbashi"]
["KRX","Kar Kar"]
["KSA","Kosrae"]
["KSD","Karlstad"]
["KSE","Kasese"]
["KSL","Kassala"]
["KSN","Kostanay"]
["KSO","Kastoria Aristoteles Airport"]
["KSQ","Karshi"]
["KTA","Karratha"]
["KTD","Kitadaito"]
["KTE","Kerteh"]
["KTF","Takaka"]
["KTG","Ketapang"]
["KTM","Kathmandu Tribhuvan"]
["KTP","Kingston Tinson"]
["KTR","Katherine Tindal"]
["KTT","Kittila"]
["KTU","Kota"]
["KUA","Kuantan"]
["KUD","Kudat"]
["KUF","Samara"]
["KUG","Kubin Island"]
["KUH","Kushiro"]
["KUL","Kuala Lumpur International"]
["KUM","Yakushima"]
["KUO","Kuopio"]
["KUP","Kupiano"]
["KUT","Kutaisi"]
["KUU","Kulu Bhuntar"]
["KUV","Gunsan"]
["KVA","Kavala Megas Alexandros Apt."]
["KVB","Skovde"]
["KVG","Kavieng"]
["KVX","Kirov"]
["KWA","Kwajalein"]
["KWE","Guiyang"]
["KWH","Khwahan"]
["KWI","Kuwait International"]
["KWJ","Gwangju"]
["KWL","Guilin"]
["KWM","Kowanyama"]
["KWY","Kiwayu"]
["KYA","Konya"]
["KYD","Orchid Island"]
["KYP","Kyaukpyu"]
["KYX","Yalumet"]
["KZI","Kozani Philippos Airport"]
["KZS","Kastelorizo"]
["LAB","Lablab"]
["LAD","Luanda 4 de Fevereiro"]
["LAI","Lannion Servel"]
["LAJ","Lages"]
["LAK","Aklavik"]
["LAP","La Paz Leon"]
["LAQ","Beida La Braq"]
["LAS","Las Vegas Mccarran Intl"]
["LAU","Lamu"]
["LAX","Los Angeles International"]
["LAY","Ladysmith"]
["LAZ","Bom Jesus Da Lapa"]
["LBA","Leeds/Bradford"]
["LBG","Paris Le Bourget"]
["LBH","Sydney Palm Beach SPB"]
["LBI","Albi Le Sequestre"]
["LBJ","Labuan Bajo Mutiara"]
["LBS","Labasa"]
["LBU","Labuan"]
["LBV","Libreville"]
["LBW","Long Bawan"]
["LCA","Larnaca"]
["LCD","Louis Trichardt"]
["LCE","La Ceiba Goloson International"]
["LCG","La Coruna"]
["LCR","La Chorrera"]
["LDC","Lindeman Island"]
["LDE","Lourdes/Tarbes Tarbes Ossun Lourdes"]
["LDH","Lord Howe Island"]
["LDI","Lindi Kikwetu"]
["LDK","Lidkoping Hovby"]
["LDU","Lahad Datu"]
["LED","St Petersburg Pulkovo"]
["LEH","Le Havre Octeville"]
["LEI","Almeria"]
["LEJ","Leipzig/Halle"]
["LEL","Lake Evella"]
["LER","Leinster"]
["LET","Leticia Gen. A.V. Cobo"]
["LEV","Bureta Levuka Airfield"]
["LFR","La Fria"]
["LFW","Lome"]
["LGB","Long Beach Municipal"]
["LGG","Liege Bierset"]
["LGI","Long Island Deadmans Cay"]
["LGK","Langkawi"]
["LGL","Long Lellang"]
["LGP","Legaspi"]
["LGQ","Lago Agrio"]
["LGZ","Leguizamo"]
["LHE","Lahore"]
["LHG","Lightning Ridge"]
["LHI","Lereh"]
["LHR","London Heathrow"]
["LHS","Las Heras"]
["LHW","Lanzhou"]
["LIF","Lifou"]
["LIL","Lille Lesquin"]
["LIM","Lima J Chavez Intl"]
["LIN","Milan Linate"]
["LIQ","Lisala"]
["LIR","Liberia"]
["LIS","Lisbon Lisboa"]
["LIW","Loikaw"]
["LJA","Lodja"]
["LJU","Ljubljana Brnik"]
["LKA","Larantuka"]
["LKB","Lakeba"]
["LKN","Leknes"]
["LKO","Lucknow Amausi"]
["LLA","Lulea Kallax"]
["LLW","Lilongwe International"]
["LMI","Lumi"]
["LMM","Los Mochis Federal"]
["LMN","Limbang"]
["LMP","Lampedusa"]
["LMS","Louisville Winston County"]
["LMX","Lopez De Micay"]
["LMY","Lake Murray"]
["LNB","Lamen Bay"]
["LNF","Munbil"]
["LNO","Leonora"]
["LNZ","Linz Hoersching"]
["LOD","Longana"]
["LOE","Loei"]
["LOF","Loen"]
["LON","London"]
["LOS","Lagos Murtala Muhammed"]
["LPA","Las Palmas Arpt De Gran Canaria"]
["LPB","La Paz El Alto"]
["LPD","La Pedrera"]
["LPE","La Primavera"]
["LPG","La Plata"]
["LPI","Linkoping"]
["LPK","Lipetsk"]
["LPL","Liverpool John Lennon"]
["LPM","Lamap"]
["LPP","Lappeenranta"]
["LPQ","Luang Prabang"]
["LPT","Lampang"]
["LPU","Long Apung"]
["LPY","Le Puy Loudes"]
["LRA","Larisa"]
["LRD","Laredo International"]
["LSH","Lashio"]
["LTK","Latakia"]
["LTL","Lastourville"]
["LTO","Loreto"]
["LTQ","Le Touquet"]
["LUD","Luderitz"]
["LUG","Lugano"]
["LUI","La Union"]
["LUN","Lusaka"]
["LUO","Luena"]
["LUQ","San Luis"]
["LUW","Luwuk"]
["LUX","Luxembourg"]
["LVB","Livramento Dos Galpoes"]
["LVI","Livingstone"]
["LVO","Laverton"]
["LYG","Lianyungang"]
["LYP","Faisalabad"]
["LYS","Lyon Satolas"]
["LZH","Liuzhou"]
["MAA","Chennai"]
["MAB","Maraba"]
["MAD","Madrid Barajas"]
["MAG","Madang"]
["MAH","Menorca"]
["MAJ","Majuro Amata Kabua Intl"]
["MAL","Mangole"]
["MAM","Matamoros"]
["MAN","Manchester International"]
["MAO","Manaus Eduardo Gomes Intl"]
["MAP","Mamai"]
["MAQ","Mae Sot"]
["MAR","Maracaibo La Chinita"]
["MAS","Manus Island Momote"]
["MAT","Matadi"]
["MAU","Maupiti"]
["MAY","Mangrove Cay"]
["MAZ","Mayaguez Eugenio M De Hostos"]
["MBA","Mombasa Moi International"]
["MBC","Mbigou"]
["MBE","Monbetsu"]
["MBH","Maryborough"]
["MBJ","Montego Bay Sangster Intl"]
["MBU","Mbambanakira"]
["MBW","Moorabbin"]
["MCH","Machala"]
["MCK","Mccook"]
["MCM","Monte Carlo Heliport"]
["MCO","Orlando International"]
["MCP","Macapa Internacional"]
["MCT","Muscat Seeb"]
["MCU","Montlucon Gueret (Lepaud)"]
["MCX","Makhachkala"]
["MCY","Sunshine Coast Maroochydore"]
["MCZ","Maceio Palmares"]
["MDC","Manado Samratulangi"]
["MDE","Medellin Jose Marie Cordova"]
["MDG","Mudanjiang"]
["MDI","Makurdi"]
["MDK","Mbandaka"]
["MDL","Mandalay Annisaton"]
["MDP","Mindiptana"]
["MDQ","Mar Del Plata"]
["MDU","Mendi"]
["MDZ","Mendoza El Plumerillo"]
["MEA","Macae"]
["MEB","Melbourne Essendon"]
["MEC","Manta"]
["MED","Madinah Mohammad Bin Abdulaziz"]
["MEE","Mare"]
["MEG","Malange"]
["MEH","Mehamn"]
["MEL","Melbourne Tullamarine"]
["MEM","Memphis International"]
["MES","Medan Polania"]
["MEX","Mexico City Juarez International"]
["MFE","Mission"]
["MFM","Macau"]
["MGA","Managua Augusto C Sandino"]
["MGH","Margate"]
["MGO","Manega"]
["MGQ","Mogadishu International"]
["MGS","Mangaia Island"]
["MGZ","Myeik"]
["MHD","Mashad"]
["MHQ","Mariehamn"]
["MHY","Morehead"]
["MIA","Miami International"]
["MID","Merida Rejon"]
["MII","Marilia Dr Gastao Vidigal"]
["MIJ","Mili Island"]
["MIK","Mikkeli"]
["MIL","Milan"]
["MIM","Merimbula"]
["MIR","Monastir Habib Bourguiba International"]
["MIU","Maiduguri"]
["MJB","Mejit Island"]
["MJC","Man"]
["MJD","Mohenjodaro"]
["MJE","Majkin"]
["MKZ","Malacca Batu Berendum"]
["MLA","Malta Luqa"]
["MLE","Male International"]
["MLH","Basel/Mulhouse EuroAirport French FR"]
["MLN","Melilla"]
["MLW","Monrovia Sprigg Payne"]
["MMA","Malmo"]
["MMB","Memanbetsu"]
["MMJ","Matsumoto"]
["MNC","Nacala"]
["MNL","Manila Ninoy Aquino Intl"]
["MNY","Mono"]
["MOF","Maumere Waioti"]
["MOI","Mitiaro Island"]
["MOL","Molde Aro"]
["MOW","Moscow"]
["MOZ","Moorea Temae"]
["MPD","Mirpur Khas"]
["MPK","Mokpo"]
["MPM","Maputo International"]
["MPT","Maliana"]
["MQL","Mildura"]
["MQN","Mo I Rana"]
["MRD","Merida A Carnevalli"]
["MRE","Mara Lodges"]
["MRO","Masterton"]
["MRS","Marseille"]
["MRU","Mauritius S.Seewoosagur Ram.Int"]
["MSA","Muskrat Dam"]
["MSH","Masirah"]
["MSJ","Misawa"]
["MSP","Minneapolis St Paul Intl"]
["MSQ","Minsk International 2"]
["MST","Maastricht/Aachen"]
["MSU","Maseru Moshoeshoe Intl"]
["MSY","New Orleans Louis Armstrong International"]
["MSZ","Namibe"]
["MTF","Mizan Teferi"]
["MTL","Maitland"]
["MTR","Monteria S. Jeronimo"]
["MTY","Monterrey Gen Mariano Escobedo"]
["MUA","Munda"]
["MUC","Munich Franz Josef Strauss"]
["MUH","Mersa Matruh"]
["MUK","Mauke Island"]
["MUL","Moultrie Spence"]
["MUN","Maturin Quiriquire"]
["MUR","Marudi"]
["MUX","Multan"]
["MUZ","Musoma"]
["MVB","Franceville/Mvengue"]
["MVD","Montevideo Carrasco"]
["MVK","Mulka"]
["MVP","Mitu"]
["MVR","Maroua Salam"]
["MWD","Mianwali"]
["MWE","Merowe"]
["MWF","Maewo"]
["MWT","Moolawatana"]
["MWZ","Mwanza"]
["MXL","Mexicali"]
["MXP","Milan Malpensa"]
["MXS","Maota Savaii Is"]
["MXX","Mora"]
["MXZ","Meixian"]
["MYA","Moruya"]
["MYC","Maracay"]
["MYD","Malindi"]
["MYE","Miyake Jima"]
["MYJ","Matsuyama"]
["MZM","Metz Frescaty"]
["MZP","Motueka"]
["MZT","Mazatlan Gen Rafael Buelna"]
["NAG","Nagpur Sonegaon"]
["NAH","Naha"]
["NAK","Nakhon Ratchasima"]
["NAN","Nadi International"]
["NAP","Naples"]
["NAR","Nare"]
["NAS","Nassau International"]
["NAT","Natal Augusto Severo"]
["NAW","Narathiwat"]
["NBO","Nairobi Jomo Kenyatta Intl"]
["NBX","Nabire"]
["NCE","Nice Cote D'Azur"]
["NCH","Nachingwea"]
["NCS","Newcastle"]
["NCY","Annecy-Meythe"]
["NDC","Nanded"]
["NDG","Qiqihar"]
["NDK","Namdrik Island"]
["NDM","Mendi"]
["NDU","Rundu"]
["NDY","Sanday"]
["NEC","Necochea"]
["NEW","New Orleans Lakefront"]
["NGA","Young"]
["NGB","Ningbo"]
["NGE","Ngaoundere"]
["NGO","Nagoya Chubu Centrair International"]
["NGS","Nagasaki"]
["NIC","Nicosia"]
["NIM","Niamey"]
["NJA","Atsugi NAS"]
["NKG","Nanking/Nanjing"]
["NLA","Ndola"]
["NLD","Nuevo Laredo Intl Quetzalcoatl"]
["NLF","Darnley Island"]
["NLL","Nullagine"]
["NLP","Nelspruit"]
["NMG","San Miguel"]
["NNG","Nanning"]
["NNT","Nan"]
["NNX","Nunukan"]
["NOA","Nowra"]
["NOB","Nosara Beach"]
["NOC","Knock International"]
["NOR","Nordfjordur"]
["NOU","Noumea Tontouta"]
["NOV","Huambo"]
["NPL","New Plymouth"]
["NQN","Neuquen"]
["NQU","Nuqui"]
["NRK","Norrkoping Kungsangen"]
["NRT","Tokyo Narita"]
["NSA","Noosa"]
["NSM","Norseman"]
["NSN","Nelson"]
["NSO","Scone"]
["NTE","Nantes Atlantique"]
["NTI","Bintuni"]
["NTN","Normanton"]
["NTY","Sun City Pilansberg"]
["NUE","Nuremberg"]
["NVA","Neiva La Marguita"]
["NYC","New York"]
["NYE","Nyeri"]
["NYK","Nanyuki"]
["NYN","Nyngan"]
["NYO","Stockholm Skavsta"]
["NYU","Nyaung-u"]
["OAG","Orange Springhill"]
["OAM","Oamaru"]
["OBD","Obano"]
["OBO","Obihiro"]
["OBX","Obo"]
["OCC","Coca"]
["OCJ","Ocho Rios Boscobel"]
["OCV","Ocana Aguasclaras"]
["ODL","Cordillo Downs"]
["OHD","Ohrid"]
["OHT","Kohat"]
["OIM","Oshima"]
["OIR","Okushiri"]
["OIT","Oita"]
["OKA","Okinawa Naha"]
["OKD","Sapporo Okadama"]
["OKE","Okino Erabu"]
["OKI","Oki Island"]
["OKJ","Okayama"]
["OKL","Oksibil"]
["OKN","Okondja"]
["OKQ","Okaba"]
["OKR","Yorke Island"]
["OLB","Olbia Costa Smeralda"]
["OLI","Olafsvik Rif"]
["OLP","Olympic Dam"]
["OMA","Omaha Eppley Airfield"]
["OMO","Mostar"]
["OMR","Oradea"]
["OND","Ondangwa"]
["ONJ","Odate Noshiro"]
["ONX","Colon"]
["OOL","Gold Coast"]
["OPO","Porto"]
["ORB","Orebro-Bofors"]
["ORC","Orocue"]
["ORD","Chicago O'Hare International"]
["ORG","Paramaribo Zorg En Hoop"]
["ORK","Cork"]
["ORL","Orlando Herndon"]
["ORN","Oran Es Senia"]
["ORW","Ormara"]
["ORY","Paris Orly"]
["OSA","Osaka"]
["OSD","Ostersund Froesoe"]
["OSI","Osijek"]
["OSL","Oslo Airport"]
["OST","Ostend Railway Station"]
["OSY","Namsos"]
["OTP","Bucharest Otopeni International"]
["OTR","Coto 47"]
["OTU","Otu"]
["OUA","Ouagadougou"]
["OUD","Oujda Les Angades"]
["OUS","Ourinhos"]
["OVB","Novosibirsk Tolmachevo"]
["OVD","Asturias"]
["OZZ","Ouarzazate"]
["PAB","Bilaspur"]
["PAD","Paderborn"]
["PAG","Pagadian"]
["PAN","Pattani"]
["PAP","Port Au Prince Mais Gate"]
["PAR","Paris"]
["PAS","Paros"]
["PAT","Patna"]
["PAV","Paulo Afonso"]
["PBC","Puebla Huejotsingo"]
["PBE","Puerto Berrio"]
["PBM","Paramaribo Zanderij Intl"]
["PCC","Puerto Rico"]
["PCN","Picton Koromiko"]
["PDA","Puerto Inirida"]
["PDE","Pandie Pandie"]
["PDG","Padang Tabing"]
["PDN","Parndana"]
["PDP","Punta Del Este"]
["PDU","Paysandu"]
["PDX","Portland International"]
["PEA","Penneshaw"]
["PEI","Pereira Matecana"]
["PEK","Beijing Capital"]
["PEM","Puerto Maldonado"]
["PEN","Penang International"]
["PER","Perth"]
["PES","Petrozavodsk"]
["PET","Pelotas Federal"]
["PEW","Peshawar"]
["PFB","Passo Fundo"]
["PFJ","Patreksfjordur"]
["PGK","Pangkalpinang"]
["PGX","Perigueux"]
["PHI","Pinheiro"]
["PHL","Philadelphia International"]
["PHX","Phoenix Sky Harbor Intl"]
["PIG","Pitinga"]
["PIK","Glasgow Prestwick"]
["PIS","Poitiers Biard"]
["PKC","Petropavlovsk-Kamchats"]
["PKE","Parkes"]
["PKN","Pangkalanbuun"]
["PKP","Puka Puka"]
["PKU","Pekanbaru Simpang Tiga"]
["PKY","Palangkaraya"]
["PKZ","Pakse"]
["PLM","Palembang Mahmud Badaruddin Ii"]
["PLS","Providenciales International"]
["PLW","Palu Mutiara"]
["PLZ","Port Elizabeth"]
["PMA","Pemba Wawi"]
["PMC","Puerto Montt Tepual"]
["PMF","Milan Parma"]
["PMV","Porlamar DelCaribe Gen S Marino"]
["PMW","Palmas"]
["PMZ","Palmar Sur"]
["PNA","Pamplona"]
["PNB","Porto Nacional"]
["PND","Punta Gorda"]
["PNH","Phnom Penh Pochentong"]
["PNK","Pontianak Supadio"]
["PNL","Pantelleria"]
["PNQ","Pune Lohegaon"]
["PNZ","Petrolina Internacional"]
["POA","Porto Alegre Salgado Filho"]
["POG","Port Gentil"]
["POL","Pemba"]
["POM","Port Moresby Jackson Fld"]
["POO","Pocos De Caldas"]
["POR","Pori"]
["POS","Trinidad"]
["POT","Port Antonio Ken Jones"]
["POX","Paris Cergy Pontoise"]
["POZ","Poznan Lawica"]
["PPB","Presidente Prudente A. De Barros"]
["PPE","Puerto Penasco"]
["PPG","Pago Pago International"]
["PPN","Popayan Machangara"]
["PPP","Proserpine Whitsunday Coast"]
["PPQ","Paraparaumu"]
["PPW","Papa Westray"]
["PQQ","Port Macquarie"]
["PRG","Prague Ruzyne"]
["PRH","Phrae"]
["PRN","Pristina"]
["PSA","Florence Gal Galilei"]
["PSD","Port Said"]
["PSJ","Poso"]
["PSO","Pasto Cano"]
["PSR","Pescara Liberi"]
["PSS","Posadas"]
["PSZ","Puerto Suarez"]
["PTY","Panama City Tocumen International"]
["PUD","Puerto Deseado"]
["PUG","Port Augusta"]
["PUM","Pomala"]
["PUQ","Punta Arenas Pres Ibanez"]
["PUS","Busan Gimhae"]
["PUU","Puerto Asis"]
["PUY","Pula"]
["PVA","Providencia"]
["PVG","Shanghai Pu Dong"]
["PVH","Porto Velho Belmonte"]
["PWM","Portland Intl Jetport"]
["PXM","Puerto Escondido"]
["PYR","Pyrgos Andravida"]
["PZU","Port Sudan"]
["QPG","Singapore Paya Lebar"]
["RAJ","Rajkot Civil"]
["RAZ","Rawala Kot"]
["RBA","Rabat Sale"]
["RBR","Rio Branco Pres. Medici"]
["RCH","Riohacha"]
["RCM","Richmond"]
["RCN","American River"]
["RCU","Rio Cuarto"]
["RDC","Redencao"]
["RDE","Merdey"]
["REG","Reggio Calabria Tito Menniti"]
["REK","Reykjavik"]
["RES","Resistencia"]
["REW","Rewa"]
["RGA","Rio Grande"]
["RGH","Balurghat"]
["RGL","Rio Gallegos Internacional"]
["RGN","Yangon Mingaladon"]
["RGT","Rengat Japura"]
["RHE","Reims"]
["RIB","Riberalta Gen Buech"]
["RIJ","Rioja"]
["RIO","Rio De Janeiro"]
["RIX","Riga"]
["RJA","Rajahmundry"]
["RJH","Rajshahi"]
["RJK","Rijeka"]
["RKE","Copenhagen Roskilde Airport"]
["RKT","Ras Al Khaimah"]
["RMD","Ramagundam"]
["RMI","Rimini Miramare"]
["RMK","Renmark"]
["RNE","Roanne Renaison"]
["RNN","Bornholm"]
["RNS","Rennes St Jacques"]
["ROB","Monrovia Roberts Intl"]
["ROM","Rome"]
["ROO","Rondonopolis"]
["ROS","Rosario Fisherton"]
["ROY","Rio Mayo"]
["RPR","Raipur"]
["RSS","Roseires"]
["RSU","Yeosu"]
["RTI","Roti"]
["RTM","Rotterdam"]
["RTY","Merty"]
["RUA","Arua"]
["RUH","Riyadh King Khaled Intl"]
["RUN","St Denis de la Reunion Gillot"]
["RVK","Roervik Ryumsjoen Aprt"]
["RVN","Rovaniemi"]
["RVY","Rivera"]
["RWP","Rawalpindi Off-line Pt"]
["RXS","Roxas City"]
["RYK","Rahim Yar Khan"]
["RYO","Rio Turbio"]
["RZA","Santa Cruz"]
["RZE","Rzeszow Jasionka"]
["SAK","Saudarkrokur"]
["SAL","San Salvador Comalapa International"]
["SAN","San Diego Lindberg Fld S.Diego"]
["SAO","Sao Paulo"]
["SAP","San Pedro Sula Ramon Villeda Morales"]
["SAT","San Antonio International"]
["SBW","Sibu"]
["SCL","Santiago Arturo Merino Benitez"]
["SCN","Saarbruecken Ensheim"]
["SCQ","Santiago De Compostela"]
["SCV","Suceava Salcea"]
["SDA","Baghdad International"]
["SDE","Santiago Del Estero"]
["SDJ","Sendai"]
["SDK","Sandakan"]
["SDQ","Santo Domingo Las Americas"]
["SDR","Santander"]
["SDT","Saidu Sharif"]
["SDU","Rio De Janeiro Santos Dumont"]
["SDZ","Shetland Islands"]
["SEA","Seattle/Tacoma Intl"]
["SED","Sedom Min'hat Hashnayim"]
["SEH","Senggeh"]
["SEL","Seoul"]
["SFN","Santa Fe"]
["SFO","San Francisco International"]
["SFS","Subic Bay International Airpt"]
["SFT","Skelleftea"]
["SGD","Sonderborg"]
["SGN","Ho Chi Minh City"]
["SHA","Shanghai Hongqiao"]
["SHE","Shenyang"]
["SHJ","Sharjah"]
["SHL","Shillong"]
["SHM","Shirahama"]
["SHO","Sokcho Seolak"]
["SHP","Qinhuangdao"]
["SHS","Shashi"]
["SHU","Smith Point"]
["SIA","Xi An Xiguan"]
["SIJ","Siglufjordur"]
["SIN","Singapore Changi"]
["SIO","Smithton"]
["SIR","Sion"]
["SJD","San Jose Cabo Los Cabos"]
["SJE","San Jose Del Gua"]
["SJK","Sao Jose Dos Campos"]
["SJO","San Jose Juan Santamaria Intl"]
["SJP","Sao Jose Do Rio Preto"]
["SJU","San Juan Luis Munoz Marin Intl"]
["SJW","Shijiazhuang Daguocun"]
["SKE","Skien"]
["SKG","Thessaloniki Makedonia Apt."]
["SKN","Stokmarknes Skagen"]
["SKP","Skopje"]
["SKS","Vojens"]
["SKU","Skiros"]
["SKZ","Sukkur"]
["SLA","Salta Gen Belgrano"]
["SLC","Salt Lake City International"]
["SLU","St Lucia Vigie"]
["SLV","Simla"]
["SLZ","Sao Luiz Mal. Cunha Machado"]
["SMI","Samos"]
["SMR","Santa Marta Simon Bolivar"]
["SNB","Snake Bay"]
["SNN","Shannon"]
["SNO","Sakon Nakhon"]
["SOC","Solo City Adi Sumarmo"]
["SOF","Sofia"]
["SOG","Sogndal Haukasen"]
["SOJ","Sorkjosen"]
["SOQ","Sorong Jefman"]
["SOT","Sodankyla"]
["SOU","Southampton Eastleigh"]
["SOY","Stronsay"]
["SPK","Sapporo"]
["SPL","Schiphol Railway Station"]
["SPN","Saipan International"]
["SPR","San Pedro"]
["SPU","Split"]
["SQC","Southern Cross"]
["SRE","Sucre"]
["SRG","Semarang Achmad Uani"]
["SRI","Samarinda"]
["SRM","Sandringham"]
["SRN","Strahan"]
["SSA","Salvador Arpt Luis R. Magalhaes"]
["SSJ","Sandnessjoen Stokka"]
["STA","Stauning"]
["STD","Santo Domingo Mayo Guerrero"]
["STL","Lambert-St Louis Intl"]
["STN","London Stansted"]
["STO","Stockholm"]
["STR","Stuttgart Echterdingen"]
["STV","Surat"]
["STY","Salto"]
["STZ","Santa Terezinha Confresa"]
["SUB","Surabaya Juanda"]
["SUF","Lamezia-Terme S Eufemia"]
["SUJ","Satu Mare"]
["SUL","Sui"]
["SUV","Suva Nausori"]
["SUY","Sudureyri"]
["SVG","Stavanger Sola"]
["SVI","San Vicente"]
["SVJ","Svolvaer Helle"]
["SVO","Moscow Sheremetyevo"]
["SVQ","Sevilla"]
["SVX","Ekaterinburg"]
["SVZ","San Antonio"]
["SWA","Shantou"]
["SWQ","Sumbawa Brang Bidji"]
["SWY","Sitiawan"]
["SXB","Strasbourg Entzheim"]
["SXE","Sale"]
["SXM","St Maarten Princ. Juliana"]
["SXO","Sao Felix Do Araguaia"]
["SXS","Sahabat 16"]
["SYD","Sydney Kingsford Smith"]
["SYK","Stykkisholmur"]
["SYO","Shonai"]
["SYX","Sanya"]
["SYY","Stornoway"]
["SZG","Salzburg W.A. Mozart"]
["SZX","Shenzhen"]
["SZZ","Szczecin Goleniow"]
["TAC","Tacloban D.Z. Romualdez"]
["TAE","Daegu"]
["TAH","Tanna"]
["TAK","Takamatsu"]
["TAM","Tampico Gen F Javier Mina"]
["TAO","Qingdao"]
["TAS","Tashkent Vostochny"]
["TAW","Tacuarembo"]
["TBP","Tumbes"]
["TCE","Tulcea"]
["TCI","Tenerife"]
["TDA","Trinidad"]
["TDD","Trinidad"]
["TEU","Te Anau Manapouri"]
["TEZ","Tezpur Salonibari"]
["TFL","Teofilo Otoni"]
["TGG","Kuala Terengganu Sultan Mahmood"]
["TGI","Tingo Maria"]
["TGM","Tirgu Mures"]
["TGT","Tanga"]
["TGU","Tegucigalpa Toncontin"]
["TGZ","Tuxtla Gutierrez Llano San Juan"]
["THE","Teresina"]
["THF","Berlin Tempelhof"]
["THG","Thangool"]
["THK","Thakhek"]
["THO","Thorshofn"]
["THR","Tehran Mehrabad"]
["THY","Thohoyandou"]
["TIA","Tirana Rinas"]
["TIF","Taif"]
["TIJ","Tijuana Rodriguez"]
["TIM","Tembagapura Timika"]
["TIN","Tindouf"]
["TIP","Tripoli International"]
["TIR","Tirupati"]
["TIU","Timaru"]
["TJQ","Tanjung Pandan Bulutumbang"]
["TJS","Tanjung Selor"]
["TJV","Thanjavur"]
["TKS","Tokushima"]
["TKU","Turku"]
["TLI","Tolitoli"]
["TLM","Tlemcen Zenata"]
["TLN","Toulon Hyeres"]
["TLS","Toulouse Blagnac"]
["TLV","Tel Aviv Yafo Ben Gurion Intl"]
["TMC","Tambolaka"]
["TME","Tame"]
["TMH","Tanahmerah"]
["TML","Tamale"]
["TMP","Tampere-Pirkkala"]
["TNA","Jinan"]
["TNN","Tainan"]
["TNR","Antananarivo"]
["TOD","Tioman"]
["TOR","Torrington"]
["TOS","Tromso/Langnes"]
["TOY","Toyama"]
["TPA","Tampa International"]
["TPE","Taipei Chiang Kai Shek"]
["TPP","Tarapoto"]
["TPQ","Tepic"]
["TPS","Trapani Birgi"]
["TRA","Taramajima Tarama"]
["TRB","Turbo Gonzalo"]
["TRC","Torreon"]
["TRD","Trondheim Vaernes"]
["TRE","Tiree"]
["TRF","Oslo Sandefjord"]
["TRG","Tauranga"]
["TRK","Tarakan"]
["TRN","Turin Citta Di Torino"]
["TRO","Taree"]
["TRS","Trieste Dei Legionari"]
["TRU","Trujillo"]
["TRV","Thiruvananthapuram International"]
["TRZ","Tiruchirapally Civil"]
["TSA","Taipei Sung Shan"]
["TSB","Tsumeb"]
["TSF","Venice Treviso"]
["TSH","Tshikapa"]
["TSN","Tianjin"]
["TSR","Timisoara"]
["TSV","Townsville"]
["TTA","Tan Tan"]
["TTE","Ternate Babullah"]
["TTJ","Tottori"]
["TTT","Taitung"]
["TUA","Tulcan"]
["TUC","Tucuman Benj Matienzo"]
["TUD","Tambacounda"]
["TUF","Tours St Symphorien"]
["TUK","Turbat"]
["TUN","Tunis Carthage"]
["TUO","Taupo"]
["TUS","Tucson International"]
["TUZ","Tucuma"]
["TVY","Dawe"]
["TWB","Toowoomba"]
["TWU","Tawau"]
["TXG","Taichung"]
["TXL","Berlin Tegel"]
["TXM","Teminabuan"]
["TXN","Tunxi"]
["TYL","Talara"]
["TYN","Taiyuan"]
["TYO","Tokyo"]
["TZN","South Andros"]
["TZX","Trabzon"]
["UAC","San Luis Rio Colorado"]
["UAI","Suai"]
["UAK","Narsarsuaq"]
["UAQ","San Juan"]
["UBA","Uberaba"]
["UBB","Mabuiag Island"]
["UBJ","Ube"]
["UDI","Uberlandia Eduardo Gomes"]
["UDR","Udaipur Dabok"]
["UEE","Queenstown"]
["UEO","Kumejima"]
["UET","Quetta"]
["UFA","Ufa"]
["UGO","Uige"]
["UIB","Quibdo"]
["UIO","Quito Mariscal Sucr"]
["UIP","Quimper Pluguffan"]
["UIR","Quirindi"]
["ULA","San Julian"]
["ULN","Ulaanbaatar Buyant Uhaa"]
["ULP","Quilpie"]
["ULY","Ulyanovsk"]
["UMD","Uummannaq"]
["UME","Umea"]
["UMR","Woomera"]
["UNT","Unst Shetland Is Baltasound"]
["URC","Urumqi"]
["URG","Uruguaiana Ruben Berta"]
["URO","Rouen Boos"]
["URR","Urrao"]
["URT","Surat Thani"]
["URY","Gurayat"]
["USH","Ushuaia Islas Malvinas"]
["USL","Useless Loop"]
["USN","Ulsan"]
["UTP","Utapao"]
["UTT","Umtata"]
["UUS","Yuzhno-Sakhalinsk"]
["UVL","Kharga"]
["UYL","Nyala"]
["VAA","Vaasa"]
["VAF","Valence Chabeuil"]
["VAG","Varginha Maj. Brig. Trompowsky"]
["VAN","Van"]
["VAW","Vardoe"]
["VBY","Visby"]
["VCD","Victoria River Downs"]
["VCE","Venice Marco Polo"]
["VCP","Sao Paulo Viracopos"]
["VDM","Viedma"]
["VER","Veracruz Las Bajadas"]
["VGO","Vigo"]
["VGZ","Villagarzon"]
["VIC","Vicenza"]
["VIE","Vienna International"]
["VIL","Dakhla"]
["VIN","Vinnica"]
["VIX","Vitoria Eurico Sales"]
["VLC","Valencia"]
["VLI","Port Vila Bauerfield"]
["VLL","Valladolid"]
["VNE","Vannes Meucon"]
["VNG","Viengxay"]
["VRK","Varkaus"]
["VRL","Vila Real"]
["VRN","Verona"]
["VSA","Villahermosa Capitan Carlos Perez"]
["VTE","Vientiane Wattay"]
["VVC","Villavicencio La Vanguardia"]
["VVO","Vladivostok"]
["VVZ","Illizi"]
["VXC","Lichinga"]
["WAC","Waca"]
["WAG","Wanganui"]
["WAS","Washington"]
["WAW","Warsaw Frederic Chopin"]
["WEH","Weihai"]
["WEP","Weam"]
["WGA","Wagga Wagga Forrest Hill"]
["WGP","Waingapu"]
["WGT","Wangaratta"]
["WHK","Whakatane"]
["WIC","Wick"]
["WIN","Winton"]
["WJU","WonJu"]
["WKA","Wanaka"]
["WKJ","Wakkanai Hokkaido"]
["WLG","Wellington International"]
["WMX","Wamena"]
["WNR","Windorah"]
["WNS","Nawabshah"]
["WNZ","Wenzhou"]
["WOT","Wonan"]
["WRA","Warder"]
["WRE","Whangarei"]
["WRY","Westray"]
["WSY","Airlie Beach Whitsunday Airstrip"]
["WSZ","Westport"]
["WUH","Wuhan"]
["WUN","Wiluna"]
["WUX","Wuxi"]
["WVB","Walvis Bay Rooikop"]
["WWY","West Wyalong"]
["WYA","Whyalla"]
["XAP","Chapeco"]
["XAY","Xayabury"]
["XBE","Bearskin Lake"]
["XGR","Kangiqsualujjuaq"]
["XIL","Xilinhot"]
["XIY","Xi An Xianyang"]
["XKS","Kasabonika"]
["XMC","Mallacoota"]
["XMN","Xiamen"]
["XMS","Macas"]
["XMY","Yam Island"]
["XPK","Pukatawagan"]
["XQP","Quepos"]
["XQU","Qualicum"]
["XRR","Ross River"]
["XSI","South Indian Lake"]
["XSP","Singapore Seletar"]
["XTL","Tadoule Lake"]
["YAA","Anahim Lake"]
["YAB","Arctic Bay"]
["YAC","Cat Lake"]
["YAG","Fort Frances"]
["YAL","Alert Bay"]
["YAM","Sault Ste Marie"]
["YAO","Yaounde Airport"]
["YAT","Attawapiskat"]
["YAY","St Anthony"]
["YBB","Kugaaruk"]
["YBC","Baie Comeau"]
["YBE","Uranium City"]
["YBG","Bagotville"]
["YBI","Black Tickle"]
["YBK","Baker Lake"]
["YBL","Campbell River"]
["YBR","Brandon"]
["YBT","Brochet"]
["YBV","Berens River"]
["YBX","Blanc Sablon"]
["YCB","Cambridge Bay"]
["YCD","Nanaimo"]
["YCF","Cortes Bay"]
["YCG","Castlegar"]
["YCH","Miramichi"]
["YCK","Colville Lake"]
["YCL","Charlo"]
["YCO","Kugluktuk/Coppermine Kugluktuk"]
["YCQ","Chetwynd"]
["YCR","Cross Lake"]
["YCS","Chesterfield Inlet"]
["YCY","Clyde River"]
["YDA","Dawson City"]
["YDE","Paradise River"]
["YDF","Deer Lake"]
["YDI","Davis Inlet"]
["YDL","Dease Lake"]
["YDN","Dauphin"]
["YDP","Nain"]
["YDQ","Dawson Creek"]
["YDS","Desolation Sound"]
["YEA","Edmonton"]
["YEC","Yecheon"]
["YED","Edmonton Namao Fld"]
["YEG","Edmonton International"]
["YEK","Arviat"]
["YEL","Elliot Lake"]
["YER","Fort Severn"]
["YFA","Fort Albany"]
["YFB","Iqaluit"]
["YFC","Fredericton"]
["YFE","Forestville"]
["YFH","Fort Hope"]
["YFO","Flin Flon"]
["YFR","Fort Resolution"]
["YFS","Fort Simpson"]
["YFX","Fox Harbour (St Lewis)"]
["YGB","Gillies Bay"]
["YGH","Fort Good Hope"]
["YGJ","Yonago Miho"]
["YGK","Kingston"]
["YGL","La Grande"]
["YGN","Greenway Sound"]
["YGO","Gods Narrows"]
["YGP","Gaspe"]
["YGV","Havre St Pierre"]
["YGW","Kuujjuarapik"]
["YGX","Gillam"]
["YGZ","Grise Fiord"]
["YHA","Port Hope Simpson"]
["YHD","Dryden"]
["YHF","Hearst"]
["YHG","Charlottetown"]
["YHH","Campbell River Harbor SPB"]
["YHI","Holman"]
["YHM","Toronto John C. Munro Hamilton"]
["YHN","Hornepayne"]
["YHP","Poplar Hill"]
["YHR","Chevery"]
["YHS","Sechelt"]
["YHY","Hay River"]
["YHZ","Halifax International"]
["YIB","Atikokan"]
["YIF","Pakuashipi"]
["YIH","Yichang"]
["YIK","Ivujivik"]
["YIN","Yining"]
["YIO","Pond Inlet"]
["YKA","Kamloops"]
["YKG","Kangirsuk"]
["YKQ","Waskaganish"]
["YKT","Klemtu"]
["YKX","Kirkland Lake"]
["YKY","Kindersley"]
["YKZ","Toronto Buttonville"]
["YLC","Kimmirut/Lake Harbour Kimmirut"]
["YLD","Chapleau"]
["YLE","Wha Ti/Lac La Martre Wha Ti"]
["YLH","Lansdowne House"]
["YLL","Lloydminster"]
["YLR","Leaf Rapids"]
["YLW","Kelowna"]
["YMA","Mayo"]
["YME","Matane"]
["YMG","Manitouwadge"]
["YMH","Mary's Harbour"]
["YMM","Fort Mcmurray"]
["YMO","Moosonee"]
["YMP","Port McNeil"]
["YMQ","Montreal"]
["YMT","Chibougamau"]
["YMX","Montreal Mirabel"]
["YNA","Natashquan"]
["YNB","Yanbu"]
["YNC","Wemindji"]
["YND","Ottawa Gatineau"]
["YNE","Norway House"]
["YNJ","Yanji"]
["YNL","Points North Landing"]
["YNM","Matagami"]
["YNO","North Spirit Lake"]
["YNS","Nemiscau"]
["YNT","Yantai Laishan"]
["YOC","Old Crow"]
["YOH","Oxford House"]
["YOJ","High Level Footner Lake"]
["YOK","Yokohama"]
["YOL","Yola"]
["YOO","Oshawa"]
["YOP","Rainbow Lake"]
["YOW","Ottawa International"]
["YPC","Paulatuk"]
["YPL","Pickle Lake"]
["YPM","Pikangikum"]
["YPN","Port Menier"]
["YPO","Peawanuck"]
["YPT","Pender Harbor"]
["YPX","Povungnituk Puvirnituq"]
["YPY","Fort Chipewyan"]
["YQB","Quebec"]
["YQC","Quaqtaq"]
["YQL","Lethbridge"]
["YQM","Greater Moncton"]
["YQQ","Comox"]
["YQU","Grande Prairie"]
["YQV","Yorkton"]
["YQW","North Battleford"]
["YQY","Sydney"]
["YQZ","Quesnel"]
["YRA","Rae Lakes"]
["YRB","Resolute"]
["YRD","Dean River"]
["YRF","Cartwright"]
["YRG","Rigolet"]
["YRJ","Roberval"]
["YRN","Rivers Inlet"]
["YRR","Stuart Island"]
["YRS","Red Sucker Lake"]
["YRT","Rankin Inlet"]
["YSB","Sudbury"]
["YSF","Stony Rapids"]
["YSJ","Saint John"]
["YSK","Sanikiluaq"]
["YSL","St Leonard Edmunston"]
["YSN","Salmon Arm"]
["YSO","Postville"]
["YSP","Marathon"]
["YSR","Nanisivik"]
["YST","Ste Therese Point"]
["YSY","Sachs Harbour"]
["YTC","Sturdee"]
["YTF","Alma"]
["YTG","Sullivan Bay"]
["YTH","Thompson"]
["YTL","Big Trout"]
["YTO","Toronto"]
["YTR","Trenton"]
["YTS","Timmins"]
["YTT","Tisdale"]
["YTX","Telegraph Creek"]
["YUD","Umiujaq"]
["YUL","Montreal Pierre Elliott Trudeau"]
["YUT","Repulse Bay"]
["YUX","Hall Beach"]
["YVA","Moroni Iconi"]
["YVB","Bonaventure"]
["YVC","La Ronge"]
["YVM","Qikiqtarjuaq"]
["YVO","Val D'Or"]
["YVP","Kuujjuaq"]
["YVQ","Norman Wells"]
["YVR","Vancouver Intl"]
["YVT","Buffalo Narrows"]
["YVZ","Deer Lake"]
["YWG","Winnipeg"]
["YYZ","Toronto Pearson International"]
["ZAD","Zadar"]
["ZAG","Zagreb Pleso"]
["ZAH","Zahedan"]
["ZAK","Chiusa/Klausen Bus Station"]
["ZAL","Valdivia Pichoy"]
["ZAM","Zamboanga"]
["ZBN","Bolzano / Bozen Bozen Bus Station"]
["ZCL","Zacatecas La Calera"]
["ZCO","Temuco"]
["ZER","Zero"]
["ZHA","Zhanjiang"]
["ZHR","Kandersteg Off-line Pt"]
["ZIH","Ixtapa/Zihuatanejo Internacional"]
["ZIN","Interlaken Off-line Pt"]
["ZKB","Kasaba Bay"]
["ZMR","Meran Bus Station"]
["ZNE","Newman"]
["ZNZ","Zanzibar Kisauni"]
["ZQN","Queenstown Frankton"]
["ZRH","Zurich"]
["ZRI","Serui"]
["ZSA","San Salvador"]
["ZUR","Dutch Rail Zone 19 Railway Service"]

{"sheet":"Map","index":2,"n_rows":364,"n_cols":13,"rows_kept":364,"cut":false,"hidden":true,"merged":[]}
["Ref  ","Line Item Container","Alias","Xpath  ","Xpath without Instance","Document type and version","HouseShippingInstruction-1.0","Alias prefix","HSI","Code size",0,"Code start row",0]
["10",false,"HSI\\10_1___lab","/HouseShippingInstruction[1]","/HouseShippingInstruction"]
["20",false,"HSI\\10_1\\20_1___val","/HouseShippingInstruction[1]/CustomsOriginCode[1]","/HouseShippingInstruction/CustomsOriginCode"]
["30",false,"HSI\\10_1\\30_1___val","/HouseShippingInstruction[1]/usercbc:GrossWeightMeasure[1]","/HouseShippingInstruction/usercbc:GrossWeightMeasure"]
["40",false,"HSI\\10_1\\30_1_40___val","/HouseShippingInstruction[1]/usercbc:GrossWeightMeasure[1]/@measureUnitCode","/HouseShippingInstruction/usercbc:GrossWeightMeasure/@measureUnitCode"]
["50",false,"HSI\\10_1\\50_1___val","/HouseShippingInstruction[1]/usercbc:GrossVolumeMeasure[1]","/HouseShippingInstruction/usercbc:GrossVolumeMeasure"]
["60",false,"HSI\\10_1\\50_1_60___val","/HouseShippingInstruction[1]/usercbc:GrossVolumeMeasure[1]/@measureUnitCode","/HouseShippingInstruction/usercbc:GrossVolumeMeasure/@measureUnitCode"]
["70",false,"HSI\\10_1\\70_1___val","/HouseShippingInstruction[1]/usercbc:DeclaredCustomsValueAmount[1]","/HouseShippingInstruction/usercbc:DeclaredCustomsValueAmount"]
["80",false,"HSI\\10_1\\70_1_80___val","/HouseShippingInstruction[1]/usercbc:DeclaredCustomsValueAmount[1]/@amountCurrencyID","/HouseShippingInstruction/usercbc:DeclaredCustomsValueAmount/@amountCurrencyID"]
["90",false,"HSI\\10_1\\90_1___val","/HouseShippingInstruction[1]/usercbc:DeclaredCarriageValueAmount[1]","/HouseShippingInstruction/usercbc:DeclaredCarriageValueAmount"]
["100",false,"HSI\\10_1\\90_1_100___val","/HouseShippingInstruction[1]/usercbc:DeclaredCarriageValueAmount[1]/@amountCurrencyID","/HouseShippingInstruction/usercbc:DeclaredCarriageValueAmount/@amountCurrencyID"]
["110",false,"HSI\\10_1\\110_1___lab","/HouseShippingInstruction[1]/usercac:Header[1]","/HouseShippingInstruction/usercac:Header"]
["120",false,"HSI\\10_1\\110_1\\120_1___val","/HouseShippingInstruction[1]/usercac:Header[1]/usercac:UniqueDocumentNumberID[1]","/HouseShippingInstruction/usercac:Header/usercac:UniqueDocumentNumberID"]
["130",false,"HSI\\10_1\\110_1\\130_1___val","/HouseShippingInstruction[1]/usercac:Header[1]/usercac:DTTNAssignedUniqueDocumentNumberID[1]","/HouseShippingInstruction/usercac:Header/usercac:DTTNAssignedUniqueDocumentNumberID"]
["140",false,"HSI\\10_1\\110_1\\140_1___val","/HouseShippingInstruction[1]/usercac:Header[1]/usercac:VersionID[1]","/HouseShippingInstruction/usercac:Header/usercac:VersionID"]
["150",false,"HSI\\10_1\\110_1\\150_1___lab","/HouseShippingInstruction[1]/usercac:Header[1]/usercac:DocumentType[1]","/HouseShippingInstruction/usercac:Header/usercac:DocumentType"]
["160",false,"HSI\\10_1\\110_1\\150_1\\160_1___val","/HouseShippingInstruction[1]/usercac:Header[1]/usercac:DocumentType[1]/usercac:Code[1]","/HouseShippingInstruction/usercac:Header/usercac:DocumentType/usercac:Code"]
["170",false,"HSI\\10_1\\110_1\\170_1___lab","/HouseShippingInstruction[1]/usercac:Header[1]/usercac:DocumentStatus[1]","/HouseShippingInstruction/usercac:Header/usercac:DocumentStatus"]
["180",false,"HSI\\10_1\\110_1\\170_1\\180_1___val","/HouseShippingInstruction[1]/usercac:Header[1]/usercac:DocumentStatus[1]/usercac:Code[1]","/HouseShippingInstruction/usercac:Header/usercac:DocumentStatus/usercac:Code"]
["190",false,"HSI\\10_1\\110_1\\190_1___lab","/HouseShippingInstruction[1]/usercac:Header[1]/usercac:DocumentFunction[1]","/HouseShippingInstruction/usercac:Header/usercac:DocumentFunction"]
["200",false,"HSI\\10_1\\110_1\\190_1\\200_1___val","/HouseShippingInstruction[1]/usercac:Header[1]/usercac:DocumentFunction[1]/usercac:Code[1]","/HouseShippingInstruction/usercac:Header/usercac:DocumentFunction/usercac:Code"]
["210",false,"HSI\\10_1\\110_1\\210_1___lab","/HouseShippingInstruction[1]/usercac:Header[1]/usercac:IssuingParty[1]","/HouseShippingInstruction/usercac:Header/usercac:IssuingParty"]
["220",false,"HSI\\10_1\\110_1\\210_1\\220_1___lab","/HouseShippingInstruction[1]/usercac:Header[1]/usercac:IssuingParty[1]/usercac:DEA[1]","/HouseShippingInstruction/usercac:Header/usercac:IssuingParty/usercac:DEA"]
["230",false,"HSI\\10_1\\110_1\\210_1\\220_1\\230_1___val","/HouseShippingInstruction[1]/usercac:Header[1]/usercac:IssuingParty[1]/usercac:DEA[1]/usercac:ID[1]","/HouseShippingInstruction/usercac:Header/usercac:IssuingParty/usercac:DEA/usercac:ID"]
["240",false,"HSI\\10_1\\110_1\\240_1___lab","/HouseShippingInstruction[1]/usercac:Header[1]/usercac:FinalRecipientDEA[1]","/HouseShippingInstruction/usercac:Header/usercac:FinalRecipientDEA"]
["250",false,"HSI\\10_1\\110_1\\240_1\\250_1___val","/HouseShippingInstruction[1]/usercac:Header[1]/usercac:FinalRecipientDEA[1]/usercac:ID[1]","/HouseShippingInstruction/usercac:Header/usercac:FinalRecipientDEA/usercac:ID"]
["260",false,"HSI\\10_1\\260_1___lab","/HouseShippingInstruction[1]/usercac:ShipperParty[1]","/HouseShippingInstruction/usercac:ShipperParty"]
["270",false,"HSI\\10_1\\260_1\\270_1___lab","/HouseShippingInstruction[1]/usercac:ShipperParty[1]/usercac:PartyRole[1]","/HouseShippingInstruction/usercac:ShipperParty/usercac:PartyRole"]
["280",false,"HSI\\10_1\\260_1\\270_1\\280_1___val","/HouseShippingInstruction[1]/usercac:ShipperParty[1]/usercac:PartyRole[1]/usercac:Code[1]","/HouseShippingInstruction/usercac:ShipperParty/usercac:PartyRole/usercac:Code"]
["290",false,"HSI\\10_1\\260_1\\290_1___lab","/HouseShippingInstruction[1]/usercac:ShipperParty[1]/usercac:Identification[1]","/HouseShippingInstruction/usercac:ShipperParty/usercac:Identification"]
["300",false,"HSI\\10_1\\260_1\\290_1\\300_1___val","/HouseShippingInstruction[1]/usercac:ShipperParty[1]/usercac:Identification[1]/usercac:ID[1]","/HouseShippingInstruction/usercac:ShipperParty/usercac:Identification/usercac:ID"]
["310",false,"HSI\\10_1\\260_1\\290_1\\310_1___val","/HouseShippingInstruction[1]/usercac:ShipperParty[1]/usercac:Identification[1]/usercbc:Name[1]","/HouseShippingInstruction/usercac:ShipperParty/usercac:Identification/usercbc:Name"]
["320",false,"HSI\\10_1\\260_1\\320_1___lab","/HouseShippingInstruction[1]/usercac:ShipperParty[1]/usercac:Address[1]","/HouseShippingInstruction/usercac:ShipperParty/usercac:Address"]
["321",false,"HSI\\10_1\\260_1\\320_1\\321_1___val","/HouseShippingInstruction[1]/usercac:ShipperParty[1]/usercac:Address[1]/usercbc:CityName[1]","/HouseShippingInstruction/usercac:ShipperParty/usercac:Address/usercbc:CityName"]
["330",false,"HSI\\10_1\\260_1\\320_1\\330_1___lab","/HouseShippingInstruction[1]/usercac:ShipperParty[1]/usercac:Address[1]/usercac:AddressLine[1]","/HouseShippingInstruction/usercac:ShipperParty/usercac:Address/usercac:AddressLine"]
["340",false,"HSI\\10_1\\260_1\\320_1\\330_1\\340_1___val","/HouseShippingInstruction[1]/usercac:ShipperParty[1]/usercac:Address[1]/usercac:AddressLine[1]/usercbc:Line[1]","/HouseShippingInstruction/usercac:ShipperParty/usercac:Address/usercac:AddressLine/usercbc:Line"]
["340",false,"HSI\\10_1\\260_1\\320_1\\330_1\\340_2___val","/HouseShippingInstruction[1]/usercac:ShipperParty[1]/usercac:Address[1]/usercac:AddressLine[1]/usercbc:Line[2]","/HouseShippingInstruction/usercac:ShipperParty/usercac:Address/usercac:AddressLine/usercbc:Line"]
["340",false,"HSI\\10_1\\260_1\\320_1\\330_1\\340_3___val","/HouseShippingInstruction[1]/usercac:ShipperParty[1]/usercac:Address[1]/usercac:AddressLine[1]/usercbc:Line[3]","/HouseShippingInstruction/usercac:ShipperParty/usercac:Address/usercac:AddressLine/usercbc:Line"]
["342",false,"HSI\\10_1\\260_1\\320_1\\342_1___lab","/HouseShippingInstruction[1]/usercac:ShipperParty[1]/usercac:Address[1]/usercac:Country[1]","/HouseShippingInstruction/usercac:ShipperParty/usercac:Address/usercac:Country"]
["343",false,"HSI\\10_1\\260_1\\320_1\\342_1\\343_1___val","/HouseShippingInstruction[1]/usercac:ShipperParty[1]/usercac:Address[1]/usercac:Country[1]/usercbc:Name[1]","/HouseShippingInstruction/usercac:ShipperParty/usercac:Address/usercac:Country/usercbc:Name"]
["350",false,"HSI\\10_1\\260_1\\350_1___lab","/HouseShippingInstruction[1]/usercac:ShipperParty[1]/usercac:Contact[1]","/HouseShippingInstruction/usercac:ShipperParty/usercac:Contact"]
["360",false,"HSI\\10_1\\260_1\\350_1\\360_1___val","/HouseShippingInstruction[1]/usercac:ShipperParty[1]/usercac:Contact[1]/usercbc:Telephone[1]","/HouseShippingInstruction/usercac:ShipperParty/usercac:Contact/usercbc:Telephone"]
["370",false,"HSI\\10_1\\260_1\\350_1\\370_1___val","/HouseShippingInstruction[1]/usercac:ShipperParty[1]/usercac:Contact[1]/usercbc:Telefax[1]","/HouseShippingInstruction/usercac:ShipperParty/usercac:Contact/usercbc:Telefax"]
["380",false,"HSI\\10_1\\260_1\\350_1\\380_1___lab","/HouseShippingInstruction[1]/usercac:ShipperParty[1]/usercac:Contact[1]/usercac:ContactIdentification[1]","/HouseShippingInstruction/usercac:ShipperParty/usercac:Contact/usercac:ContactIdentification"]
["390",false,"HSI\\10_1\\260_1\\350_1\\380_1\\390_1___val","/HouseShippingInstruction[1]/usercac:ShipperParty[1]/usercac:Contact[1]/usercac:ContactIdentification[1]/usercbc:PersonName[1]","/HouseShippingInstruction/usercac:ShipperParty/usercac:Contact/usercac:ContactIdentification/usercbc:PersonName"]
["400",false,"HSI\\10_1\\400_1___lab","/HouseShippingInstruction[1]/usercac:ConsigneeParty[1]","/HouseShippingInstruction/usercac:ConsigneeParty"]
["410",false,"HSI\\10_1\\400_1\\410_1___lab","/HouseShippingInstruction[1]/usercac:ConsigneeParty[1]/usercac:PartyRole[1]","/HouseShippingInstruction/usercac:ConsigneeParty/usercac:PartyRole"]
["420",false,"HSI\\10_1\\400_1\\410_1\\420_1___val","/HouseShippingInstruction[1]/usercac:ConsigneeParty[1]/usercac:PartyRole[1]/usercac:Code[1]","/HouseShippingInstruction/usercac:ConsigneeParty/usercac:PartyRole/usercac:Code"]
["430",false,"HSI\\10_1\\400_1\\430_1___lab","/HouseShippingInstruction[1]/usercac:ConsigneeParty[1]/usercac:Identification[1]","/HouseShippingInstruction/usercac:ConsigneeParty/usercac:Identification"]
["440",false,"HSI\\10_1\\400_1\\430_1\\440_1___val","/HouseShippingInstruction[1]/usercac:ConsigneeParty[1]/usercac:Identification[1]/usercac:ID[1]","/HouseShippingInstruction/usercac:ConsigneeParty/usercac:Identification/usercac:ID"]
["450",false,"HSI\\10_1\\400_1\\430_1\\450_1___val","/HouseShippingInstruction[1]/usercac:ConsigneeParty[1]/usercac:Identification[1]/usercbc:Name[1]","/HouseShippingInstruction/usercac:ConsigneeParty/usercac:Identification/usercbc:Name"]
["460",false,"HSI\\10_1\\400_1\\460_1___lab","/HouseShippingInstruction[1]/usercac:ConsigneeParty[1]/usercac:Address[1]","/HouseShippingInstruction/usercac:ConsigneeParty/usercac:Address"]
["461",false,"HSI\\10_1\\400_1\\460_1\\461_1___val","/HouseShippingInstruction[1]/usercac:ConsigneeParty[1]/usercac:Address[1]/usercbc:CityName[1]","/HouseShippingInstruction/usercac:ConsigneeParty/usercac:Address/usercbc:CityName"]
["470",false,"HSI\\10_1\\400_1\\460_1\\470_1___lab","/HouseShippingInstruction[1]/usercac:ConsigneeParty[1]/usercac:Address[1]/usercac:AddressLine[1]","/HouseShippingInstruction/usercac:ConsigneeParty/usercac:Address/usercac:AddressLine"]
["480",false,"HSI\\10_1\\400_1\\460_1\\470_1\\480_1___val","/HouseShippingInstruction[1]/usercac:ConsigneeParty[1]/usercac:Address[1]/usercac:AddressLine[1]/usercbc:Line[1]","/HouseShippingInstruction/usercac:ConsigneeParty/usercac:Address/usercac:AddressLine/usercbc:Line"]
["480",false,"HSI\\10_1\\400_1\\460_1\\470_1\\480_2___val","/HouseShippingInstruction[1]/usercac:ConsigneeParty[1]/usercac:Address[1]/usercac:AddressLine[1]/usercbc:Line[2]","/HouseShippingInstruction/usercac:ConsigneeParty/usercac:Address/usercac:AddressLine/usercbc:Line"]
["480",false,"HSI\\10_1\\400_1\\460_1\\470_1\\480_3___val","/HouseShippingInstruction[1]/usercac:ConsigneeParty[1]/usercac:Address[1]/usercac:AddressLine[1]/usercbc:Line[3]","/HouseShippingInstruction/usercac:ConsigneeParty/usercac:Address/usercac:AddressLine/usercbc:Line"]
["482",false,"HSI\\10_1\\400_1\\460_1\\482_1___lab","/HouseShippingInstruction[1]/usercac:ConsigneeParty[1]/usercac:Address[1]/usercac:Country[1]","/HouseShippingInstruction/usercac:ConsigneeParty/usercac:Address/usercac:Country"]
["483",false,"HSI\\10_1\\400_1\\460_1\\482_1\\483_1___val","/HouseShippingInstruction[1]/usercac:ConsigneeParty[1]/usercac:Address[1]/usercac:Country[1]/usercbc:Name[1]","/HouseShippingInstruction/usercac:ConsigneeParty/usercac:Address/usercac:Country/usercbc:Name"]
["490",false,"HSI\\10_1\\400_1\\490_1___lab","/HouseShippingInstruction[1]/usercac:ConsigneeParty[1]/usercac:Contact[1]","/HouseShippingInstruction/usercac:ConsigneeParty/usercac:Contact"]
["500",false,"HSI\\10_1\\400_1\\490_1\\500_1___val","/HouseShippingInstruction[1]/usercac:ConsigneeParty[1]/usercac:Contact[1]/usercbc:Telephone[1]","/HouseShippingInstruction/usercac:ConsigneeParty/usercac:Contact/usercbc:Telephone"]
["510",false,"HSI\\10_1\\400_1\\490_1\\510_1___val","/HouseShippingInstruction[1]/usercac:ConsigneeParty[1]/usercac:Contact[1]/usercbc:Telefax[1]","/HouseShippingInstruction/usercac:ConsigneeParty/usercac:Contact/usercbc:Telefax"]
["520",false,"HSI\\10_1\\400_1\\490_1\\520_1___lab","/HouseShippingInstruction[1]/usercac:ConsigneeParty[1]/usercac:Contact[1]/usercac:ContactIdentification[1]","/HouseShippingInstruction/usercac:ConsigneeParty/usercac:Contact/usercac:ContactIdentification"]
["530",false,"HSI\\10_1\\400_1\\490_1\\520_1\\530_1___val","/HouseShippingInstruction[1]/usercac:ConsigneeParty[1]/usercac:Contact[1]/usercac:ContactIdentification[1]/usercbc:PersonName[1]","/HouseShippingInstruction/usercac:ConsigneeParty/usercac:Contact/usercac:ContactIdentification/usercbc:PersonName"]
["540",false,"HSI\\10_1\\400_1\\540_1___lab","/HouseShippingInstruction[1]/usercac:ConsigneeParty[1]/usercac:Remarks[1]","/HouseShippingInstruction/usercac:ConsigneeParty/usercac:Remarks"]
["550",false,"HSI\\10_1\\400_1\\540_1\\550_1___val","/HouseShippingInstruction[1]/usercac:ConsigneeParty[1]/usercac:Remarks[1]/usercbc:Description[1]","/HouseShippingInstruction/usercac:ConsigneeParty/usercac:Remarks/usercbc:Description"]
["560",false,"HSI\\10_1\\400_1\\540_1\\560_1___lab","/HouseShippingInstruction[1]/usercac:ConsigneeParty[1]/usercac:Remarks[1]/usercac:RemarksType[1]","/HouseShippingInstruction/usercac:ConsigneeParty/usercac:Remarks/usercac:RemarksType"]
["570",false,"HSI\\10_1\\400_1\\540_1\\560_1\\570_1___val","/HouseShippingInstruction[1]/usercac:ConsigneeParty[1]/usercac:Remarks[1]/usercac:RemarksType[1]/usercac:Code[1]","/HouseShippingInstruction/usercac:ConsigneeParty/usercac:Remarks/usercac:RemarksType/usercac:Code"]
["580",false,"HSI\\10_1\\580_1___lab","/HouseShippingInstruction[1]/usercac:FirstNotifyParty[1]","/HouseShippingInstruction/usercac:FirstNotifyParty"]
["590",false,"HSI\\10_1\\580_1\\590_1___lab","/HouseShippingInstruction[1]/usercac:FirstNotifyParty[1]/usercac:PartyRole[1]","/HouseShippingInstruction/usercac:FirstNotifyParty/usercac:PartyRole"]
["600",false,"HSI\\10_1\\580_1\\590_1\\600_1___val","/HouseShippingInstruction[1]/usercac:FirstNotifyParty[1]/usercac:PartyRole[1]/usercac:Code[1]","/HouseShippingInstruction/usercac:FirstNotifyParty/usercac:PartyRole/usercac:Code"]
["610",false,"HSI\\10_1\\580_1\\610_1___lab","/HouseShippingInstruction[1]/usercac:FirstNotifyParty[1]/usercac:Identification[1]","/HouseShippingInstruction/usercac:FirstNotifyParty/usercac:Identification"]
["620",false,"HSI\\10_1\\580_1\\610_1\\620_1___val","/HouseShippingInstruction[1]/usercac:FirstNotifyParty[1]/usercac:Identification[1]/usercac:ID[1]","/HouseShippingInstruction/usercac:FirstNotifyParty/usercac:Identification/usercac:ID"]
["630",false,"HSI\\10_1\\580_1\\610_1\\630_1___val","/HouseShippingInstruction[1]/usercac:FirstNotifyParty[1]/usercac:Identification[1]/usercbc:Name[1]","/HouseShippingInstruction/usercac:FirstNotifyParty/usercac:Identification/usercbc:Name"]
["640",false,"HSI\\10_1\\580_1\\640_1___lab","/HouseShippingInstruction[1]/usercac:FirstNotifyParty[1]/usercac:Address[1]","/HouseShippingInstruction/usercac:FirstNotifyParty/usercac:Address"]
["641",false,"HSI\\10_1\\580_1\\640_1\\641_1___val","/HouseShippingInstruction[1]/usercac:FirstNotifyParty[1]/usercac:Address[1]/usercbc:CityName[1]","/HouseShippingInstruction/usercac:FirstNotifyParty/usercac:Address/usercbc:CityName"]
["650",false,"HSI\\10_1\\580_1\\640_1\\650_1___lab","/HouseShippingInstruction[1]/usercac:FirstNotifyParty[1]/usercac:Address[1]/usercac:AddressLine[1]","/HouseShippingInstruction/usercac:FirstNotifyParty/usercac:Address/usercac:AddressLine"]
["660",false,"HSI\\10_1\\580_1\\640_1\\650_1\\660_1___val","/HouseShippingInstruction[1]/usercac:FirstNotifyParty[1]/usercac:Address[1]/usercac:AddressLine[1]/usercbc:Line[1]","/HouseShippingInstruction/usercac:FirstNotifyParty/usercac:Address/usercac:AddressLine/usercbc:Line"]
["660",false,"HSI\\10_1\\580_1\\640_1\\650_1\\660_2___val","/HouseShippingInstruction[1]/usercac:FirstNotifyParty[1]/usercac:Address[1]/usercac:AddressLine[1]/usercbc:Line[2]","/HouseShippingInstruction/usercac:FirstNotifyParty/usercac:Address/usercac:AddressLine/usercbc:Line"]
["660",false,"HSI\\10_1\\580_1\\640_1\\650_1\\660_3___val","/HouseShippingInstruction[1]/usercac:FirstNotifyParty[1]/usercac:Address[1]/usercac:AddressLine[1]/usercbc:Line[3]","/HouseShippingInstruction/usercac:FirstNotifyParty/usercac:Address/usercac:AddressLine/usercbc:Line"]
["662",false,"HSI\\10_1\\580_1\\640_1\\662_1___lab","/HouseShippingInstruction[1]/usercac:FirstNotifyParty[1]/usercac:Address[1]/usercac:Country[1]","/HouseShippingInstruction/usercac:FirstNotifyPartyusercac:Address/usercac:Country"]
["663",false,"HSI\\10_1\\580_1\\640_1\\662_1\\663_1___val","/HouseShippingInstruction[1]/usercac:FirstNotifyParty[1]/usercac:Address[1]/usercac:Country[1]/usercbc:Name[1]","/HouseShippingInstruction/usercac:FirstNotifyPartyusercac:Address/usercac:Country/usercbc:Name"]
["670",false,"HSI\\10_1\\580_1\\670_1___lab","/HouseShippingInstruction[1]/usercac:FirstNotifyParty[1]/usercac:Contact[1]","/HouseShippingInstruction/usercac:FirstNotifyParty/usercac:Contact"]
["680",false,"HSI\\10_1\\580_1\\670_1\\680_1___val","/HouseShippingInstruction[1]/usercac:FirstNotifyParty[1]/usercac:Contact[1]/usercbc:Telephone[1]","/HouseShippingInstruction/usercac:FirstNotifyParty/usercac:Contact/usercbc:Telephone"]
["690",false,"HSI\\10_1\\580_1\\670_1\\690_1___val","/HouseShippingInstruction[1]/usercac:FirstNotifyParty[1]/usercac:Contact[1]/usercbc:Telefax[1]","/HouseShippingInstruction/usercac:FirstNotifyParty/usercac:Contact/usercbc:Telefax"]
["700",false,"HSI\\10_1\\580_1\\670_1\\700_1___lab","/HouseShippingInstruction[1]/usercac:FirstNotifyParty[1]/usercac:Contact[1]/usercac:ContactIdentification[1]","/HouseShippingInstruction/usercac:FirstNotifyParty/usercac:Contact/usercac:ContactIdentification"]
["710",false,"HSI\\10_1\\580_1\\670_1\\700_1\\710_1___val","/HouseShippingInstruction[1]/usercac:FirstNotifyParty[1]/usercac:Contact[1]/usercac:ContactIdentification[1]/usercbc:PersonName[1]","/HouseShippingInstruction/usercac:FirstNotifyParty/usercac:Contact/usercac:ContactIdentification/usercbc:PersonName"]
["670",false,"HSI\\10_1\\580_1\\670_2___lab","/HouseShippingInstruction[1]/usercac:FirstNotifyParty[1]/usercac:Contact[2]","/HouseShippingInstruction/usercac:FirstNotifyParty/usercac:Contact"]
["680",false,"HSI\\10_1\\580_1\\670_2\\680_1___val","/HouseShippingInstruction[1]/usercac:FirstNotifyParty[1]/usercac:Contact[2]/usercbc:Telephone[1]","/HouseShippingInstruction/usercac:FirstNotifyParty/usercac:Contact/usercbc:Telephone"]
["690",false,"HSI\\10_1\\580_1\\670_2\\690_1___val","/HouseShippingInstruction[1]/usercac:FirstNotifyParty[1]/usercac:Contact[2]/usercbc:Telefax[1]","/HouseShippingInstruction/usercac:FirstNotifyParty/usercac:Contact/usercbc:Telefax"]
["700",false,"HSI\\10_1\\580_1\\670_2\\700_1___lab","/HouseShippingInstruction[1]/usercac:FirstNotifyParty[1]/usercac:Contact[2]/usercac:ContactIdentification[1]","/HouseShippingInstruction/usercac:FirstNotifyParty/usercac:Contact/usercac:ContactIdentification"]
["710",false,"HSI\\10_1\\580_1\\670_2\\700_1\\710_1___val","/HouseShippingInstruction[1]/usercac:FirstNotifyParty[1]/usercac:Contact[2]/usercac:ContactIdentification[1]/usercbc:PersonName[1]","/HouseShippingInstruction/usercac:FirstNotifyParty/usercac:Contact/usercac:ContactIdentification/usercbc:PersonName"]
["720",false,"HSI\\10_1\\720_1___lab","/HouseShippingInstruction[1]/usercac:Shipment[1]","/HouseShippingInstruction/usercac:Shipment"]
["730",false,"HSI\\10_1\\720_1\\730_1___lab","/HouseShippingInstruction[1]/usercac:Shipment[1]/usercac:PreCarriageShipmentStage[1]","/HouseShippingInstruction/usercac:Shipment/usercac:PreCarriageShipmentStage"]
["740",false,"HSI\\10_1\\720_1\\730_1\\740_1___lab","/HouseShippingInstruction[1]/usercac:Shipment[1]/usercac:PreCarriageShipmentStage[1]/usercac:ShipmentEndPoint[1]","/HouseShippingInstruction/usercac:Shipment/usercac:PreCarriageShipmentStage/usercac:ShipmentEndPoint"]
["750",false,"HSI\\10_1\\720_1\\730_1\\740_1\\750_1___lab","/HouseShippingInstruction[1]/usercac:Shipment[1]/usercac:PreCarriageShipmentStage[1]/usercac:ShipmentEndPoint[1]/usercac:AdditionalQualifiedDate[1]","/HouseShippingInstruction/usercac:Shipment/usercac:PreCarriageShipmentStage/usercac:ShipmentEndPoint/usercac:AdditionalQualifiedDate"]
["760",false,"HSI\\10_1\\720_1\\730_1\\740_1\\750_1\\760_1___val","/HouseShippingInstruction[1]/usercac:Shipment[1]/usercac:PreCarriageShipmentStage[1]/usercac:ShipmentEndPoint[1]/usercac:AdditionalQualifiedDate[1]/usercbc:DateTime[1]","/HouseShippingInstruction/usercac:Shipment/usercac:PreCarriageShipmentStage/usercac:ShipmentEndPoint/usercac:AdditionalQualifiedDate/usercbc:DateTime"]
["770",false,"HSI\\10_1\\720_1\\730_1\\740_1\\750_1\\770_1___lab","/HouseShippingInstruction[1]/usercac:Shipment[1]/usercac:PreCarriageShipmentStage[1]/usercac:ShipmentEndPoint[1]/usercac:AdditionalQualifiedDate[1]/usercac:DateType[1]","/HouseShippingInstruction/usercac:Shipment/usercac:PreCarriageShipmentStage/usercac:ShipmentEndPoint/usercac:AdditionalQualifiedDate/usercac:DateType"]
["780",false,"HSI\\10_1\\720_1\\730_1\\740_1\\750_1\\770_1\\780_1___val","/HouseShippingInstruction[1]/usercac:Shipment[1]/usercac:PreCarriageShipmentStage[1]/usercac:ShipmentEndPoint[1]/usercac:AdditionalQualifiedDate[1]/usercac:DateType[1]/usercac:Code[1]","/HouseShippingInstruction/usercac:Shipment/usercac:PreCarriageShipmentStage/usercac:ShipmentEndPoint/usercac:AdditionalQualifiedDate/usercac:DateType/usercac:Code"]
["790",false,"HSI\\10_1\\720_1\\790_1___lab","/HouseShippingInstruction[1]/usercac:Shipment[1]/usercac:MainCarriageShipmentStage[1]","/HouseShippingInstruction/usercac:Shipment/usercac:MainCarriageShipmentStage"]
["800",false,"HSI\\10_1\\720_1\\790_1\\800_1___lab","/HouseShippingInstruction[1]/usercac:Shipment[1]/usercac:MainCarriageShipmentStage[1]/usercac:TransportationService[1]","/HouseShippingInstruction/usercac:Shipment/usercac:MainCarriageShipmentStage/usercac:TransportationService"]
["810",false,"HSI\\10_1\\720_1\\790_1\\800_1\\810_1___lab","/HouseShippingInstruction[1]/usercac:Shipment[1]/usercac:MainCarriageShipmentStage[1]/usercac:TransportationService[1]/usercac:DeliveryTransportationServiceType[1]","/HouseShippingInstruction/usercac:Shipment/usercac:MainCarriageShipmentStage/usercac:TransportationService/usercac:DeliveryTransportationServiceType"]
["820",false,"HSI\\10_1\\720_1\\790_1\\800_1\\810_1\\820_1___val","/HouseShippingInstruction[1]/usercac:Shipment[1]/usercac:MainCarriageShipmentStage[1]/usercac:TransportationService[1]/usercac:DeliveryTransportationServiceType[1]/usercac:Code[1]","/HouseShippingInstruction/usercac:Shipment/usercac:MainCarriageShipmentStage/usercac:TransportationService/usercac:DeliveryTransportationServiceType/usercac:Code"]
["830",false,"HSI\\10_1\\720_1\\790_1\\830_1___lab","/HouseShippingInstruction[1]/usercac:Shipment[1]/usercac:MainCarriageShipmentStage[1]/usercac:ShipmentStartPoint[1]","/HouseShippingInstruction/usercac:Shipment/usercac:MainCarriageShipmentStage/usercac:ShipmentStartPoint"]
["840",false,"HSI\\10_1\\720_1\\790_1\\830_1\\840_1___lab","/HouseShippingInstruction[1]/usercac:Shipment[1]/usercac:MainCarriageShipmentStage[1]/usercac:ShipmentStartPoint[1]/usercac:OriginTransportLocation[1]","/HouseShippingInstruction/usercac:Shipment/usercac:MainCarriageShipmentStage/usercac:ShipmentStartPoint/usercac:OriginTransportLocation"]
["850",false,"HSI\\10_1\\720_1\\790_1\\830_1\\840_1\\850_1___val","/HouseShippingInstruction[1]/usercac:Shipment[1]/usercac:MainCarriageShipmentStage[1]/usercac:ShipmentStartPoint[1]/usercac:OriginTransportLocation[1]/usercac:AirportCityCode[1]","/HouseShippingInstruction/usercac:Shipment/usercac:MainCarriageShipmentStage/usercac:ShipmentStartPoint/usercac:OriginTransportLocation/usercac:AirportCityCode"]
["860",false,"HSI\\10_1\\720_1\\790_1\\830_1\\840_1\\860_1___lab","/HouseShippingInstruction[1]/usercac:Shipment[1]/usercac:MainCarriageShipmentStage[1]/usercac:ShipmentStartPoint[1]/usercac:OriginTransportLocation[1]/usercac:Location[1]","/HouseShippingInstruction/usercac:Shipment/usercac:MainCarriageShipmentStage/usercac:ShipmentStartPoint/usercac:OriginTransportLocation/usercac:Location"]
["870",false,"HSI\\10_1\\720_1\\790_1\\830_1\\840_1\\860_1\\870_1___val","/HouseShippingInstruction[1]/usercac:Shipment[1]/usercac:MainCarriageShipmentStage[1]/usercac:ShipmentStartPoint[1]/usercac:OriginTransportLocation[1]/usercac:Location[1]/usercbc:Name[1]","/HouseShippingInstruction/usercac:Shipment/usercac:MainCarriageShipmentStage/usercac:ShipmentStartPoint/usercac:OriginTransportLocation/usercac:Location/usercbc:Name"]
["880",false,"HSI\\10_1\\720_1\\790_1\\880_1___lab","/HouseShippingInstruction[1]/usercac:Shipment[1]/usercac:MainCarriageShipmentStage[1]/usercac:ShipmentEndPoint[1]","/HouseShippingInstruction/usercac:Shipment/usercac:MainCarriageShipmentStage/usercac:ShipmentEndPoint"]
["890",false,"HSI\\10_1\\720_1\\790_1\\880_1\\890_1___lab","/HouseShippingInstruction[1]/usercac:Shipment[1]/usercac:MainCarriageShipmentStage[1]/usercac:ShipmentEndPoint[1]/usercac:FinalDestinationTransportLocation[1]","/HouseShippingInstruction/usercac:Shipment/usercac:MainCarriageShipmentStage/usercac:ShipmentEndPoint/usercac:FinalDestinationTransportLocation"]
["900",false,"HSI\\10_1\\720_1\\790_1\\880_1\\890_1\\900_1___val","/HouseShippingInstruction[1]/usercac:Shipment[1]/usercac:MainCarriageShipmentStage[1]/usercac:ShipmentEndPoint[1]/usercac:FinalDestinationTransportLocation[1]/usercac:AirportCityCode[1]","/HouseShippingInstruction/usercac:Shipment/usercac:MainCarriageShipmentStage/usercac:ShipmentEndPoint/usercac:FinalDestinationTransportLocation/usercac:AirportCityCode"]
["910",false,"HSI\\10_1\\720_1\\790_1\\880_1\\890_1\\910_1___lab","/HouseShippingInstruction[1]/usercac:Shipment[1]/usercac:MainCarriageShipmentStage[1]/usercac:ShipmentEndPoint[1]/usercac:FinalDestinationTransportLocation[1]/usercac:Location[1]","/HouseShippingInstruction/usercac:Shipment/usercac:MainCarriageShipmentStage/usercac:ShipmentEndPoint/usercac:FinalDestinationTransportLocation/usercac:Location"]
["920",false,"HSI\\10_1\\720_1\\790_1\\880_1\\890_1\\910_1\\920_1___val","/HouseShippingInstruction[1]/usercac:Shipment[1]/usercac:MainCarriageShipmentStage[1]/usercac:ShipmentEndPoint[1]/usercac:FinalDestinationTransportLocation[1]/usercac:Location[1]/usercbc:Name[1]","/HouseShippingInstruction/usercac:Shipment/usercac:MainCarriageShipmentStage/usercac:ShipmentEndPoint/usercac:FinalDestinationTransportLocation/usercac:Location/usercbc:Name"]
["790",false,"HSI\\10_1\\720_1\\790_2___lab","/HouseShippingInstruction[1]/usercac:Shipment[1]/usercac:MainCarriageShipmentStage[2]","/HouseShippingInstruction/usercac:Shipment/usercac:MainCarriageShipmentStage"]
["800",false,"HSI\\10_1\\720_1\\790_2\\800_1___lab","/HouseShippingInstruction[1]/usercac:Shipment[1]/usercac:MainCarriageShipmentStage[2]/usercac:TransportationService[1]","/HouseShippingInstruction/usercac:Shipment/usercac:MainCarriageShipmentStage/usercac:TransportationService"]
["810",false,"HSI\\10_1\\720_1\\790_2\\800_1\\810_1___lab","/HouseShippingInstruction[1]/usercac:Shipment[1]/usercac:MainCarriageShipmentStage[2]/usercac:TransportationService[1]/usercac:DeliveryTransportationServiceType[1]","/HouseShippingInstruction/usercac:Shipment/usercac:MainCarriageShipmentStage/usercac:TransportationService/usercac:DeliveryTransportationServiceType"]
["820",false,"HSI\\10_1\\720_1\\790_2\\800_1\\810_1\\820_1___val","/HouseShippingInstruction[1]/usercac:Shipment[1]/usercac:MainCarriageShipmentStage[2]/usercac:TransportationService[1]/usercac:DeliveryTransportationServiceType[1]/usercac:Code[1]","/HouseShippingInstruction/usercac:Shipment/usercac:MainCarriageShipmentStage/usercac:TransportationService/usercac:DeliveryTransportationServiceType/usercac:Code"]
["830",false,"HSI\\10_1\\720_1\\790_2\\830_1___lab","/HouseShippingInstruction[1]/usercac:Shipment[1]/usercac:MainCarriageShipmentStage[2]/usercac:ShipmentStartPoint[1]","/HouseShippingInstruction/usercac:Shipment/usercac:MainCarriageShipmentStage/usercac:ShipmentStartPoint"]
["840",false,"HSI\\10_1\\720_1\\790_2\\830_1\\840_1___lab","/HouseShippingInstruction[1]/usercac:Shipment[1]/usercac:MainCarriageShipmentStage[2]/usercac:ShipmentStartPoint[1]/usercac:OriginTransportLocation[1]","/HouseShippingInstruction/usercac:Shipment/usercac:MainCarriageShipmentStage/usercac:ShipmentStartPoint/usercac:OriginTransportLocation"]
["850",false,"HSI\\10_1\\720_1\\790_2\\830_1\\840_1\\850_1___val","/HouseShippingInstruction[1]/usercac:Shipment[1]/usercac:MainCarriageShipmentStage[2]/usercac:ShipmentStartPoint[1]/usercac:OriginTransportLocation[1]/usercac:AirportCityCode[1]","/HouseShippingInstruction/usercac:Shipment/usercac:MainCarriageShipmentStage/usercac:ShipmentStartPoint/usercac:OriginTransportLocation/usercac:AirportCityCode"]
["860",false,"HSI\\10_1\\720_1\\790_2\\830_1\\840_1\\860_1___lab","/HouseShippingInstruction[1]/usercac:Shipment[1]/usercac:MainCarriageShipmentStage[2]/usercac:ShipmentStartPoint[1]/usercac:OriginTransportLocation[1]/usercac:Location[1]","/HouseShippingInstruction/usercac:Shipment/usercac:MainCarriageShipmentStage/usercac:ShipmentStartPoint/usercac:OriginTransportLocation/usercac:Location"]
["870",false,"HSI\\10_1\\720_1\\790_2\\830_1\\840_1\\860_1\\870_1___val","/HouseShippingInstruction[1]/usercac:Shipment[1]/usercac:MainCarriageShipmentStage[2]/usercac:ShipmentStartPoint[1]/usercac:OriginTransportLocation[1]/usercac:Location[1]/usercbc:Name[1]","/HouseShippingInstruction/usercac:Shipment/usercac:MainCarriageShipmentStage/usercac:ShipmentStartPoint/usercac:OriginTransportLocation/usercac:Location/usercbc:Name"]
["880",false,"HSI\\10_1\\720_1\\790_2\\880_1___lab","/HouseShippingInstruction[1]/usercac:Shipment[1]/usercac:MainCarriageShipmentStage[2]/usercac:ShipmentEndPoint[1]","/HouseShippingInstruction/usercac:Shipment/usercac:MainCarriageShipmentStage/usercac:ShipmentEndPoint"]
["890",false,"HSI\\10_1\\720_1\\790_2\\880_1\\890_1___lab","/HouseShippingInstruction[1]/usercac:Shipment[1]/usercac:MainCarriageShipmentStage[2]/usercac:ShipmentEndPoint[1]/usercac:FinalDestinationTransportLocation[1]","/HouseShippingInstruction/usercac:Shipment/usercac:MainCarriageShipmentStage/usercac:ShipmentEndPoint/usercac:FinalDestinationTransportLocation"]
["900",false,"HSI\\10_1\\720_1\\790_2\\880_1\\890_1\\900_1___val","/HouseShippingInstruction[1]/usercac:Shipment[1]/usercac:MainCarriageShipmentStage[2]/usercac:ShipmentEndPoint[1]/usercac:FinalDestinationTransportLocation[1]/usercac:AirportCityCode[1]","/HouseShippingInstruction/usercac:Shipment/usercac:MainCarriageShipmentStage/usercac:ShipmentEndPoint/usercac:FinalDestinationTransportLocation/usercac:AirportCityCode"]
["910",false,"HSI\\10_1\\720_1\\790_2\\880_1\\890_1\\910_1___lab","/HouseShippingInstruction[1]/usercac:Shipment[1]/usercac:MainCarriageShipmentStage[2]/usercac:ShipmentEndPoint[1]/usercac:FinalDestinationTransportLocation[1]/usercac:Location[1]","/HouseShippingInstruction/usercac:Shipment/usercac:MainCarriageShipmentStage/usercac:ShipmentEndPoint/usercac:FinalDestinationTransportLocation/usercac:Location"]
["920",false,"HSI\\10_1\\720_1\\790_2\\880_1\\890_1\\910_1\\920_1___val","/HouseShippingInstruction[1]/usercac:Shipment[1]/usercac:MainCarriageShipmentStage[2]/usercac:ShipmentEndPoint[1]/usercac:FinalDestinationTransportLocation[1]/usercac:Location[1]/usercbc:Name[1]","/HouseShippingInstruction/usercac:Shipment/usercac:MainCarriageShipmentStage/usercac:ShipmentEndPoint/usercac:FinalDestinationTransportLocation/usercac:Location/usercbc:Name"]
["930",true,"HSI\\10_1\\930___lab","/HouseShippingInstruction[1]/usercac:CargoLineItem[1]","/HouseShippingInstruction/usercac:CargoLineItem"]
["940",false,"HSI\\10_1\\930\\940_1___lab","/HouseShippingInstruction[1]/usercac:CargoLineItem[1]/usercac:LineItemNumberID[1]","/HouseShippingInstruction/usercac:CargoLineItem/usercac:LineItemNumberID"]
["950",false,"HSI\\10_1\\930\\950_1___lab","/HouseShippingInstruction[1]/usercac:CargoLineItem[1]/usercbc:Description[1]","/HouseShippingInstruction/usercac:CargoLineItem/usercbc:Description"]
["960",false,"HSI\\10_1\\930\\960_1___lab","/HouseShippingInstruction[1]/usercac:CargoLineItem[1]/usercbc:TotalUnitQuantity[1]","/HouseShippingInstruction/usercac:CargoLineItem/usercbc:TotalUnitQuantity"]
["970",false,"HSI\\10_1\\930\\960_1_970___lab","/HouseShippingInstruction[1]/usercac:CargoLineItem[1]/usercbc:TotalUnitQuantity[1]/@quantityUnitCode","/HouseShippingInstruction/usercac:CargoLineItem/usercbc:TotalUnitQuantity/@quantityUnitCode"]
["980",false,"HSI\\10_1\\930\\980_1___lab","/HouseShippingInstruction[1]/usercac:CargoLineItem[1]/usercbc:ShippingMark[1]","/HouseShippingInstruction/usercac:CargoLineItem/usercbc:ShippingMark"]
["990",false,"HSI\\10_1\\930\\990_1___lab","/HouseShippingInstruction[1]/usercac:CargoLineItem[1]/usercbc:GrossWeightMeasure[1]","/HouseShippingInstruction/usercac:CargoLineItem/usercbc:GrossWeightMeasure"]
["1000",false,"HSI\\10_1\\930\\990_1_1000___lab","/HouseShippingInstruction[1]/usercac:CargoLineItem[1]/usercbc:GrossWeightMeasure[1]/@measureUnitCode","/HouseShippingInstruction/usercac:CargoLineItem/usercbc:GrossWeightMeasure/@measureUnitCode"]
["1030",false,"HSI\\10_1\\930\\1010_1\\1020_1\\1030_1___lab","/HouseShippingInstruction[1]/usercac:CargoLineItem[1]/usercac:ProductItem[1]/usercac:Identification[1]/usercac:ID[1]","/HouseShippingInstruction/usercac:CargoLineItem/usercac:ProductItem/usercac:Identification/usercac:ID"]
["1050",false,"HSI\\10_1\\930\\1040_1\\1050_1___lab","/HouseShippingInstruction[1]/usercac:CargoLineItem[1]/usercac:TotalPackageQuantity[1]/usercbc:Quantity[1]","/HouseShippingInstruction/usercac:CargoLineItem/usercac:TotalPackageQuantity/usercbc:Quantity"]
["1060",false,"HSI\\10_1\\930\\1040_1\\1050_1_1060___lab","/HouseShippingInstruction[1]/usercac:CargoLineItem[1]/usercac:TotalPackageQuantity[1]/usercbc:Quantity[1]/@quantityUnitCode","/HouseShippingInstruction/usercac:CargoLineItem/usercac:TotalPackageQuantity/usercbc:Quantity/@quantityUnitCode"]
["1080",false,"HSI\\10_1\\930\\1040_1\\1070_1\\1080_1___lab","/HouseShippingInstruction[1]/usercac:CargoLineItem[1]/usercac:TotalPackageQuantity[1]/usercac:PackagingType[1]/usercac:Code[1]","/HouseShippingInstruction/usercac:CargoLineItem/usercac:TotalPackageQuantity/usercac:PackagingType/usercac:Code"]
[1081,false,"HSI\\10_1\\930\\1040_1\\1070_1\\1081_1___lab","/HouseShippingInstruction[1]/usercac:CargoLineItem[1]/usercac:TotalPackageQuantity[1]/usercac:PackagingType[1]/usercbc:Description[1]","/HouseShippingInstruction/usercac:CargoLineItem/usercac:TotalPackageQuantity/usercac:PackagingType/usercbc:Description"]
["1100",false,"HSI\\10_1\\930\\1090_1\\1100_1___lab","/HouseShippingInstruction[1]/usercac:CargoLineItem[1]/usercac:Dimension[1]/usercbc:HeightMeasure[1]","/HouseShippingInstruction/usercac:CargoLineItem/usercac:Dimension/usercbc:HeightMeasure"]
["1110",false,"HSI\\10_1\\930\\1090_1\\1100_1_1110___lab","/HouseShippingInstruction[1]/usercac:CargoLineItem[1]/usercac:Dimension[1]/usercbc:HeightMeasure[1]/@measureUnitCode","/HouseShippingInstruction/usercac:CargoLineItem/usercac:Dimension/usercbc:HeightMeasure/@measureUnitCode"]
["1120",false,"HSI\\10_1\\930\\1090_1\\1120_1___lab","/HouseShippingInstruction[1]/usercac:CargoLineItem[1]/usercac:Dimension[1]/usercbc:WidthMeasure[1]","/HouseShippingInstruction/usercac:CargoLineItem/usercac:Dimension/usercbc:WidthMeasure"]
["1130",false,"HSI\\10_1\\930\\1090_1\\1120_1_1130___lab","/HouseShippingInstruction[1]/usercac:CargoLineItem[1]/usercac:Dimension[1]/usercbc:WidthMeasure[1]/@measureUnitCode","/HouseShippingInstruction/usercac:CargoLineItem/usercac:Dimension/usercbc:WidthMeasure/@measureUnitCode"]
["1140",false,"HSI\\10_1\\930\\1090_1\\1140_1___lab","/HouseShippingInstruction[1]/usercac:CargoLineItem[1]/usercac:Dimension[1]/usercbc:LengthMeasure[1]","/HouseShippingInstruction/usercac:CargoLineItem/usercac:Dimension/usercbc:LengthMeasure"]
["1150",false,"HSI\\10_1\\930\\1090_1\\1140_1_1150___lab","/HouseShippingInstruction[1]/usercac:CargoLineItem[1]/usercac:Dimension[1]/usercbc:LengthMeasure[1]/@measureUnitCode","/HouseShippingInstruction/usercac:CargoLineItem/usercac:Dimension/usercbc:LengthMeasure/@measureUnitCode"]
["1160",false,"HSI\\10_1\\1160_1___lab","/HouseShippingInstruction[1]/usercac:Charge[1]","/HouseShippingInstruction/usercac:Charge"]
["1170",false,"HSI\\10_1\\1160_1\\1170_1___lab","/HouseShippingInstruction[1]/usercac:Charge[1]/usercac:PaymentArrangement[1]","/HouseShippingInstruction/usercac:Charge/usercac:PaymentArrangement"]
["1180",false,"HSI\\10_1\\1160_1\\1170_1\\1180_1___val","/HouseShippingInstruction[1]/usercac:Charge[1]/usercac:PaymentArrangement[1]/usercac:Code[1]","/HouseShippingInstruction/usercac:Charge/usercac:PaymentArrangement/usercac:Code"]
["1190",false,"HSI\\10_1\\1160_1\\1190_1___lab","/HouseShippingInstruction[1]/usercac:Charge[1]/usercac:OtherChargeLineItem[1]","/HouseShippingInstruction/usercac:Charge/usercac:OtherChargeLineItem"]
["1200",false,"HSI\\10_1\\1160_1\\1190_1\\1200_1___val","/HouseShippingInstruction[1]/usercac:Charge[1]/usercac:OtherChargeLineItem[1]/usercac:LineItemNumberID[1]","/HouseShippingInstruction/usercac:Charge/usercac:OtherChargeLineItem/usercac:LineItemNumberID"]
["1210",false,"HSI\\10_1\\1160_1\\1190_1\\1210_1___lab","/HouseShippingInstruction[1]/usercac:Charge[1]/usercac:OtherChargeLineItem[1]/usercac:ChargeType[1]","/HouseShippingInstruction/usercac:Charge/usercac:OtherChargeLineItem/usercac:ChargeType"]
["1220",false,"HSI\\10_1\\1160_1\\1190_1\\1210_1\\1220_1___val","/HouseShippingInstruction[1]/usercac:Charge[1]/usercac:OtherChargeLineItem[1]/usercac:ChargeType[1]/usercac:Code[1]","/HouseShippingInstruction/usercac:Charge/usercac:OtherChargeLineItem/usercac:ChargeType/usercac:Code"]
["1230",false,"HSI\\10_1\\1160_1\\1190_1\\1230_1___lab","/HouseShippingInstruction[1]/usercac:Charge[1]/usercac:OtherChargeLineItem[1]/usercac:PaymentArrangement[1]","/HouseShippingInstruction/usercac:Charge/usercac:OtherChargeLineItem/usercac:PaymentArrangement"]
["1240",false,"HSI\\10_1\\1160_1\\1190_1\\1230_1\\1240_1___val","/HouseShippingInstruction[1]/usercac:Charge[1]/usercac:OtherChargeLineItem[1]/usercac:PaymentArrangement[1]/usercac:Code[1]","/HouseShippingInstruction/usercac:Charge/usercac:OtherChargeLineItem/usercac:PaymentArrangement/usercac:Code"]
["1250",false,"HSI\\10_1\\1250_1___lab","/HouseShippingInstruction[1]/usercac:TotalPackageQuantity[1]","/HouseShippingInstruction/usercac:TotalPackageQuantity"]
["1260",false,"HSI\\10_1\\1250_1\\1260_1___val","/HouseShippingInstruction[1]/usercac:TotalPackageQuantity[1]/usercbc:Quantity[1]","/HouseShippingInstruction/usercac:TotalPackageQuantity/usercbc:Quantity"]
["1270",false,"HSI\\10_1\\1250_1\\1260_1_1270___val","/HouseShippingInstruction[1]/usercac:TotalPackageQuantity[1]/usercbc:Quantity[1]/@quantityUnitCode","/HouseShippingInstruction/usercac:TotalPackageQuantity/usercbc:Quantity/@quantityUnitCode"]
["1280",false,"HSI\\10_1\\1280_1___lab","/HouseShippingInstruction[1]/usercac:InsuranceArrangement[1]","/HouseShippingInstruction/usercac:InsuranceArrangement"]
["1290",false,"HSI\\10_1\\1280_1\\1290_1___val","/HouseShippingInstruction[1]/usercac:InsuranceArrangement[1]/usercbc:SumInsuredAmount[1]","/HouseShippingInstruction/usercac:InsuranceArrangement/usercbc:SumInsuredAmount"]
["1300",false,"HSI\\10_1\\1280_1\\1290_1_1300___val","/HouseShippingInstruction[1]/usercac:InsuranceArrangement[1]/usercbc:SumInsuredAmount[1]/@amountCurrencyID","/HouseShippingInstruction/usercac:InsuranceArrangement/usercbc:SumInsuredAmount/@amountCurrencyID"]
["1310",false,"HSI\\10_1\\1280_1\\1310_1___lab","/HouseShippingInstruction[1]/usercac:InsuranceArrangement[1]/usercac:ArrangingParty[1]","/HouseShippingInstruction/usercac:InsuranceArrangement/usercac:ArrangingParty"]
["1320",false,"HSI\\10_1\\1280_1\\1310_1\\1320_1___lab","/HouseShippingInstruction[1]/usercac:InsuranceArrangement[1]/usercac:ArrangingParty[1]/usercac:Identification[1]","/HouseShippingInstruction/usercac:InsuranceArrangement/usercac:ArrangingParty/usercac:Identification"]
["1330",false,"HSI\\10_1\\1280_1\\1310_1\\1320_1\\1330_1___val","/HouseShippingInstruction[1]/usercac:InsuranceArrangement[1]/usercac:ArrangingParty[1]/usercac:Identification[1]/usercbc:Name[1]","/HouseShippingInstruction/usercac:InsuranceArrangement/usercac:ArrangingParty/usercac:Identification/usercbc:Name"]
["1340",false,"HSI\\10_1\\1340_1___lab","/HouseShippingInstruction[1]/usercac:OtherReference[1]","/HouseShippingInstruction/usercac:OtherReference"]
["1350",false,"HSI\\10_1\\1340_1\\1350_1___val","/HouseShippingInstruction[1]/usercac:OtherReference[1]/usercac:ID[1]","/HouseShippingInstruction/usercac:OtherReference/usercac:ID"]
["1360",false,"HSI\\10_1\\1340_1\\1360_1___lab","/HouseShippingInstruction[1]/usercac:OtherReference[1]/usercac:ReferenceType[1]","/HouseShippingInstruction/usercac:OtherReference/usercac:ReferenceType"]
["1370",false,"HSI\\10_1\\1340_1\\1360_1\\1370_1___val","/HouseShippingInstruction[1]/usercac:OtherReference[1]/usercac:ReferenceType[1]/usercac:Code[1]","/HouseShippingInstruction/usercac:OtherReference/usercac:ReferenceType/usercac:Code"]
["1380",false,"HSI\\10_1\\1340_1\\1380_1___lab","/HouseShippingInstruction[1]/usercac:OtherReference[1]/usercac:QualifiedDate[1]","/HouseShippingInstruction/usercac:OtherReference/usercac:QualifiedDate"]
["1390",false,"HSI\\10_1\\1340_1\\1380_1\\1390_1___val","/HouseShippingInstruction[1]/usercac:OtherReference[1]/usercac:QualifiedDate[1]/usercbc:DateTime[1]","/HouseShippingInstruction/usercac:OtherReference/usercac:QualifiedDate/usercbc:DateTime"]
["1400",false,"HSI\\10_1\\1340_1\\1380_1\\1400_1___lab","/HouseShippingInstruction[1]/usercac:OtherReference[1]/usercac:QualifiedDate[1]/usercac:DateType[1]","/HouseShippingInstruction/usercac:OtherReference/usercac:QualifiedDate/usercac:DateType"]
["1410",false,"HSI\\10_1\\1340_1\\1380_1\\1400_1\\1410_1___val","/HouseShippingInstruction[1]/usercac:OtherReference[1]/usercac:QualifiedDate[1]/usercac:DateType[1]/usercac:Code[1]","/HouseShippingInstruction/usercac:OtherReference/usercac:QualifiedDate/usercac:DateType/usercac:Code"]
["1420",false,"HSI\\10_1\\1340_1\\1420_1___lab","/HouseShippingInstruction[1]/usercac:OtherReference[1]/usercac:Remarks[1]","/HouseShippingInstruction/usercac:OtherReference/usercac:Remarks"]
["1430",false,"HSI\\10_1\\1340_1\\1420_1\\1430_1___val","/HouseShippingInstruction[1]/usercac:OtherReference[1]/usercac:Remarks[1]/usercbc:Description[1]","/HouseShippingInstruction/usercac:OtherReference/usercac:Remarks/usercbc:Description"]
["1440",false,"HSI\\10_1\\1340_1\\1420_1\\1440_1___lab","/HouseShippingInstruction[1]/usercac:OtherReference[1]/usercac:Remarks[1]/usercac:RemarksType[1]","/HouseShippingInstruction/usercac:OtherReference/usercac:Remarks/usercac:RemarksType"]
["1450",false,"HSI\\10_1\\1340_1\\1420_1\\1440_1\\1450_1___val","/HouseShippingInstruction[1]/usercac:OtherReference[1]/usercac:Remarks[1]/usercac:RemarksType[1]/usercac:Code[1]","/HouseShippingInstruction/usercac:OtherReference/usercac:Remarks/usercac:RemarksType/usercac:Code"]
["1340",false,"HSI\\10_1\\1340_2___lab","/HouseShippingInstruction[1]/usercac:OtherReference[2]","/HouseShippingInstruction/usercac:OtherReference"]
["1350",false,"HSI\\10_1\\1340_2\\1350_1___val","/HouseShippingInstruction[1]/usercac:OtherReference[2]/usercac:ID[1]","/HouseShippingInstruction/usercac:OtherReference/usercac:ID"]
["1360",false,"HSI\\10_1\\1340_2\\1360_1___lab","/HouseShippingInstruction[1]/usercac:OtherReference[2]/usercac:ReferenceType[1]","/HouseShippingInstruction/usercac:OtherReference/usercac:ReferenceType"]
["1370",false,"HSI\\10_1\\1340_2\\1360_1\\1370_1___val","/HouseShippingInstruction[1]/usercac:OtherReference[2]/usercac:ReferenceType[1]/usercac:Code[1]","/HouseShippingInstruction/usercac:OtherReference/usercac:ReferenceType/usercac:Code"]
["1380",false,"HSI\\10_1\\1340_2\\1380_1___lab","/HouseShippingInstruction[1]/usercac:OtherReference[2]/usercac:QualifiedDate[1]","/HouseShippingInstruction/usercac:OtherReference/usercac:QualifiedDate"]
["1390",false,"HSI\\10_1\\1340_2\\1380_1\\1390_1___val","/HouseShippingInstruction[1]/usercac:OtherReference[2]/usercac:QualifiedDate[1]/usercbc:DateTime[1]","/HouseShippingInstruction/usercac:OtherReference/usercac:QualifiedDate/usercbc:DateTime"]
["1400",false,"HSI\\10_1\\1340_2\\1380_1\\1400_1___lab","/HouseShippingInstruction[1]/usercac:OtherReference[2]/usercac:QualifiedDate[1]/usercac:DateType[1]","/HouseShippingInstruction/usercac:OtherReference/usercac:QualifiedDate/usercac:DateType"]
["1410",false,"HSI\\10_1\\1340_2\\1380_1\\1400_1\\1410_1___val","/HouseShippingInstruction[1]/usercac:OtherReference[2]/usercac:QualifiedDate[1]/usercac:DateType[1]/usercac:Code[1]","/HouseShippingInstruction/usercac:OtherReference/usercac:QualifiedDate/usercac:DateType/usercac:Code"]
["1420",false,"HSI\\10_1\\1340_2\\1420_1___lab","/HouseShippingInstruction[1]/usercac:OtherReference[2]/usercac:Remarks[1]","/HouseShippingInstruction/usercac:OtherReference/usercac:Remarks"]
["1430",false,"HSI\\10_1\\1340_2\\1420_1\\1430_1___val","/HouseShippingInstruction[1]/usercac:OtherReference[2]/usercac:Remarks[1]/usercbc:Description[1]","/HouseShippingInstruction/usercac:OtherReference/usercac:Remarks/usercbc:Description"]
["1440",false,"HSI\\10_1\\1340_2\\1420_1\\1440_1___lab","/HouseShippingInstruction[1]/usercac:OtherReference[2]/usercac:Remarks[1]/usercac:RemarksType[1]","/HouseShippingInstruction/usercac:OtherReference/usercac:Remarks/usercac:RemarksType"]
["1450",false,"HSI\\10_1\\1340_2\\1420_1\\1440_1\\1450_1___val","/HouseShippingInstruction[1]/usercac:OtherReference[2]/usercac:Remarks[1]/usercac:RemarksType[1]/usercac:Code[1]","/HouseShippingInstruction/usercac:OtherReference/usercac:Remarks/usercac:RemarksType/usercac:Code"]
["1340",false,"HSI\\10_1\\1340_3___lab","/HouseShippingInstruction[1]/usercac:OtherReference[3]","/HouseShippingInstruction/usercac:OtherReference"]
["1350",false,"HSI\\10_1\\1340_3\\1350_1___val","/HouseShippingInstruction[1]/usercac:OtherReference[3]/usercac:ID[1]","/HouseShippingInstruction/usercac:OtherReference/usercac:ID"]
["1360",false,"HSI\\10_1\\1340_3\\1360_1___lab","/HouseShippingInstruction[1]/usercac:OtherReference[3]/usercac:ReferenceType[1]","/HouseShippingInstruction/usercac:OtherReference/usercac:ReferenceType"]
["1370",false,"HSI\\10_1\\1340_3\\1360_1\\1370_1___val","/HouseShippingInstruction[1]/usercac:OtherReference[3]/usercac:ReferenceType[1]/usercac:Code[1]","/HouseShippingInstruction/usercac:OtherReference/usercac:ReferenceType/usercac:Code"]
["1380",false,"HSI\\10_1\\1340_3\\1380_1___lab","/HouseShippingInstruction[1]/usercac:OtherReference[3]/usercac:QualifiedDate[1]","/HouseShippingInstruction/usercac:OtherReference/usercac:QualifiedDate"]
["1390",false,"HSI\\10_1\\1340_3\\1380_1\\1390_1___val","/HouseShippingInstruction[1]/usercac:OtherReference[3]/usercac:QualifiedDate[1]/usercbc:DateTime[1]","/HouseShippingInstruction/usercac:OtherReference/usercac:QualifiedDate/usercbc:DateTime"]
["1400",false,"HSI\\10_1\\1340_3\\1380_1\\1400_1___lab","/HouseShippingInstruction[1]/usercac:OtherReference[3]/usercac:QualifiedDate[1]/usercac:DateType[1]","/HouseShippingInstruction/usercac:OtherReference/usercac:QualifiedDate/usercac:DateType"]
["1410",false,"HSI\\10_1\\1340_3\\1380_1\\1400_1\\1410_1___val","/HouseShippingInstruction[1]/usercac:OtherReference[3]/usercac:QualifiedDate[1]/usercac:DateType[1]/usercac:Code[1]","/HouseShippingInstruction/usercac:OtherReference/usercac:QualifiedDate/usercac:DateType/usercac:Code"]
["1420",false,"HSI\\10_1\\1340_3\\1420_1___lab","/HouseShippingInstruction[1]/usercac:OtherReference[3]/usercac:Remarks[1]","/HouseShippingInstruction/usercac:OtherReference/usercac:Remarks"]
["1430",false,"HSI\\10_1\\1340_3\\1420_1\\1430_1___val","/HouseShippingInstruction[1]/usercac:OtherReference[3]/usercac:Remarks[1]/usercbc:Description[1]","/HouseShippingInstruction/usercac:OtherReference/usercac:Remarks/usercbc:Description"]
["1440",false,"HSI\\10_1\\1340_3\\1420_1\\1440_1___lab","/HouseShippingInstruction[1]/usercac:OtherReference[3]/usercac:Remarks[1]/usercac:RemarksType[1]","/HouseShippingInstruction/usercac:OtherReference/usercac:Remarks/usercac:RemarksType"]
["1450",false,"HSI\\10_1\\1340_3\\1420_1\\1440_1\\1450_1___val","/HouseShippingInstruction[1]/usercac:OtherReference[3]/usercac:Remarks[1]/usercac:RemarksType[1]/usercac:Code[1]","/HouseShippingInstruction/usercac:OtherReference/usercac:Remarks/usercac:RemarksType/usercac:Code"]
["1340",false,"HSI\\10_1\\1340_4___lab","/HouseShippingInstruction[1]/usercac:OtherReference[4]","/HouseShippingInstruction/usercac:OtherReference"]
["1350",false,"HSI\\10_1\\1340_4\\1350_1___val","/HouseShippingInstruction[1]/usercac:OtherReference[4]/usercac:ID[1]","/HouseShippingInstruction/usercac:OtherReference/usercac:ID"]
["1360",false,"HSI\\10_1\\1340_4\\1360_1___lab","/HouseShippingInstruction[1]/usercac:OtherReference[4]/usercac:ReferenceType[1]","/HouseShippingInstruction/usercac:OtherReference/usercac:ReferenceType"]
["1370",false,"HSI\\10_1\\1340_4\\1360_1\\1370_1___val","/HouseShippingInstruction[1]/usercac:OtherReference[4]/usercac:ReferenceType[1]/usercac:Code[1]","/HouseShippingInstruction/usercac:OtherReference/usercac:ReferenceType/usercac:Code"]
["1380",false,"HSI\\10_1\\1340_4\\1380_1___lab","/HouseShippingInstruction[1]/usercac:OtherReference[4]/usercac:QualifiedDate[1]","/HouseShippingInstruction/usercac:OtherReference/usercac:QualifiedDate"]
["1390",false,"HSI\\10_1\\1340_4\\1380_1\\1390_1___val","/HouseShippingInstruction[1]/usercac:OtherReference[4]/usercac:QualifiedDate[1]/usercbc:DateTime[1]","/HouseShippingInstruction/usercac:OtherReference/usercac:QualifiedDate/usercbc:DateTime"]
["1400",false,"HSI\\10_1\\1340_4\\1380_1\\1400_1___lab","/HouseShippingInstruction[1]/usercac:OtherReference[4]/usercac:QualifiedDate[1]/usercac:DateType[1]","/HouseShippingInstruction/usercac:OtherReference/usercac:QualifiedDate/usercac:DateType"]
["1410",false,"HSI\\10_1\\1340_4\\1380_1\\1400_1\\1410_1___val","/HouseShippingInstruction[1]/usercac:OtherReference[4]/usercac:QualifiedDate[1]/usercac:DateType[1]/usercac:Code[1]","/HouseShippingInstruction/usercac:OtherReference/usercac:QualifiedDate/usercac:DateType/usercac:Code"]
["1420",false,"HSI\\10_1\\1340_4\\1420_1___lab","/HouseShippingInstruction[1]/usercac:OtherReference[4]/usercac:Remarks[1]","/HouseShippingInstruction/usercac:OtherReference/usercac:Remarks"]
["1430",false,"HSI\\10_1\\1340_4\\1420_1\\1430_1___val","/HouseShippingInstruction[1]/usercac:OtherReference[4]/usercac:Remarks[1]/usercbc:Description[1]","/HouseShippingInstruction/usercac:OtherReference/usercac:Remarks/usercbc:Description"]
["1440",false,"HSI\\10_1\\1340_4\\1420_1\\1440_1___lab","/HouseShippingInstruction[1]/usercac:OtherReference[4]/usercac:Remarks[1]/usercac:RemarksType[1]","/HouseShippingInstruction/usercac:OtherReference/usercac:Remarks/usercac:RemarksType"]
["1450",false,"HSI\\10_1\\1340_4\\1420_1\\1440_1\\1450_1___val","/HouseShippingInstruction[1]/usercac:OtherReference[4]/usercac:Remarks[1]/usercac:RemarksType[1]/usercac:Code[1]","/HouseShippingInstruction/usercac:OtherReference/usercac:Remarks/usercac:RemarksType/usercac:Code"]
["1340",false,"HSI\\10_1\\1340_5___lab","/HouseShippingInstruction[1]/usercac:OtherReference[5]","/HouseShippingInstruction/usercac:OtherReference"]
["1350",false,"HSI\\10_1\\1340_5\\1350_1___val","/HouseShippingInstruction[1]/usercac:OtherReference[5]/usercac:ID[1]","/HouseShippingInstruction/usercac:OtherReference/usercac:ID"]
["1360",false,"HSI\\10_1\\1340_5\\1360_1___lab","/HouseShippingInstruction[1]/usercac:OtherReference[5]/usercac:ReferenceType[1]","/HouseShippingInstruction/usercac:OtherReference/usercac:ReferenceType"]
["1370",false,"HSI\\10_1\\1340_5\\1360_1\\1370_1___val","/HouseShippingInstruction[1]/usercac:OtherReference[5]/usercac:ReferenceType[1]/usercac:Code[1]","/HouseShippingInstruction/usercac:OtherReference/usercac:ReferenceType/usercac:Code"]
["1380",false,"HSI\\10_1\\1340_5\\1380_1___lab","/HouseShippingInstruction[1]/usercac:OtherReference[5]/usercac:QualifiedDate[1]","/HouseShippingInstruction/usercac:OtherReference/usercac:QualifiedDate"]
["1390",false,"HSI\\10_1\\1340_5\\1380_1\\1390_1___val","/HouseShippingInstruction[1]/usercac:OtherReference[5]/usercac:QualifiedDate[1]/usercbc:DateTime[1]","/HouseShippingInstruction/usercac:OtherReference/usercac:QualifiedDate/usercbc:DateTime"]
["1400",false,"HSI\\10_1\\1340_5\\1380_1\\1400_1___lab","/HouseShippingInstruction[1]/usercac:OtherReference[5]/usercac:QualifiedDate[1]/usercac:DateType[1]","/HouseShippingInstruction/usercac:OtherReference/usercac:QualifiedDate/usercac:DateType"]
["1410",false,"HSI\\10_1\\1340_5\\1380_1\\1400_1\\1410_1___val","/HouseShippingInstruction[1]/usercac:OtherReference[5]/usercac:QualifiedDate[1]/usercac:DateType[1]/usercac:Code[1]","/HouseShippingInstruction/usercac:OtherReference/usercac:QualifiedDate/usercac:DateType/usercac:Code"]
["1420",false,"HSI\\10_1\\1340_5\\1420_1___lab","/HouseShippingInstruction[1]/usercac:OtherReference[5]/usercac:Remarks[1]","/HouseShippingInstruction/usercac:OtherReference/usercac:Remarks"]
["1430",false,"HSI\\10_1\\1340_5\\1420_1\\1430_1___val","/HouseShippingInstruction[1]/usercac:OtherReference[5]/usercac:Remarks[1]/usercbc:Description[1]","/HouseShippingInstruction/usercac:OtherReference/usercac:Remarks/usercbc:Description"]
["1440",false,"HSI\\10_1\\1340_5\\1420_1\\1440_1___lab","/HouseShippingInstruction[1]/usercac:OtherReference[5]/usercac:Remarks[1]/usercac:RemarksType[1]","/HouseShippingInstruction/usercac:OtherReference/usercac:Remarks/usercac:RemarksType"]
["1450",false,"HSI\\10_1\\1340_5\\1420_1\\1440_1\\1450_1___val","/HouseShippingInstruction[1]/usercac:OtherReference[5]/usercac:Remarks[1]/usercac:RemarksType[1]/usercac:Code[1]","/HouseShippingInstruction/usercac:OtherReference/usercac:Remarks/usercac:RemarksType/usercac:Code"]
["1340",false,"HSI\\10_1\\1340_6___lab","/HouseShippingInstruction[1]/usercac:OtherReference[6]","/HouseShippingInstruction/usercac:OtherReference"]
["1350",false,"HSI\\10_1\\1340_6\\1350_1___val","/HouseShippingInstruction[1]/usercac:OtherReference[6]/usercac:ID[1]","/HouseShippingInstruction/usercac:OtherReference/usercac:ID"]
["1360",false,"HSI\\10_1\\1340_6\\1360_1___lab","/HouseShippingInstruction[1]/usercac:OtherReference[6]/usercac:ReferenceType[1]","/HouseShippingInstruction/usercac:OtherReference/usercac:ReferenceType"]
["1370",false,"HSI\\10_1\\1340_6\\1360_1\\1370_1___val","/HouseShippingInstruction[1]/usercac:OtherReference[6]/usercac:ReferenceType[1]/usercac:Code[1]","/HouseShippingInstruction/usercac:OtherReference/usercac:ReferenceType/usercac:Code"]
["1380",false,"HSI\\10_1\\1340_6\\1380_1___lab","/HouseShippingInstruction[1]/usercac:OtherReference[6]/usercac:QualifiedDate[1]","/HouseShippingInstruction/usercac:OtherReference/usercac:QualifiedDate"]
["1390",false,"HSI\\10_1\\1340_6\\1380_1\\1390_1___val","/HouseShippingInstruction[1]/usercac:OtherReference[6]/usercac:QualifiedDate[1]/usercbc:DateTime[1]","/HouseShippingInstruction/usercac:OtherReference/usercac:QualifiedDate/usercbc:DateTime"]
["1400",false,"HSI\\10_1\\1340_6\\1380_1\\1400_1___lab","/HouseShippingInstruction[1]/usercac:OtherReference[6]/usercac:QualifiedDate[1]/usercac:DateType[1]","/HouseShippingInstruction/usercac:OtherReference/usercac:QualifiedDate/usercac:DateType"]
["1410",false,"HSI\\10_1\\1340_6\\1380_1\\1400_1\\1410_1___val","/HouseShippingInstruction[1]/usercac:OtherReference[6]/usercac:QualifiedDate[1]/usercac:DateType[1]/usercac:Code[1]","/HouseShippingInstruction/usercac:OtherReference/usercac:QualifiedDate/usercac:DateType/usercac:Code"]
["1420",false,"HSI\\10_1\\1340_6\\1420_1___lab","/HouseShippingInstruction[1]/usercac:OtherReference[6]/usercac:Remarks[1]","/HouseShippingInstruction/usercac:OtherReference/usercac:Remarks"]
["1430",false,"HSI\\10_1\\1340_6\\1420_1\\1430_1___val","/HouseShippingInstruction[1]/usercac:OtherReference[6]/usercac:Remarks[1]/usercbc:Description[1]","/HouseShippingInstruction/usercac:OtherReference/usercac:Remarks/usercbc:Description"]
["1440",false,"HSI\\10_1\\1340_6\\1420_1\\1440_1___lab","/HouseShippingInstruction[1]/usercac:OtherReference[6]/usercac:Remarks[1]/usercac:RemarksType[1]","/HouseShippingInstruction/usercac:OtherReference/usercac:Remarks/usercac:RemarksType"]
["1450",false,"HSI\\10_1\\1340_6\\1420_1\\1440_1\\1450_1___val","/HouseShippingInstruction[1]/usercac:OtherReference[6]/usercac:Remarks[1]/usercac:RemarksType[1]/usercac:Code[1]","/HouseShippingInstruction/usercac:OtherReference/usercac:Remarks/usercac:RemarksType/usercac:Code"]
["1340",false,"HSI\\10_1\\1340_7___lab","/HouseShippingInstruction[1]/usercac:OtherReference[7]","/HouseShippingInstruction/usercac:OtherReference"]
["1350",false,"HSI\\10_1\\1340_7\\1350_1___val","/HouseShippingInstruction[1]/usercac:OtherReference[7]/usercac:ID[1]","/HouseShippingInstruction/usercac:OtherReference/usercac:ID"]
["1360",false,"HSI\\10_1\\1340_7\\1360_1___lab","/HouseShippingInstruction[1]/usercac:OtherReference[7]/usercac:ReferenceType[1]","/HouseShippingInstruction/usercac:OtherReference/usercac:ReferenceType"]
["1370",false,"HSI\\10_1\\1340_7\\1360_1\\1370_1___val","/HouseShippingInstruction[1]/usercac:OtherReference[7]/usercac:ReferenceType[1]/usercac:Code[1]","/HouseShippingInstruction/usercac:OtherReference/usercac:ReferenceType/usercac:Code"]
["1380",false,"HSI\\10_1\\1340_7\\1380_1___lab","/HouseShippingInstruction[1]/usercac:OtherReference[7]/usercac:QualifiedDate[1]","/HouseShippingInstruction/usercac:OtherReference/usercac:QualifiedDate"]
["1390",false,"HSI\\10_1\\1340_7\\1380_1\\1390_1___val","/HouseShippingInstruction[1]/usercac:OtherReference[7]/usercac:QualifiedDate[1]/usercbc:DateTime[1]","/HouseShippingInstruction/usercac:OtherReference/usercac:QualifiedDate/usercbc:DateTime"]
["1400",false,"HSI\\10_1\\1340_7\\1380_1\\1400_1___lab","/HouseShippingInstruction[1]/usercac:OtherReference[7]/usercac:QualifiedDate[1]/usercac:DateType[1]","/HouseShippingInstruction/usercac:OtherReference/usercac:QualifiedDate/usercac:DateType"]
["1410",false,"HSI\\10_1\\1340_7\\1380_1\\1400_1\\1410_1___val","/HouseShippingInstruction[1]/usercac:OtherReference[7]/usercac:QualifiedDate[1]/usercac:DateType[1]/usercac:Code[1]","/HouseShippingInstruction/usercac:OtherReference/usercac:QualifiedDate/usercac:DateType/usercac:Code"]
["1420",false,"HSI\\10_1\\1340_7\\1420_1___lab","/HouseShippingInstruction[1]/usercac:OtherReference[7]/usercac:Remarks[1]","/HouseShippingInstruction/usercac:OtherReference/usercac:Remarks"]
["1430",false,"HSI\\10_1\\1340_7\\1420_1\\1430_1___val","/HouseShippingInstruction[1]/usercac:OtherReference[7]/usercac:Remarks[1]/usercbc:Description[1]","/HouseShippingInstruction/usercac:OtherReference/usercac:Remarks/usercbc:Description"]
["1440",false,"HSI\\10_1\\1340_7\\1420_1\\1440_1___lab","/HouseShippingInstruction[1]/usercac:OtherReference[7]/usercac:Remarks[1]/usercac:RemarksType[1]","/HouseShippingInstruction/usercac:OtherReference/usercac:Remarks/usercac:RemarksType"]
["1450",false,"HSI\\10_1\\1340_7\\1420_1\\1440_1\\1450_1___val","/HouseShippingInstruction[1]/usercac:OtherReference[7]/usercac:Remarks[1]/usercac:RemarksType[1]/usercac:Code[1]","/HouseShippingInstruction/usercac:OtherReference/usercac:Remarks/usercac:RemarksType/usercac:Code"]
["1340",false,"HSI\\10_1\\1340_8___lab","/HouseShippingInstruction[1]/usercac:OtherReference[8]","/HouseShippingInstruction/usercac:OtherReference"]
["1350",false,"HSI\\10_1\\1340_8\\1350_1___val","/HouseShippingInstruction[1]/usercac:OtherReference[8]/usercac:ID[1]","/HouseShippingInstruction/usercac:OtherReference/usercac:ID"]
["1360",false,"HSI\\10_1\\1340_8\\1360_1___lab","/HouseShippingInstruction[1]/usercac:OtherReference[8]/usercac:ReferenceType[1]","/HouseShippingInstruction/usercac:OtherReference/usercac:ReferenceType"]
["1370",false,"HSI\\10_1\\1340_8\\1360_1\\1370_1___val","/HouseShippingInstruction[1]/usercac:OtherReference[8]/usercac:ReferenceType[1]/usercac:Code[1]","/HouseShippingInstruction/usercac:OtherReference/usercac:ReferenceType/usercac:Code"]
["1380",false,"HSI\\10_1\\1340_8\\1380_1___lab","/HouseShippingInstruction[1]/usercac:OtherReference[8]/usercac:QualifiedDate[1]","/HouseShippingInstruction/usercac:OtherReference/usercac:QualifiedDate"]
["1390",false,"HSI\\10_1\\1340_8\\1380_1\\1390_1___val","/HouseShippingInstruction[1]/usercac:OtherReference[8]/usercac:QualifiedDate[1]/usercbc:DateTime[1]","/HouseShippingInstruction/usercac:OtherReference/usercac:QualifiedDate/usercbc:DateTime"]
["1400",false,"HSI\\10_1\\1340_8\\1380_1\\1400_1___lab","/HouseShippingInstruction[1]/usercac:OtherReference[8]/usercac:QualifiedDate[1]/usercac:DateType[1]","/HouseShippingInstruction/usercac:OtherReference/usercac:QualifiedDate/usercac:DateType"]
["1410",false,"HSI\\10_1\\1340_8\\1380_1\\1400_1\\1410_1___val","/HouseShippingInstruction[1]/usercac:OtherReference[8]/usercac:QualifiedDate[1]/usercac:DateType[1]/usercac:Code[1]","/HouseShippingInstruction/usercac:OtherReference/usercac:QualifiedDate/usercac:DateType/usercac:Code"]
["1420",false,"HSI\\10_1\\1340_8\\1420_1___lab","/HouseShippingInstruction[1]/usercac:OtherReference[8]/usercac:Remarks[1]","/HouseShippingInstruction/usercac:OtherReference/usercac:Remarks"]
["1430",false,"HSI\\10_1\\1340_8\\1420_1\\1430_1___val","/HouseShippingInstruction[1]/usercac:OtherReference[8]/usercac:Remarks[1]/usercbc:Description[1]","/HouseShippingInstruction/usercac:OtherReference/usercac:Remarks/usercbc:Description"]
["1440",false,"HSI\\10_1\\1340_8\\1420_1\\1440_1___lab","/HouseShippingInstruction[1]/usercac:OtherReference[8]/usercac:Remarks[1]/usercac:RemarksType[1]","/HouseShippingInstruction/usercac:OtherReference/usercac:Remarks/usercac:RemarksType"]
["1450",false,"HSI\\10_1\\1340_8\\1420_1\\1440_1\\1450_1___val","/HouseShippingInstruction[1]/usercac:OtherReference[8]/usercac:Remarks[1]/usercac:RemarksType[1]/usercac:Code[1]","/HouseShippingInstruction/usercac:OtherReference/usercac:Remarks/usercac:RemarksType/usercac:Code"]
["1340",false,"HSI\\10_1\\1340_9___lab","/HouseShippingInstruction[1]/usercac:OtherReference[9]","/HouseShippingInstruction/usercac:OtherReference"]
["1350",false,"HSI\\10_1\\1340_9\\1350_1___val","/HouseShippingInstruction[1]/usercac:OtherReference[9]/usercac:ID[1]","/HouseShippingInstruction/usercac:OtherReference/usercac:ID"]
["1360",false,"HSI\\10_1\\1340_9\\1360_1___lab","/HouseShippingInstruction[1]/usercac:OtherReference[9]/usercac:ReferenceType[1]","/HouseShippingInstruction/usercac:OtherReference/usercac:ReferenceType"]
["1370",false,"HSI\\10_1\\1340_9\\1360_1\\1370_1___val","/HouseShippingInstruction[1]/usercac:OtherReference[9]/usercac:ReferenceType[1]/usercac:Code[1]","/HouseShippingInstruction/usercac:OtherReference/usercac:ReferenceType/usercac:Code"]
["1380",false,"HSI\\10_1\\1340_9\\1380_1___lab","/HouseShippingInstruction[1]/usercac:OtherReference[9]/usercac:QualifiedDate[1]","/HouseShippingInstruction/usercac:OtherReference/usercac:QualifiedDate"]
["1390",false,"HSI\\10_1\\1340_9\\1380_1\\1390_1___val","/HouseShippingInstruction[1]/usercac:OtherReference[9]/usercac:QualifiedDate[1]/usercbc:DateTime[1]","/HouseShippingInstruction/usercac:OtherReference/usercac:QualifiedDate/usercbc:DateTime"]
["1400",false,"HSI\\10_1\\1340_9\\1380_1\\1400_1___lab","/HouseShippingInstruction[1]/usercac:OtherReference[9]/usercac:QualifiedDate[1]/usercac:DateType[1]","/HouseShippingInstruction/usercac:OtherReference/usercac:QualifiedDate/usercac:DateType"]
["1410",false,"HSI\\10_1\\1340_9\\1380_1\\1400_1\\1410_1___val","/HouseShippingInstruction[1]/usercac:OtherReference[9]/usercac:QualifiedDate[1]/usercac:DateType[1]/usercac:Code[1]","/HouseShippingInstruction/usercac:OtherReference/usercac:QualifiedDate/usercac:DateType/usercac:Code"]
["1420",false,"HSI\\10_1\\1340_9\\1420_1___lab","/HouseShippingInstruction[1]/usercac:OtherReference[9]/usercac:Remarks[1]","/HouseShippingInstruction/usercac:OtherReference/usercac:Remarks"]
["1430",false,"HSI\\10_1\\1340_9\\1420_1\\1430_1___val","/HouseShippingInstruction[1]/usercac:OtherReference[9]/usercac:Remarks[1]/usercbc:Description[1]","/HouseShippingInstruction/usercac:OtherReference/usercac:Remarks/usercbc:Description"]
["1440",false,"HSI\\10_1\\1340_9\\1420_1\\1440_1___lab","/HouseShippingInstruction[1]/usercac:OtherReference[9]/usercac:Remarks[1]/usercac:RemarksType[1]","/HouseShippingInstruction/usercac:OtherReference/usercac:Remarks/usercac:RemarksType"]
["1450",false,"HSI\\10_1\\1340_9\\1420_1\\1440_1\\1450_1___val","/HouseShippingInstruction[1]/usercac:OtherReference[9]/usercac:Remarks[1]/usercac:RemarksType[1]/usercac:Code[1]","/HouseShippingInstruction/usercac:OtherReference/usercac:Remarks/usercac:RemarksType/usercac:Code"]
["1340",false,"HSI\\10_1\\1340_10___lab","/HouseShippingInstruction[1]/usercac:OtherReference[10]","/HouseShippingInstruction/usercac:OtherReference"]
["1350",false,"HSI\\10_1\\1340_10\\1350_1___val","/HouseShippingInstruction[1]/usercac:OtherReference[10]/usercac:ID[1]","/HouseShippingInstruction/usercac:OtherReference/usercac:ID"]
["1360",false,"HSI\\10_1\\1340_10\\1360_1___lab","/HouseShippingInstruction[1]/usercac:OtherReference[10]/usercac:ReferenceType[1]","/HouseShippingInstruction/usercac:OtherReference/usercac:ReferenceType"]
["1370",false,"HSI\\10_1\\1340_10\\1360_1\\1370_1___val","/HouseShippingInstruction[1]/usercac:OtherReference[10]/usercac:ReferenceType[1]/usercac:Code[1]","/HouseShippingInstruction/usercac:OtherReference/usercac:ReferenceType/usercac:Code"]
["1380",false,"HSI\\10_1\\1340_10\\1380_1___lab","/HouseShippingInstruction[1]/usercac:OtherReference[10]/usercac:QualifiedDate[1]","/HouseShippingInstruction/usercac:OtherReference/usercac:QualifiedDate"]
["1390",false,"HSI\\10_1\\1340_10\\1380_1\\1390_1___val","/HouseShippingInstruction[1]/usercac:OtherReference[10]/usercac:QualifiedDate[1]/usercbc:DateTime[1]","/HouseShippingInstruction/usercac:OtherReference/usercac:QualifiedDate/usercbc:DateTime"]
["1400",false,"HSI\\10_1\\1340_10\\1380_1\\1400_1___lab","/HouseShippingInstruction[1]/usercac:OtherReference[10]/usercac:QualifiedDate[1]/usercac:DateType[1]","/HouseShippingInstruction/usercac:OtherReference/usercac:QualifiedDate/usercac:DateType"]
["1410",false,"HSI\\10_1\\1340_10\\1380_1\\1400_1\\1410_1___val","/HouseShippingInstruction[1]/usercac:OtherReference[10]/usercac:QualifiedDate[1]/usercac:DateType[1]/usercac:Code[1]","/HouseShippingInstruction/usercac:OtherReference/usercac:QualifiedDate/usercac:DateType/usercac:Code"]
["1420",false,"HSI\\10_1\\1340_10\\1420_1___lab","/HouseShippingInstruction[1]/usercac:OtherReference[10]/usercac:Remarks[1]","/HouseShippingInstruction/usercac:OtherReference/usercac:Remarks"]
["1430",false,"HSI\\10_1\\1340_10\\1420_1\\1430_1___val","/HouseShippingInstruction[1]/usercac:OtherReference[10]/usercac:Remarks[1]/usercbc:Description[1]","/HouseShippingInstruction/usercac:OtherReference/usercac:Remarks/usercbc:Description"]
["1440",false,"HSI\\10_1\\1340_10\\1420_1\\1440_1___lab","/HouseShippingInstruction[1]/usercac:OtherReference[10]/usercac:Remarks[1]/usercac:RemarksType[1]","/HouseShippingInstruction/usercac:OtherReference/usercac:Remarks/usercac:RemarksType"]
["1450",false,"HSI\\10_1\\1340_10\\1420_1\\1440_1\\1450_1___val","/HouseShippingInstruction[1]/usercac:OtherReference[10]/usercac:Remarks[1]/usercac:RemarksType[1]/usercac:Code[1]","/HouseShippingInstruction/usercac:OtherReference/usercac:Remarks/usercac:RemarksType/usercac:Code"]
["1340",false,"HSI\\10_1\\1340_11___lab","/HouseShippingInstruction[1]/usercac:OtherReference[11]","/HouseShippingInstruction/usercac:OtherReference"]
["1350",false,"HSI\\10_1\\1340_11\\1350_1___val","/HouseShippingInstruction[1]/usercac:OtherReference[11]/usercac:ID[1]","/HouseShippingInstruction/usercac:OtherReference/usercac:ID"]
["1360",false,"HSI\\10_1\\1340_11\\1360_1___lab","/HouseShippingInstruction[1]/usercac:OtherReference[11]/usercac:ReferenceType[1]","/HouseShippingInstruction/usercac:OtherReference/usercac:ReferenceType"]
["1370",false,"HSI\\10_1\\1340_11\\1360_1\\1370_1___val","/HouseShippingInstruction[1]/usercac:OtherReference[11]/usercac:ReferenceType[1]/usercac:Code[1]","/HouseShippingInstruction/usercac:OtherReference/usercac:ReferenceType/usercac:Code"]
["1380",false,"HSI\\10_1\\1340_11\\1380_1___lab","/HouseShippingInstruction[1]/usercac:OtherReference[11]/usercac:QualifiedDate[1]","/HouseShippingInstruction/usercac:OtherReference/usercac:QualifiedDate"]
["1390",false,"HSI\\10_1\\1340_11\\1380_1\\1390_1___val","/HouseShippingInstruction[1]/usercac:OtherReference[11]/usercac:QualifiedDate[1]/usercbc:DateTime[1]","/HouseShippingInstruction/usercac:OtherReference/usercac:QualifiedDate/usercbc:DateTime"]
["1400",false,"HSI\\10_1\\1340_11\\1380_1\\1400_1___lab","/HouseShippingInstruction[1]/usercac:OtherReference[11]/usercac:QualifiedDate[1]/usercac:DateType[1]","/HouseShippingInstruction/usercac:OtherReference/usercac:QualifiedDate/usercac:DateType"]
["1410",false,"HSI\\10_1\\1340_11\\1380_1\\1400_1\\1410_1___val","/HouseShippingInstruction[1]/usercac:OtherReference[11]/usercac:QualifiedDate[1]/usercac:DateType[1]/usercac:Code[1]","/HouseShippingInstruction/usercac:OtherReference/usercac:QualifiedDate/usercac:DateType/usercac:Code"]
["1420",false,"HSI\\10_1\\1340_11\\1420_1___lab","/HouseShippingInstruction[1]/usercac:OtherReference[11]/usercac:Remarks[1]","/HouseShippingInstruction/usercac:OtherReference/usercac:Remarks"]
["1430",false,"HSI\\10_1\\1340_11\\1420_1\\1430_1___val","/HouseShippingInstruction[1]/usercac:OtherReference[11]/usercac:Remarks[1]/usercbc:Description[1]","/HouseShippingInstruction/usercac:OtherReference/usercac:Remarks/usercbc:Description"]
["1440",false,"HSI\\10_1\\1340_11\\1420_1\\1440_1___lab","/HouseShippingInstruction[1]/usercac:OtherReference[11]/usercac:Remarks[1]/usercac:RemarksType[1]","/HouseShippingInstruction/usercac:OtherReference/usercac:Remarks/usercac:RemarksType"]
["1450",false,"HSI\\10_1\\1340_11\\1420_1\\1440_1\\1450_1___val","/HouseShippingInstruction[1]/usercac:OtherReference[11]/usercac:Remarks[1]/usercac:RemarksType[1]/usercac:Code[1]","/HouseShippingInstruction/usercac:OtherReference/usercac:Remarks/usercac:RemarksType/usercac:Code"]
["1340",false,"HSI\\10_1\\1340_12___lab","/HouseShippingInstruction[1]/usercac:OtherReference[12]","/HouseShippingInstruction/usercac:OtherReference"]
["1350",false,"HSI\\10_1\\1340_12\\1350_1___val","/HouseShippingInstruction[1]/usercac:OtherReference[12]/usercac:ID[1]","/HouseShippingInstruction/usercac:OtherReference/usercac:ID"]
["1360",false,"HSI\\10_1\\1340_12\\1360_1___lab","/HouseShippingInstruction[1]/usercac:OtherReference[12]/usercac:ReferenceType[1]","/HouseShippingInstruction/usercac:OtherReference/usercac:ReferenceType"]
["1370",false,"HSI\\10_1\\1340_12\\1360_1\\1370_1___val","/HouseShippingInstruction[1]/usercac:OtherReference[12]/usercac:ReferenceType[1]/usercac:Code[1]","/HouseShippingInstruction/usercac:OtherReference/usercac:ReferenceType/usercac:Code"]
["1380",false,"HSI\\10_1\\1340_12\\1380_1___lab","/HouseShippingInstruction[1]/usercac:OtherReference[12]/usercac:QualifiedDate[1]","/HouseShippingInstruction/usercac:OtherReference/usercac:QualifiedDate"]
["1390",false,"HSI\\10_1\\1340_12\\1380_1\\1390_1___val","/HouseShippingInstruction[1]/usercac:OtherReference[12]/usercac:QualifiedDate[1]/usercbc:DateTime[1]","/HouseShippingInstruction/usercac:OtherReference/usercac:QualifiedDate/usercbc:DateTime"]
["1400",false,"HSI\\10_1\\1340_12\\1380_1\\1400_1___lab","/HouseShippingInstruction[1]/usercac:OtherReference[12]/usercac:QualifiedDate[1]/usercac:DateType[1]","/HouseShippingInstruction/usercac:OtherReference/usercac:QualifiedDate/usercac:DateType"]
["1410",false,"HSI\\10_1\\1340_12\\1380_1\\1400_1\\1410_1___val","/HouseShippingInstruction[1]/usercac:OtherReference[12]/usercac:QualifiedDate[1]/usercac:DateType[1]/usercac:Code[1]","/HouseShippingInstruction/usercac:OtherReference/usercac:QualifiedDate/usercac:DateType/usercac:Code"]
["1420",false,"HSI\\10_1\\1340_12\\1420_1___lab","/HouseShippingInstruction[1]/usercac:OtherReference[12]/usercac:Remarks[1]","/HouseShippingInstruction/usercac:OtherReference/usercac:Remarks"]
["1430",false,"HSI\\10_1\\1340_12\\1420_1\\1430_1___val","/HouseShippingInstruction[1]/usercac:OtherReference[12]/usercac:Remarks[1]/usercbc:Description[1]","/HouseShippingInstruction/usercac:OtherReference/usercac:Remarks/usercbc:Description"]
["1440",false,"HSI\\10_1\\1340_12\\1420_1\\1440_1___lab","/HouseShippingInstruction[1]/usercac:OtherReference[12]/usercac:Remarks[1]/usercac:RemarksType[1]","/HouseShippingInstruction/usercac:OtherReference/usercac:Remarks/usercac:RemarksType"]
["1450",false,"HSI\\10_1\\1340_12\\1420_1\\1440_1\\1450_1___val","/HouseShippingInstruction[1]/usercac:OtherReference[12]/usercac:Remarks[1]/usercac:RemarksType[1]/usercac:Code[1]","/HouseShippingInstruction/usercac:OtherReference/usercac:Remarks/usercac:RemarksType/usercac:Code"]
["1340",false,"HSI\\10_1\\1340_13___lab","/HouseShippingInstruction[1]/usercac:OtherReference[13]","/HouseShippingInstruction/usercac:OtherReference"]
["1350",false,"HSI\\10_1\\1340_13\\1350_1___val","/HouseShippingInstruction[1]/usercac:OtherReference[13]/usercac:ID[1]","/HouseShippingInstruction/usercac:OtherReference/usercac:ID"]
["1360",false,"HSI\\10_1\\1340_13\\1360_1___lab","/HouseShippingInstruction[1]/usercac:OtherReference[13]/usercac:ReferenceType[1]","/HouseShippingInstruction/usercac:OtherReference/usercac:ReferenceType"]
["1370",false,"HSI\\10_1\\1340_13\\1360_1\\1370_1___val","/HouseShippingInstruction[1]/usercac:OtherReference[13]/usercac:ReferenceType[1]/usercac:Code[1]","/HouseShippingInstruction/usercac:OtherReference/usercac:ReferenceType/usercac:Code"]
["1380",false,"HSI\\10_1\\1340_13\\1380_1___lab","/HouseShippingInstruction[1]/usercac:OtherReference[13]/usercac:QualifiedDate[1]","/HouseShippingInstruction/usercac:OtherReference/usercac:QualifiedDate"]
["1390",false,"HSI\\10_1\\1340_13\\1380_1\\1390_1___val","/HouseShippingInstruction[1]/usercac:OtherReference[13]/usercac:QualifiedDate[1]/usercbc:DateTime[1]","/HouseShippingInstruction/usercac:OtherReference/usercac:QualifiedDate/usercbc:DateTime"]
["1400",false,"HSI\\10_1\\1340_13\\1380_1\\1400_1___lab","/HouseShippingInstruction[1]/usercac:OtherReference[13]/usercac:QualifiedDate[1]/usercac:DateType[1]","/HouseShippingInstruction/usercac:OtherReference/usercac:QualifiedDate/usercac:DateType"]
["1410",false,"HSI\\10_1\\1340_13\\1380_1\\1400_1\\1410_1___val","/HouseShippingInstruction[1]/usercac:OtherReference[13]/usercac:QualifiedDate[1]/usercac:DateType[1]/usercac:Code[1]","/HouseShippingInstruction/usercac:OtherReference/usercac:QualifiedDate/usercac:DateType/usercac:Code"]
["1420",false,"HSI\\10_1\\1340_13\\1420_1___lab","/HouseShippingInstruction[1]/usercac:OtherReference[13]/usercac:Remarks[1]","/HouseShippingInstruction/usercac:OtherReference/usercac:Remarks"]
["1430",false,"HSI\\10_1\\1340_13\\1420_1\\1430_1___val","/HouseShippingInstruction[1]/usercac:OtherReference[13]/usercac:Remarks[1]/usercbc:Description[1]","/HouseShippingInstruction/usercac:OtherReference/usercac:Remarks/usercbc:Description"]
["1440",false,"HSI\\10_1\\1340_13\\1420_1\\1440_1___lab","/HouseShippingInstruction[1]/usercac:OtherReference[13]/usercac:Remarks[1]/usercac:RemarksType[1]","/HouseShippingInstruction/usercac:OtherReference/usercac:Remarks/usercac:RemarksType"]
["1450",false,"HSI\\10_1\\1340_13\\1420_1\\1440_1\\1450_1___val","/HouseShippingInstruction[1]/usercac:OtherReference[13]/usercac:Remarks[1]/usercac:RemarksType[1]/usercac:Code[1]","/HouseShippingInstruction/usercac:OtherReference/usercac:Remarks/usercac:RemarksType/usercac:Code"]
["1340",false,"HSI\\10_1\\1340_14___lab","/HouseShippingInstruction[1]/usercac:OtherReference[14]","/HouseShippingInstruction/usercac:OtherReference"]
["1350",false,"HSI\\10_1\\1340_14\\1350_1___val","/HouseShippingInstruction[1]/usercac:OtherReference[14]/usercac:ID[1]","/HouseShippingInstruction/usercac:OtherReference/usercac:ID"]
["1360",false,"HSI\\10_1\\1340_14\\1360_1___lab","/HouseShippingInstruction[1]/usercac:OtherReference[14]/usercac:ReferenceType[1]","/HouseShippingInstruction/usercac:OtherReference/usercac:ReferenceType"]
["1370",false,"HSI\\10_1\\1340_14\\1360_1\\1370_1___val","/HouseShippingInstruction[1]/usercac:OtherReference[14]/usercac:ReferenceType[1]/usercac:Code[1]","/HouseShippingInstruction/usercac:OtherReference/usercac:ReferenceType/usercac:Code"]
["1380",false,"HSI\\10_1\\1340_14\\1380_1___lab","/HouseShippingInstruction[1]/usercac:OtherReference[14]/usercac:QualifiedDate[1]","/HouseShippingInstruction/usercac:OtherReference/usercac:QualifiedDate"]
["1390",false,"HSI\\10_1\\1340_14\\1380_1\\1390_1___val","/HouseShippingInstruction[1]/usercac:OtherReference[14]/usercac:QualifiedDate[1]/usercbc:DateTime[1]","/HouseShippingInstruction/usercac:OtherReference/usercac:QualifiedDate/usercbc:DateTime"]
["1400",false,"HSI\\10_1\\1340_14\\1380_1\\1400_1___lab","/HouseShippingInstruction[1]/usercac:OtherReference[14]/usercac:QualifiedDate[1]/usercac:DateType[1]","/HouseShippingInstruction/usercac:OtherReference/usercac:QualifiedDate/usercac:DateType"]
["1410",false,"HSI\\10_1\\1340_14\\1380_1\\1400_1\\1410_1___val","/HouseShippingInstruction[1]/usercac:OtherReference[14]/usercac:QualifiedDate[1]/usercac:DateType[1]/usercac:Code[1]","/HouseShippingInstruction/usercac:OtherReference/usercac:QualifiedDate/usercac:DateType/usercac:Code"]
["1420",false,"HSI\\10_1\\1340_14\\1420_1___lab","/HouseShippingInstruction[1]/usercac:OtherReference[14]/usercac:Remarks[1]","/HouseShippingInstruction/usercac:OtherReference/usercac:Remarks"]
["1430",false,"HSI\\10_1\\1340_14\\1420_1\\1430_1___val","/HouseShippingInstruction[1]/usercac:OtherReference[14]/usercac:Remarks[1]/usercbc:Description[1]","/HouseShippingInstruction/usercac:OtherReference/usercac:Remarks/usercbc:Description"]
["1440",false,"HSI\\10_1\\1340_14\\1420_1\\1440_1___lab","/HouseShippingInstruction[1]/usercac:OtherReference[14]/usercac:Remarks[1]/usercac:RemarksType[1]","/HouseShippingInstruction/usercac:OtherReference/usercac:Remarks/usercac:RemarksType"]
["1450",false,"HSI\\10_1\\1340_14\\1420_1\\1440_1\\1450_1___val","/HouseShippingInstruction[1]/usercac:OtherReference[14]/usercac:Remarks[1]/usercac:RemarksType[1]/usercac:Code[1]","/HouseShippingInstruction/usercac:OtherReference/usercac:Remarks/usercac:RemarksType/usercac:Code"]
["1340",false,"HSI\\10_1\\1340_15___lab","/HouseShippingInstruction[1]/usercac:OtherReference[15]","/HouseShippingInstruction/usercac:OtherReference"]
["1350",false,"HSI\\10_1\\1340_15\\1350_1___val","/HouseShippingInstruction[1]/usercac:OtherReference[15]/usercac:ID[1]","/HouseShippingInstruction/usercac:OtherReference/usercac:ID"]
["1360",false,"HSI\\10_1\\1340_15\\1360_1___lab","/HouseShippingInstruction[1]/usercac:OtherReference[15]/usercac:ReferenceType[1]","/HouseShippingInstruction/usercac:OtherReference/usercac:ReferenceType"]
["1370",false,"HSI\\10_1\\1340_15\\1360_1\\1370_1___val","/HouseShippingInstruction[1]/usercac:OtherReference[15]/usercac:ReferenceType[1]/usercac:Code[1]","/HouseShippingInstruction/usercac:OtherReference/usercac:ReferenceType/usercac:Code"]
["1380",false,"HSI\\10_1\\1340_15\\1380_1___lab","/HouseShippingInstruction[1]/usercac:OtherReference[15]/usercac:QualifiedDate[1]","/HouseShippingInstruction/usercac:OtherReference/usercac:QualifiedDate"]
["1390",false,"HSI\\10_1\\1340_15\\1380_1\\1390_1___val","/HouseShippingInstruction[1]/usercac:OtherReference[15]/usercac:QualifiedDate[1]/usercbc:DateTime[1]","/HouseShippingInstruction/usercac:OtherReference/usercac:QualifiedDate/usercbc:DateTime"]
["1400",false,"HSI\\10_1\\1340_15\\1380_1\\1400_1___lab","/HouseShippingInstruction[1]/usercac:OtherReference[15]/usercac:QualifiedDate[1]/usercac:DateType[1]","/HouseShippingInstruction/usercac:OtherReference/usercac:QualifiedDate/usercac:DateType"]
["1410",false,"HSI\\10_1\\1340_15\\1380_1\\1400_1\\1410_1___val","/HouseShippingInstruction[1]/usercac:OtherReference[15]/usercac:QualifiedDate[1]/usercac:DateType[1]/usercac:Code[1]","/HouseShippingInstruction/usercac:OtherReference/usercac:QualifiedDate/usercac:DateType/usercac:Code"]
["1420",false,"HSI\\10_1\\1340_15\\1420_1___lab","/HouseShippingInstruction[1]/usercac:OtherReference[15]/usercac:Remarks[1]","/HouseShippingInstruction/usercac:OtherReference/usercac:Remarks"]
["1430",false,"HSI\\10_1\\1340_15\\1420_1\\1430_1___val","/HouseShippingInstruction[1]/usercac:OtherReference[15]/usercac:Remarks[1]/usercbc:Description[1]","/HouseShippingInstruction/usercac:OtherReference/usercac:Remarks/usercbc:Description"]
["1440",false,"HSI\\10_1\\1340_15\\1420_1\\1440_1___lab","/HouseShippingInstruction[1]/usercac:OtherReference[15]/usercac:Remarks[1]/usercac:RemarksType[1]","/HouseShippingInstruction/usercac:OtherReference/usercac:Remarks/usercac:RemarksType"]
["1450",false,"HSI\\10_1\\1340_15\\1420_1\\1440_1\\1450_1___val","/HouseShippingInstruction[1]/usercac:OtherReference[15]/usercac:Remarks[1]/usercac:RemarksType[1]/usercac:Code[1]","/HouseShippingInstruction/usercac:OtherReference/usercac:Remarks/usercac:RemarksType/usercac:Code"]
["1460",false,"HSI\\10_1\\1460_1___lab","/HouseShippingInstruction[1]/usercac:Remarks[1]","/HouseShippingInstruction/usercac:Remarks"]
["1470",false,"HSI\\10_1\\1460_1\\1470_1___val","/HouseShippingInstruction[1]/usercac:Remarks[1]/usercbc:Description[1]","/HouseShippingInstruction/usercac:Remarks/usercbc:Description"]
["1480",false,"HSI\\10_1\\1460_1\\1480_1___lab","/HouseShippingInstruction[1]/usercac:Remarks[1]/usercac:RemarksType[1]","/HouseShippingInstruction/usercac:Remarks/usercac:RemarksType"]
["1490",false,"HSI\\10_1\\1460_1\\1480_1\\1490_1___val","/HouseShippingInstruction[1]/usercac:Remarks[1]/usercac:RemarksType[1]/usercac:Code[1]","/HouseShippingInstruction/usercac:Remarks/usercac:RemarksType/usercac:Code"]
["1460",false,"HSI\\10_1\\1460_2___lab","/HouseShippingInstruction[1]/usercac:Remarks[2]","/HouseShippingInstruction/usercac:Remarks"]
["1470",false,"HSI\\10_1\\1460_2\\1470_1___val","/HouseShippingInstruction[1]/usercac:Remarks[2]/usercbc:Description[1]","/HouseShippingInstruction/usercac:Remarks/usercbc:Description"]
["1480",false,"HSI\\10_1\\1460_2\\1480_1___lab","/HouseShippingInstruction[1]/usercac:Remarks[2]/usercac:RemarksType[1]","/HouseShippingInstruction/usercac:Remarks/usercac:RemarksType"]
["1490",false,"HSI\\10_1\\1460_2\\1480_1\\1490_1___val","/HouseShippingInstruction[1]/usercac:Remarks[2]/usercac:RemarksType[1]/usercac:Code[1]","/HouseShippingInstruction/usercac:Remarks/usercac:RemarksType/usercac:Code"]
["1460",false,"HSI\\10_1\\1460_3___lab","/HouseShippingInstruction[1]/usercac:Remarks[3]","/HouseShippingInstruction/usercac:Remarks"]
["1470",false,"HSI\\10_1\\1460_3\\1470_1___val","/HouseShippingInstruction[1]/usercac:Remarks[3]/usercbc:Description[1]","/HouseShippingInstruction/usercac:Remarks/usercbc:Description"]
["1480",false,"HSI\\10_1\\1460_3\\1480_1___lab","/HouseShippingInstruction[1]/usercac:Remarks[3]/usercac:RemarksType[1]","/HouseShippingInstruction/usercac:Remarks/usercac:RemarksType"]
["1490",false,"HSI\\10_1\\1460_3\\1480_1\\1490_1___val","/HouseShippingInstruction[1]/usercac:Remarks[3]/usercac:RemarksType[1]/usercac:Code[1]","/HouseShippingInstruction/usercac:Remarks/usercac:RemarksType/usercac:Code"]
["1460",false,"HSI\\10_1\\1460_4___lab","/HouseShippingInstruction[1]/usercac:Remarks[4]","/HouseShippingInstruction/usercac:Remarks"]
["1470",false,"HSI\\10_1\\1460_4\\1470_1___val","/HouseShippingInstruction[1]/usercac:Remarks[4]/usercbc:Description[1]","/HouseShippingInstruction/usercac:Remarks/usercbc:Description"]
["1480",false,"HSI\\10_1\\1460_4\\1480_1___lab","/HouseShippingInstruction[1]/usercac:Remarks[4]/usercac:RemarksType[1]","/HouseShippingInstruction/usercac:Remarks/usercac:RemarksType"]
["1490",false,"HSI\\10_1\\1460_4\\1480_1\\1490_1___val","/HouseShippingInstruction[1]/usercac:Remarks[4]/usercac:RemarksType[1]/usercac:Code[1]","/HouseShippingInstruction/usercac:Remarks/usercac:RemarksType/usercac:Code"]
["1460",false,"HSI\\10_1\\1460_5___lab","/HouseShippingInstruction[1]/usercac:Remarks[5]","/HouseShippingInstruction/usercac:Remarks"]
["1470",false,"HSI\\10_1\\1460_5\\1470_1___val","/HouseShippingInstruction[1]/usercac:Remarks[5]/usercbc:Description[1]","/HouseShippingInstruction/usercac:Remarks/usercbc:Description"]
["1480",false,"HSI\\10_1\\1460_5\\1480_1___lab","/HouseShippingInstruction[1]/usercac:Remarks[5]/usercac:RemarksType[1]","/HouseShippingInstruction/usercac:Remarks/usercac:RemarksType"]
["1490",false,"HSI\\10_1\\1460_5\\1480_1\\1490_1___val","/HouseShippingInstruction[1]/usercac:Remarks[5]/usercac:RemarksType[1]/usercac:Code[1]","/HouseShippingInstruction/usercac:Remarks/usercac:RemarksType/usercac:Code"]

{"sheet":"Others","index":3,"n_rows":335,"n_cols":21,"rows_kept":335,"cut":false,"hidden":true,"merged":[[51,9,51,13],[28,11,28,12],[28,18,28,19],[32,11,32,12],[32,18,32,20],[36,11,36,12]]}
[]
[{"$f":"#REF!","v":{"$error":"#REF!"}}]
[null,{"$f":"#REF!","v":{"$error":"#REF!"}},null,null,null,null,null,null,null,null,null,"Document Type"]
[null,{"$f":"#REF!","v":{"$error":"#REF!"}}]
[null,{"$f":"#REF!","v":{"$error":"#REF!"}},null,null,null,null,null,null,null,null,null,"DTTN gernerated Unique document no."]
[null,{"$f":"#REF!","v":{"$error":"#REF!"}}]
[null,{"$f":"#REF!","v":{"$error":"#REF!"}}]
[null,{"$f":"#REF!","v":{"$error":"#REF!"}}]
[null,{"$f":"#REF!","v":{"$error":"#REF!"}},null,null,null,null,null,null,null,"Consignee's Contact Person",null,"Type of Service Required"]
[null,{"$f":"#REF!","v":{"$error":"#REF!"}},null,null,null,null,null,null,null,null,null,null,null,null,true,false,2,1]
[null,{"$f":"#REF!","v":{"$error":"#REF!"}},null,null,null,null,null,null,null,"Consignee's Phone:",null,"Airline counter sign:","Export declaration:",null,false,false,false,false]
[null,{"$f":"#REF!","v":{"$error":"#REF!"}},null,null,null,null,null,null,null,null,null,{"$f":"IF(HSI\\10_1\\1460_1\\1470_1___val<>\"\",HSI\\10_1\\1460_1\\1470_1___val,\"\")","v":{"$error":"#NAME?"}},{"$f":"IF(HSI\\10_1\\1460_2\\1470_1___val<>\"\",HSI\\10_1\\1460_2\\1470_1___val,\"\")","v":{"$error":"#NAME?"}},null,false,false,false]
[null,null,{"$f":"#REF!","v":{"$error":"#REF!"}},null,null,null,null,null,null,"Consignee's Fax:",null,"Insurance covered by",null,null,false,false,false,false]
[null,null,{"$f":"#REF!","v":{"$error":"#REF!"}}]
[null,null,{"$f":"#REF!","v":{"$error":"#REF!"}},null,null,null,null,null,null,"Consignee Code:"]
[null,null,{"$f":"#REF!","v":{"$error":"#REF!"}},null,null,null,null,null,null,null,null,"Document accompained"]
[null,null,null,{"$f":"#REF!","v":{"$error":"#REF!"}},null,null,null,null,null,null,null,"Invoice",{"$f":"IF(HSI\\10_1\\1340_10\\1420_1\\1430_1___val<>\"\",HSI\\10_1\\1340_10\\1420_1\\1430_1___val,\"\")","v":{"$error":"#NAME?"}}]
[null,null,{"$f":"#REF!","v":{"$error":"#REF!"}},null,null,null,null,null,null,"Norify's Code",null,"Packing",{"$f":"IF(HSI\\10_1\\1340_11\\1420_1\\1430_1___val<>\"\",HSI\\10_1\\1340_11\\1420_1\\1430_1___val,\"\")","v":{"$error":"#NAME?"}},null,null,null,null,null,null,"Consignee ID from Freescale:"]
[null,null,null,{"$f":"#REF!","v":{"$error":"#REF!"}},null,null,null,null,null,null,null,"C.O.",{"$f":"IF(HSI\\10_1\\1340_7\\1420_1\\1430_1___val<>\"\",HSI\\10_1\\1340_7\\1420_1\\1430_1___val,\"\")","v":{"$error":"#NAME?"}},null,null,null,null,null,null,{"$f":"IF(ISERROR(VLOOKUP(\"Customer Code\",Vlook1,2,FALSE)),\"\",VLOOKUP(\"Customer Code\",Vlook1,2,FALSE))","v":""}]
[null,null,{"$f":"#REF!","v":{"$error":"#REF!"}},null,null,null,null,null,null,"Norify's Contact Person",null,"Re-Export Form A",{"$f":"IF(HSI\\10_1\\1340_8\\1420_1\\1430_1___val<>\"\",HSI\\10_1\\1340_8\\1420_1\\1430_1___val,\"\")","v":{"$error":"#NAME?"}}]
[null,null,null,{"$f":"#REF!","v":{"$error":"#REF!"}}]
[null,null,{"$f":"#REF!","v":{"$error":"#REF!"}},null,null,null,null,null,null,"Notify's Phone:"]
[null,null,null,{"$f":"#REF!","v":{"$error":"#REF!"}},null,null,null,null,null,null,null,"Air freight charges"]
[null,null,null,null,{"$f":"#REF!","v":{"$error":"#REF!"}},null,null,null,null,"Notify's Fax:",null,"Local charges(HK)"]
[null,null,{"$f":"#REF!","v":{"$error":"#REF!"}}]
[null,null,null,{"$f":"#REF!","v":{"$error":"#REF!"}}]
[null,{"$f":"#REF!","v":{"$error":"#REF!"}}]
[null,null,{"$f":"#REF!","v":{"$error":"#REF!"}}]
[null,null,null,{"$f":"#REF!","v":{"$error":"#REF!"}},null,null,null,null,null,null,null,"Type of Service Required",null,null,null,null,null,null,"Airline counter sign"]
[null,null,{"$f":"#REF!","v":{"$error":"#REF!"}},null,null,null,null,null,null,null,null,"IATA","Pelican",null,null,null,null,null,"YES","NO"]
[null,null,null,{"$f":"#REF!","v":{"$error":"#REF!"}},null,null,null,null,null,null,null,false,false,null,null,null,null,null,{"$f":"IF(IF(ISERROR(VLOOKUP(\"AirlineCounterSignature\",Vlook1,2,FALSE)),\"\",VLOOKUP(\"AirlineCounterSignature\",Vlook1,2,FALSE))<>\"YES\",FALSE,TRUE)","v":false},{"$f":"IF(IF(ISERROR(VLOOKUP(\"AirlineCounterSignature\",Vlook1,2,FALSE)),\"\",VLOOKUP(\"AirlineCounterSignature\",Vlook1,2,FALSE))<>\"NO\",FALSE,TRUE)","v":false}]
[null,null,null,{"$f":"#REF!","v":{"$error":"#REF!"}}]
[null,null,{"$f":"#REF!","v":{"$error":"#REF!"}},null,null,null,null,null,null,null,null,"Export declaration",null,null,null,null,null,null,"Insurance covered by"]
[null,null,null,{"$f":"#REF!","v":{"$error":"#REF!"}},null,null,null,null,null,null,null,"YES","NO",null,null,null,null,null,"Shipper","Consignee","NipponExpress(HK)"]
[null,null,null,null,{"$f":"#REF!","v":{"$error":"#REF!"}},null,null,null,null,null,null,{"$f":"IF(IF(ISERROR(VLOOKUP(\"ShipperExportDeclaration\",Vlook1,2,FALSE)),\"\",VLOOKUP(\"ShipperExportDeclaration\",Vlook1,2,FALSE))<>\"YES\",FALSE,TRUE)","v":false},{"$f":"IF(IF(ISERROR(VLOOKUP(\"ShipperExportDeclaration\",Vlook1,2,FALSE)),\"\",VLOOKUP(\"ShipperExportDeclaration\",Vlook1,2,FALSE))<>\"NO\",FALSE,TRUE)","v":false},null,null,null,null,null,false,false,true]
[null,null,null,null,{"$f":"#REF!","v":{"$error":"#REF!"}}]
[null,null,null,null,{"$f":"#REF!","v":{"$error":"#REF!"}},null,null,null,null,null,null,"Invoice",null,null,null,null,null,null,"Packing",null,"C.O"]
[null,null,null,null,{"$f":"#REF!","v":{"$error":"#REF!"}},null,null,null,null,null,null,"YES","NO",null,null,null,null,null,"YES or NO",null,"YES or NO"]
[null,null,{"$f":"#REF!","v":{"$error":"#REF!"}},null,null,null,null,null,null,null,null,{"$f":"IF(IF(ISERROR(VLOOKUP(\"InvoiceAttached\",vlook,2,FALSE)),\"\",VLOOKUP(\"InvoiceAttached\",vlook,2,FALSE))<>\"YES\",FALSE,TRUE)","v":false},null,null,null,null,null,null,{"$f":"IF(IF(ISERROR(VLOOKUP(\"PackingListAttached\",vlook,2,FALSE)),\"\",VLOOKUP(\"PackingListAttached\",vlook,2,FALSE))<>\"YES\",FALSE,TRUE)","v":false},null,{"$f":"IF(IF(ISERROR(VLOOKUP(\"CertificateOfOriginAttached\",vlook,2,FALSE)),\"\",VLOOKUP(\"CertificateOfOriginAttached\",vlook,2,FALSE))<>\"YES\",FALSE,TRUE)","v":false}]
[null,null,null,{"$f":"#REF!","v":{"$error":"#REF!"}}]
[null,null,null,{"$f":"#REF!","v":{"$error":"#REF!"}},null,null,null,null,null,null,null,"Form A"]
[null,null,null,{"$f":"#REF!","v":{"$error":"#REF!"}},null,null,null,null,null,null,null,"YES or NO"]
[null,null,null,null,{"$f":"#REF!","v":{"$error":"#REF!"}},null,null,null,null,null,null,{"$f":"IF(IF(ISERROR(VLOOKUP(\"FormAAttached\",vlook,2,FALSE)),\"\",VLOOKUP(\"FormAAttached\",vlook,2,FALSE))<>\"YES\",FALSE,TRUE)","v":false}]
[null,{"$f":"#REF!","v":{"$error":"#REF!"}}]
[null,null,{"$f":"#REF!","v":{"$error":"#REF!"}},null,null,null,null,null,null,null,null,"Air freight charges",null,"Local charges(HK)"]
[null,null,null,{"$f":"#REF!","v":{"$error":"#REF!"}},null,null,null,null,null,null,null,"P or C",null,"P or C"]
[null,null,{"$f":"#REF!","v":{"$error":"#REF!"}},null,null,null,null,null,null,null,null,1,null,0]
[null,null,null,{"$f":"#REF!","v":{"$error":"#REF!"}}]
[null,null,null,{"$f":"#REF!","v":{"$error":"#REF!"}}]
[null,null,{"$f":"#REF!","v":{"$error":"#REF!"}}]
[null,null,null,{"$f":"#REF!","v":{"$error":"#REF!"}}]
[null,null,null,null,{"$f":"#REF!","v":{"$error":"#REF!"}}]
[null,null,null,null,{"$f":"#REF!","v":{"$error":"#REF!"}}]
[null,null,null,null,{"$f":"#REF!","v":{"$error":"#REF!"}}]
[null,null,null,null,{"$f":"#REF!","v":{"$error":"#REF!"}}]
[null,null,{"$f":"#REF!","v":{"$error":"#REF!"}}]
[null,null,null,{"$f":"#REF!","v":{"$error":"#REF!"}}]
[null,null,null,{"$f":"#REF!","v":{"$error":"#REF!"}},null,null,null,"Customer Code"]
[null,null,null,{"$f":"#REF!","v":{"$error":"#REF!"}},null,null,null,"SelfDeliveryEnd"]
[null,null,null,null,{"$f":"#REF!","v":{"$error":"#REF!"}},null,null,"MAWB",null,null,null,null,"InvoiceAttached"]
[null,null,{"$f":"#REF!","v":{"$error":"#REF!"}},null,null,null,null,"HAWB",null,null,null,null,"PackingListAttached"]
[null,null,null,{"$f":"#REF!","v":{"$error":"#REF!"}},null,null,null,"LC",null,null,null,null,"CertificateOfOriginAttached"]
[null,null,null,{"$f":"#REF!","v":{"$error":"#REF!"}},null,null,null,"PONo",null,null,null,null,"FormAAttached"]
[null,null,null,null,{"$f":"#REF!","v":{"$error":"#REF!"}},null,null,"EXPLC",null,null,null,null,"Others"]
[null,{"$f":"#REF!","v":{"$error":"#REF!"}},null,null,null,null,null,"Others",null,null,null,null,"InvoiceDate"]
[null,null,{"$f":"#REF!","v":{"$error":"#REF!"}},null,null,null,null,"General",null,null,null,null,"LC"]
[null,null,null,{"$f":"#REF!","v":{"$error":"#REF!"}},null,null,null,"InvoiceDate",null,null,null,null,"PONo"]
[null,null,{"$f":"#REF!","v":{"$error":"#REF!"}},null,null,null,null,"CertificateOfOriginAttached",null,null,null,null,"EXPLC"]
[null,null,null,{"$f":"#REF!","v":{"$error":"#REF!"}},null,null,null,"InvoiceAttached"]
[null,null,null,{"$f":"#REF!","v":{"$error":"#REF!"}},null,null,null,"FormAAttached"]
[null,null,{"$f":"#REF!","v":{"$error":"#REF!"}},null,null,null,null,"PackingListAttached"]
[null,null,null,{"$f":"#REF!","v":{"$error":"#REF!"}},null,null,null,"ShipperExportDeclaration"]
[null,null,null,null,{"$f":"#REF!","v":{"$error":"#REF!"}},null,null,"AirlineCounterSignature",null,null,null,null,"MAWB"]
[null,null,null,null,{"$f":"#REF!","v":{"$error":"#REF!"}}]
[null,null,null,null,{"$f":"#REF!","v":{"$error":"#REF!"}}]
[null,null,null,null,{"$f":"#REF!","v":{"$error":"#REF!"}}]
[null,null,{"$f":"#REF!","v":{"$error":"#REF!"}}]
[null,null,null,{"$f":"#REF!","v":{"$error":"#REF!"}}]
[null,null,null,{"$f":"#REF!","v":{"$error":"#REF!"}}]
[null,null,null,{"$f":"#REF!","v":{"$error":"#REF!"}}]
[null,null,null,null,{"$f":"#REF!","v":{"$error":"#REF!"}}]
[null,null,{"$f":"#REF!","v":{"$error":"#REF!"}}]
[null,null,null,{"$f":"#REF!","v":{"$error":"#REF!"}}]
[null,null,null,{"$f":"#REF!","v":{"$error":"#REF!"}}]
[null,null,null,{"$f":"#REF!","v":{"$error":"#REF!"}}]
[null,null,null,null,{"$f":"#REF!","v":{"$error":"#REF!"}}]
[null,{"$f":"#REF!","v":{"$error":"#REF!"}}]
[null,null,{"$f":"#REF!","v":{"$error":"#REF!"}}]
[null,null,null,{"$f":"#REF!","v":{"$error":"#REF!"}}]
[null,null,null,null,{"$f":"#REF!","v":{"$error":"#REF!"}}]
[null,null,null,null,null,{"$f":"#REF!","v":{"$error":"#REF!"}}]
[null,null,null,null,null,{"$f":"#REF!","v":{"$error":"#REF!"}}]
[null,null,null,null,null,null,{"$f":"#REF!","v":{"$error":"#REF!"}}]
[null,null,{"$f":"#REF!","v":{"$error":"#REF!"}}]
[null,null,null,{"$f":"#REF!","v":{"$error":"#REF!"}}]
[null,null,null,null,{"$f":"#REF!","v":{"$error":"#REF!"}}]
[null,null,null,null,null,{"$f":"#REF!","v":{"$error":"#REF!"}}]
[null,null,null,{"$f":"#REF!","v":{"$error":"#REF!"}}]
[null,null,null,null,{"$f":"#REF!","v":{"$error":"#REF!"}}]
[null,null,null,null,null,{"$f":"#REF!","v":{"$error":"#REF!"}}]
[null,null,null,null,null,{"$f":"#REF!","v":{"$error":"#REF!"}}]
[null,null,null,null,null,null,{"$f":"#REF!","v":{"$error":"#REF!"}}]
[null,null,null,{"$f":"#REF!","v":{"$error":"#REF!"}}]
[null,null,null,null,{"$f":"#REF!","v":{"$error":"#REF!"}}]
[null,null,null,null,null,{"$f":"#REF!","v":{"$error":"#REF!"}}]
[null,null,null,null,null,{"$f":"#REF!","v":{"$error":"#REF!"}}]
[null,null,null,null,null,null,{"$f":"#REF!","v":{"$error":"#REF!"}}]
[null,{"$f":"#REF!","v":{"$error":"#REF!"}}]
[]
[]
[]
[]
[null,{"$f":"#REF!","v":{"$error":"#REF!"}}]
[null,null,{"$f":"#REF!","v":{"$error":"#REF!"}}]
[null,null,null,{"$f":"#REF!","v":{"$error":"#REF!"}}]
[null,null,{"$f":"#REF!","v":{"$error":"#REF!"}}]
[null,null,null,{"$f":"#REF!","v":{"$error":"#REF!"}}]
[null,null,null,{"$f":"#REF!","v":{"$error":"#REF!"}}]
[null,null,null,null,{"$f":"#REF!","v":{"$error":"#REF!"}}]
[null,null,null,{"$f":"#REF!","v":{"$error":"#REF!"}}]
[null,null,null,null,{"$f":"#REF!","v":{"$error":"#REF!"}}]
[null,{"$f":"#REF!","v":{"$error":"#REF!"}}]
[null,null,{"$f":"#REF!","v":{"$error":"#REF!"}}]
[null,null,{"$f":"#REF!","v":{"$error":"#REF!"}}]
[null,{"$f":"#REF!","v":{"$error":"#REF!"}}]
[null,null,{"$f":"#REF!","v":{"$error":"#REF!"}}]
[null,null,{"$f":"#REF!","v":{"$error":"#REF!"}}]
[null,null,{"$f":"#REF!","v":{"$error":"#REF!"}}]
[null,null,null,{"$f":"#REF!","v":{"$error":"#REF!"}}]
[null,null,null,null,{"$f":"#REF!","v":{"$error":"#REF!"}}]
[null,{"$f":"#REF!","v":{"$error":"#REF!"}}]
[null,null,{"$f":"#REF!","v":{"$error":"#REF!"}}]
[null,null,{"$f":"#REF!","v":{"$error":"#REF!"}}]
[null,null,null,{"$f":"#REF!","v":{"$error":"#REF!"}}]
[null,null,{"$f":"#REF!","v":{"$error":"#REF!"}}]
[null,null,null,{"$f":"#REF!","v":{"$error":"#REF!"}}]
[null,null,null,{"$f":"#REF!","v":{"$error":"#REF!"}}]
[null,null,null,null,{"$f":"#REF!","v":{"$error":"#REF!"}}]
[null,null,{"$f":"#REF!","v":{"$error":"#REF!"}}]
[null,null,null,{"$f":"#REF!","v":{"$error":"#REF!"}}]
[null,null,null,{"$f":"#REF!","v":{"$error":"#REF!"}}]
[null,null,null,null,{"$f":"#REF!","v":{"$error":"#REF!"}}]
[null,{"$f":"#REF!","v":{"$error":"#REF!"}}]
[null,null,{"$f":"#REF!","v":{"$error":"#REF!"}}]
[null,null,{"$f":"#REF!","v":{"$error":"#REF!"}}]
[null,null,null,{"$f":"#REF!","v":{"$error":"#REF!"}}]
[null,null,{"$f":"#REF!","v":{"$error":"#REF!"}}]
[null,null,null,{"$f":"#REF!","v":{"$error":"#REF!"}}]
[null,null,null,{"$f":"#REF!","v":{"$error":"#REF!"}}]
[null,null,null,null,{"$f":"#REF!","v":{"$error":"#REF!"}}]
[null,null,{"$f":"#REF!","v":{"$error":"#REF!"}}]
[null,null,null,{"$f":"#REF!","v":{"$error":"#REF!"}}]
[null,null,null,{"$f":"#REF!","v":{"$error":"#REF!"}}]
[null,null,null,null,{"$f":"#REF!","v":{"$error":"#REF!"}}]
[null,{"$f":"#REF!","v":{"$error":"#REF!"}}]
[null,null,{"$f":"#REF!","v":{"$error":"#REF!"}}]
[null,null,{"$f":"#REF!","v":{"$error":"#REF!"}}]
[null,null,null,{"$f":"#REF!","v":{"$error":"#REF!"}}]
[null,null,{"$f":"#REF!","v":{"$error":"#REF!"}}]
[null,null,null,{"$f":"#REF!","v":{"$error":"#REF!"}}]
[null,null,null,{"$f":"#REF!","v":{"$error":"#REF!"}}]
[null,null,null,null,{"$f":"#REF!","v":{"$error":"#REF!"}}]
[null,null,{"$f":"#REF!","v":{"$error":"#REF!"}}]
[null,null,null,{"$f":"#REF!","v":{"$error":"#REF!"}}]
[null,null,null,{"$f":"#REF!","v":{"$error":"#REF!"}}]
[null,null,null,null,{"$f":"#REF!","v":{"$error":"#REF!"}}]
[null,{"$f":"#REF!","v":{"$error":"#REF!"}}]
[null,null,{"$f":"#REF!","v":{"$error":"#REF!"}}]
[null,null,{"$f":"#REF!","v":{"$error":"#REF!"}}]
[null,null,null,{"$f":"#REF!","v":{"$error":"#REF!"}}]
[null,null,{"$f":"#REF!","v":{"$error":"#REF!"}}]
[null,null,null,{"$f":"#REF!","v":{"$error":"#REF!"}}]
[null,null,null,{"$f":"#REF!","v":{"$error":"#REF!"}}]
[null,null,null,null,{"$f":"#REF!","v":{"$error":"#REF!"}}]
[null,null,{"$f":"#REF!","v":{"$error":"#REF!"}}]
[null,null,null,{"$f":"#REF!","v":{"$error":"#REF!"}}]
[null,null,null,{"$f":"#REF!","v":{"$error":"#REF!"}}]
[null,null,null,null,{"$f":"#REF!","v":{"$error":"#REF!"}}]
[null,{"$f":"#REF!","v":{"$error":"#REF!"}}]
[null,null,{"$f":"#REF!","v":{"$error":"#REF!"}}]
[null,null,{"$f":"#REF!","v":{"$error":"#REF!"}}]
[null,null,null,{"$f":"#REF!","v":{"$error":"#REF!"}}]
[null,null,{"$f":"#REF!","v":{"$error":"#REF!"}}]
[null,null,null,{"$f":"#REF!","v":{"$error":"#REF!"}}]
[null,null,null,{"$f":"#REF!","v":{"$error":"#REF!"}}]
[null,null,null,null,{"$f":"#REF!","v":{"$error":"#REF!"}}]
[null,null,{"$f":"#REF!","v":{"$error":"#REF!"}}]
[null,null,null,{"$f":"#REF!","v":{"$error":"#REF!"}}]
[null,null,null,{"$f":"#REF!","v":{"$error":"#REF!"}}]
[null,null,null,null,{"$f":"#REF!","v":{"$error":"#REF!"}}]
[null,{"$f":"#REF!","v":{"$error":"#REF!"}}]
[null,null,{"$f":"#REF!","v":{"$error":"#REF!"}}]
[null,null,{"$f":"#REF!","v":{"$error":"#REF!"}}]
[null,null,null,{"$f":"#REF!","v":{"$error":"#REF!"}}]
[null,null,{"$f":"#REF!","v":{"$error":"#REF!"}}]
[null,null,null,{"$f":"#REF!","v":{"$error":"#REF!"}}]
[null,null,null,{"$f":"#REF!","v":{"$error":"#REF!"}}]
[null,null,null,null,{"$f":"#REF!","v":{"$error":"#REF!"}}]
[null,null,{"$f":"#REF!","v":{"$error":"#REF!"}}]
[null,null,null,{"$f":"#REF!","v":{"$error":"#REF!"}}]
[null,null,null,{"$f":"#REF!","v":{"$error":"#REF!"}}]
[null,null,null,null,{"$f":"#REF!","v":{"$error":"#REF!"}}]
[null,{"$f":"#REF!","v":{"$error":"#REF!"}}]
[null,null,{"$f":"#REF!","v":{"$error":"#REF!"}}]
[null,null,{"$f":"#REF!","v":{"$error":"#REF!"}}]
[null,null,null,{"$f":"#REF!","v":{"$error":"#REF!"}},"HAWB"]
[null,null,{"$f":"#REF!","v":{"$error":"#REF!"}}]
[null,null,null,{"$f":"#REF!","v":{"$error":"#REF!"}}]
[null,null,null,{"$f":"#REF!","v":{"$error":"#REF!"}}]
[null,null,null,null,{"$f":"#REF!","v":{"$error":"#REF!"}}]
[null,null,{"$f":"#REF!","v":{"$error":"#REF!"}}]
[null,null,null,{"$f":"#REF!","v":{"$error":"#REF!"}}]
[null,null,null,{"$f":"#REF!","v":{"$error":"#REF!"}}]
[null,null,null,null,{"$f":"#REF!","v":{"$error":"#REF!"}}]
[null,{"$f":"#REF!","v":{"$error":"#REF!"}}]
[null,null,{"$f":"#REF!","v":{"$error":"#REF!"}}]
[null,null,{"$f":"#REF!","v":{"$error":"#REF!"}}]
[null,null,null,{"$f":"#REF!","v":{"$error":"#REF!"}}]
[null,null,{"$f":"#REF!","v":{"$error":"#REF!"}}]
[null,null,null,{"$f":"#REF!","v":{"$error":"#REF!"}}]
[null,null,null,{"$f":"#REF!","v":{"$error":"#REF!"}}]
[null,null,null,null,{"$f":"#REF!","v":{"$error":"#REF!"}}]
[null,null,{"$f":"#REF!","v":{"$error":"#REF!"}}]
[null,null,null,{"$f":"#REF!","v":{"$error":"#REF!"}}]
[null,null,null,{"$f":"#REF!","v":{"$error":"#REF!"}}]
[null,null,null,null,{"$f":"#REF!","v":{"$error":"#REF!"}}]
[null,{"$f":"#REF!","v":{"$error":"#REF!"}}]
[null,null,{"$f":"#REF!","v":{"$error":"#REF!"}}]
[null,null,{"$f":"#REF!","v":{"$error":"#REF!"}}]
[null,null,null,{"$f":"#REF!","v":{"$error":"#REF!"}}]
[null,null,{"$f":"#REF!","v":{"$error":"#REF!"}}]
[null,null,null,{"$f":"#REF!","v":{"$error":"#REF!"}}]
[null,null,null,{"$f":"#REF!","v":{"$error":"#REF!"}}]
[null,null,null,null,{"$f":"#REF!","v":{"$error":"#REF!"}}]
[null,null,{"$f":"#REF!","v":{"$error":"#REF!"}}]
[null,null,null,{"$f":"#REF!","v":{"$error":"#REF!"}}]
[null,null,null,{"$f":"#REF!","v":{"$error":"#REF!"}}]
[null,null,null,null,{"$f":"#REF!","v":{"$error":"#REF!"}}]
[null,{"$f":"#REF!","v":{"$error":"#REF!"}}]
[null,null,{"$f":"#REF!","v":{"$error":"#REF!"}}]
[null,null,{"$f":"#REF!","v":{"$error":"#REF!"}}]
[null,null,null,{"$f":"#REF!","v":{"$error":"#REF!"}}]
[null,null,{"$f":"#REF!","v":{"$error":"#REF!"}}]
[null,null,null,{"$f":"#REF!","v":{"$error":"#REF!"}}]
[null,null,null,{"$f":"#REF!","v":{"$error":"#REF!"}}]
[null,null,null,null,{"$f":"#REF!","v":{"$error":"#REF!"}}]
[null,null,{"$f":"#REF!","v":{"$error":"#REF!"}}]
[null,null,null,{"$f":"#REF!","v":{"$error":"#REF!"}}]
[null,null,null,{"$f":"#REF!","v":{"$error":"#REF!"}}]
[null,null,null,null,{"$f":"#REF!","v":{"$error":"#REF!"}}]
[null,{"$f":"#REF!","v":{"$error":"#REF!"}}]
[null,null,{"$f":"#REF!","v":{"$error":"#REF!"}}]
[null,null,{"$f":"#REF!","v":{"$error":"#REF!"}}]
[null,null,null,{"$f":"#REF!","v":{"$error":"#REF!"}}]
[null,null,{"$f":"#REF!","v":{"$error":"#REF!"}}]
[null,null,null,{"$f":"#REF!","v":{"$error":"#REF!"}}]
[null,null,null,{"$f":"#REF!","v":{"$error":"#REF!"}}]
[null,null,null,null,{"$f":"#REF!","v":{"$error":"#REF!"}}]
[null,null,{"$f":"#REF!","v":{"$error":"#REF!"}}]
[null,null,null,{"$f":"#REF!","v":{"$error":"#REF!"}}]
[null,null,null,{"$f":"#REF!","v":{"$error":"#REF!"}}]
[null,null,null,null,{"$f":"#REF!","v":{"$error":"#REF!"}}]
[null,{"$f":"#REF!","v":{"$error":"#REF!"}}]
[null,null,{"$f":"#REF!","v":{"$error":"#REF!"}}]
[null,null,{"$f":"#REF!","v":{"$error":"#REF!"}}]
[null,null,null,{"$f":"#REF!","v":{"$error":"#REF!"}}]
[null,null,{"$f":"#REF!","v":{"$error":"#REF!"}}]
[null,null,null,{"$f":"#REF!","v":{"$error":"#REF!"}}]
[null,null,null,{"$f":"#REF!","v":{"$error":"#REF!"}}]
[null,null,null,null,{"$f":"#REF!","v":{"$error":"#REF!"}}]
[null,null,{"$f":"#REF!","v":{"$error":"#REF!"}}]
[null,null,null,{"$f":"#REF!","v":{"$error":"#REF!"}}]
[null,null,null,{"$f":"#REF!","v":{"$error":"#REF!"}}]
[null,null,null,null,{"$f":"#REF!","v":{"$error":"#REF!"}}]
[null,{"$f":"#REF!","v":{"$error":"#REF!"}}]
[null,null,{"$f":"#REF!","v":{"$error":"#REF!"}}]
[null,null,{"$f":"#REF!","v":{"$error":"#REF!"}}]
[null,null,null,{"$f":"#REF!","v":{"$error":"#REF!"}}]
[null,null,{"$f":"#REF!","v":{"$error":"#REF!"}}]
[null,null,null,{"$f":"#REF!","v":{"$error":"#REF!"}}]
[null,null,null,{"$f":"#REF!","v":{"$error":"#REF!"}}]
[null,null,null,null,{"$f":"#REF!","v":{"$error":"#REF!"}}]
[null,null,{"$f":"#REF!","v":{"$error":"#REF!"}}]
[null,null,null,{"$f":"#REF!","v":{"$error":"#REF!"}}]
[null,null,null,{"$f":"#REF!","v":{"$error":"#REF!"}}]
[null,null,null,null,{"$f":"#REF!","v":{"$error":"#REF!"}}]
[null,{"$f":"#REF!","v":{"$error":"#REF!"}}]
[null,null,{"$f":"#REF!","v":{"$error":"#REF!"}}]
[null,null,{"$f":"#REF!","v":{"$error":"#REF!"}}]
[null,null,null,{"$f":"#REF!","v":{"$error":"#REF!"}}]
[null,null,{"$f":"#REF!","v":{"$error":"#REF!"}}]
[null,null,null,{"$f":"#REF!","v":{"$error":"#REF!"}}]
[null,null,null,{"$f":"#REF!","v":{"$error":"#REF!"}}]
[null,null,null,null,{"$f":"#REF!","v":{"$error":"#REF!"}}]
[null,null,{"$f":"#REF!","v":{"$error":"#REF!"}}]
[null,null,null,{"$f":"#REF!","v":{"$error":"#REF!"}}]
[null,null,null,{"$f":"#REF!","v":{"$error":"#REF!"}}]
[null,null,null,null,{"$f":"#REF!","v":{"$error":"#REF!"}}]
[null,{"$f":"#REF!","v":{"$error":"#REF!"}}]
[null,null,{"$f":"#REF!","v":{"$error":"#REF!"}}]
[null,null,{"$f":"#REF!","v":{"$error":"#REF!"}}]
[null,null,null,{"$f":"#REF!","v":{"$error":"#REF!"}}]
[null,null,{"$f":"#REF!","v":{"$error":"#REF!"}}]
[null,null,null,{"$f":"#REF!","v":{"$error":"#REF!"}}]
[null,null,null,{"$f":"#REF!","v":{"$error":"#REF!"}}]
[null,null,null,null,{"$f":"#REF!","v":{"$error":"#REF!"}}]
[null,null,{"$f":"#REF!","v":{"$error":"#REF!"}}]
[null,null,null,{"$f":"#REF!","v":{"$error":"#REF!"}}]
[null,null,null,{"$f":"#REF!","v":{"$error":"#REF!"}}]
[null,null,null,null,{"$f":"#REF!","v":{"$error":"#REF!"}}]
[null,{"$f":"#REF!","v":{"$error":"#REF!"}}]
[null,null,{"$f":"#REF!","v":{"$error":"#REF!"}}]
[null,null,{"$f":"#REF!","v":{"$error":"#REF!"}}]
[null,null,null,{"$f":"#REF!","v":{"$error":"#REF!"}}]
[null,{"$f":"#REF!","v":{"$error":"#REF!"}}]
[null,null,{"$f":"#REF!","v":{"$error":"#REF!"}}]
[null,null,{"$f":"#REF!","v":{"$error":"#REF!"}}]
[null,null,null,{"$f":"#REF!","v":{"$error":"#REF!"}}]
[null,{"$f":"#REF!","v":{"$error":"#REF!"}}]
[null,null,{"$f":"#REF!","v":{"$error":"#REF!"}}]
[null,null,{"$f":"#REF!","v":{"$error":"#REF!"}}]
[null,null,null,{"$f":"#REF!","v":{"$error":"#REF!"}}]
[null,{"$f":"#REF!","v":{"$error":"#REF!"}}]
[null,null,{"$f":"#REF!","v":{"$error":"#REF!"}}]
[null,null,{"$f":"#REF!","v":{"$error":"#REF!"}}]
[null,null,null,{"$f":"#REF!","v":{"$error":"#REF!"}}]
[null,{"$f":"#REF!","v":{"$error":"#REF!"}}]
[null,null,{"$f":"#REF!","v":{"$error":"#REF!"}}]
[null,null,{"$f":"#REF!","v":{"$error":"#REF!"}}]
[null,null,null,{"$f":"#REF!","v":{"$error":"#REF!"}}]
[]
[]
[null,"Weight Measurement"]
[null,"VolumeMeasurement"]
[null,"PackageType"]

{"sheet":"TDS","index":4,"n_rows":13,"n_cols":2,"rows_kept":13,"cut":false,"hidden":true,"merged":[]}
["File Path"]
["Validation Status","Success"]
[]
[]
[]
[]
["Template Version"]
[]
[]
[]
[]
["Original SID"]
["Original RID"]